{"text_format":"1","workbook":"xlsx","n_sheets":1,"sheets":["Sheet1"],"not_rendered":{"charts":0,"images":0,"macros":0,"external_links":0,"defined_names":1,"comments":0,"pivot_tables":0},"unopened":[],"bounds":{"document_bytes":16777216,"sheet_cells":100000,"rows_first":2000,"rows_last":500,"rows_between":2000,"halvings":0,"cell_chars":16384,"cell_head_chars":4096},"cells_cut":0,"cells_raw":0,"read":"whole","date_system":"1900"}

{"sheet":"Sheet1","index":0,"n_rows":1512,"n_cols":28,"rows_kept":1512,"cut":false,"hidden":false,"merged":[[10,2,10,7],[10,8,10,12],[10,13,10,21],[10,23,10,26],[1,0,1,1],[1,17,8,17],[1,21,8,21],[1,22,8,22],[2,0,2,1],[2,2,2,3],[3,0,3,1],[3,2,3,3],[5,0,5,3],[8,2,8,4]]}
["CAF-ICC - Data for 2025 Program Year Support Calculation"]
["Filing Date",null,null,null,null,null,null,null,null,null,null,null,null,null,null,null,null,"Enter an adjustment to eligible recovery to prevent double recovery as a negative number in this column. ",null,null,null,"The otherwise unrecoverable true-up revenue is treated as eligible recovery in the true-up tariff period.  ","Refund to the administrator by August 1 following the date of the annual access tariff filing.  This sum is the true-up revenue that is not offset by eligible recovery (calculated before the true-up) in the true-up period, and is otherwise the amount of overrecovery of eligible recovery in the period being trued up."]
["Filing Entity"]
["Holding Company"]
[]
["All values within a row must be completed."]
[null,null,null,null,null,null,null," "]
[]
[null,null,"The 2011 Frozen baseline value cannot be changed from prior years without FCC waiver."]
[]
[null,null,"2011 Base Period Revenue Requirement",null,null,null,null,null,"2025-2026 Estimated ICC Revenues",null,null,null,null,"Eligible Recovery",null,null,null,null,null,null,null,null,null,"ARC Annual Revenues",null,null,null,"Calculated CAF ICC Support"]
["Program Year","SAC(s)","2011 Interstate Switched Access Revenue Requirement","2011 Intrastate Terminating Switched Access Revenues","FY 2011 Net Reciprocal Compensation Revenues","ROR Baseline Adjustment Factor ( .95^14)","NECA Expenses              (only applicable to NECA)","ROR  Carrier Revenue Requirement \n((C+D+E)*F)+G","Interstate Switched Access Revenues","Interstate Allocated Switched Access Revenues\n(only applicable to NECA)","Transitional Intrastate Access Service Revenues","Net Transitional Reciprocal Compensation Revenues","Total ICC Revenues\nSUM(J+K+L)","TRS Increment ","Regulatory-Fees Increment ","NANPA Increment ","TY 2023-2024 Unrecoverable True-Up Revenue","Adjustment for Double Recovery or Corrections","Total True Up for TY 2023-2024                           Net Impact on Total Eligible Recovery","State USF Fees","Interstate Local Switching Support for Price Cap Affiliates","Total Eligible Recovery After True-Up Including Otherwise Unrecoverable True-Up Revenue\nH-M+N+O+P+Q+R+S-T-U           ","TY 2022-2023 Eligible Recovery Refund","Residential ARC Annual Revenues","Single Line Business ARC Annual Revenues","Multi-Line Business ARC Annual Revenues","Imputed ARC Revenue From CBOL Lines","Estimated Total CAF ICC Support V-(X+Y+Z)-AA"]
[null,null,null,null,null,{"$f":"IF(AND(LEN(A13)>0,LEN(B13)>0),0.95^14,\"\")","v":""},{"$f":"IF(AND(LEN(A13)>0,LEN(B13)>0),0,\"\")","v":""},{"$f":"IF(AND(LEN(A13)>0,LEN(B13)>0),(C13+D13+E13)*F13+G13,\"\")","v":""},null,{"$f":"IF(AND(LEN(A13)>0,LEN(B13)>0),I13,\"\")","v":""},null,null,{"$f":"IF(AND(LEN(A13)>0,LEN(B13)>0),SUM(J13:L13),\"\")","v":""},null,null,null,null,null,null,null,null,{"$f":"IF(AND((A13)>0,(B13)>0),IF(H13-M13<0,N13+O13+P13+Q13++S13+T13-U13,H13-M13+N13+O13+P13+Q13+R13+S13-T13-U13),\"\")","v":""},null,null,null,null,null,{"$f":"IF(AND(LEN(A13)>0,LEN(B13)>0),IF((V13-(X13+Y13+Z13)-AA13)<0,0,V13-(X13+Y13+Z13)-AA13),\"\")","v":""}]
[null,null,null,null,null,{"$f":"IF(AND(LEN(A14)>0,LEN(B14)>0),0.95^14,\"\")","v":""},{"$f":"IF(AND(LEN(A14)>0,LEN(B14)>0),0,\"\")","v":""},{"$f":"IF(AND(LEN(A14)>0,LEN(B14)>0),(C14+D14+E14)*F14+G14,\"\")","v":""},null,{"$f":"IF(AND(LEN(A14)>0,LEN(B14)>0),I14,\"\")","v":""},null,null,{"$f":"IF(AND(LEN(A14)>0,LEN(B14)>0),SUM(J14:L14),\"\")","v":""},null,null,null,null,null,null,null,null,{"$f":"IF(AND((A14)>0,(B14)>0),IF(H14-M14<0,N14+O14+P14+Q14++S14+T14-U14,H14-M14+N14+O14+P14+Q14+R14+S14-T14-U14),\"\")","v":""},null,null,null,null,null,{"$f":"IF(AND(LEN(A14)>0,LEN(B14)>0),IF((V14-(X14+Y14+Z14)-AA14)<0,0,V14-(X14+Y14+Z14)-AA14),\"\")","v":""}]
[null,null,null,null,null,"","","",null,"",null,null,"",null,null,null,null,null,null,null,null,"",null,null,null,null,null,""]
[null,null,null,null,null,"","","",null,"",null,null,"",null,null,null,null,null,null,null,null,"",null,null,null,null,null,""]
[null,null,null,null,null,"","","",null,"",null,null,"",null,null,null,null,null,null,null,null,"",null,null,null,null,null,""]
[null,null,null,null,null,"","","",null,"",null,null,"",null,null,null,null,null,null,null,null,"",null,null,null,null,null,""]
[null,null,null,null,null,"","","",null,"",null,null,"",null,null,null,null,null,null,null,null,"",null,null,null,null,null,""]
[null,null,null,null,null,"","","",null,"",null,null,"",null,null,null,null,null,null,null,null,"",null,null,null,null,null,""]
[null,null,null,null,null,"","","",null,"",null,null,"",null,null,null,null,null,null,null,null,"",null,null,null,null,null,""]
[null,null,null,null,null,"","","",null,"",null,null,"",null,null,null,null,null,null,null,null,"",null,null,null,null,null,""]
[null,null,null,null,null,"","","",null,"",null,null,"",null,null,null,null,null,null,null,null,"",null,null,null,null,null,""]
[null,null,null,null,null,"","","",null,"",null,null,"",null,null,null,null,null,null,null,null,"",null,null,null,null,null,""]
[null,null,null,null,null,"","","",null,"",null,null,"",null,null,null,null,null,null,null,null,"",null,null,null,null,null,""]
[null,null,null,null,null,"","","",null,"",null,null,"",null,null,null,null,null,null,null,null,"",null,null,null,null,null,""]
[null,null,null,null,null,"","","",null,"",null,null,"",null,null,null,null,null,null,null,null,"",null,null,null,null,null,""]
[null,null,null,null,null,"","","",null,"",null,null,"",null,null,null,null,null,null,null,null,"",null,null,null,null,null,""]
[null,null,null,null,null,"","","",null,"",null,null,"",null,null,null,null,null,null,null,null,"",null,null,null,null,null,""]
[null,null,null,null,null,"","","",null,"",null,null,"",null,null,null,null,null,null,null,null,"",null,null,null,null,null,""]
[null,null,null,null,null,"","","",null,"",null,null,"",null,null,null,null,null,null,null,null,"",null,null,null,null,null,""]
[null,null,null,null,null,"","","",null,"",null,null,"",null,null,null,null,null,null,null,null,"",null,null,null,null,null,""]
[null,null,null,null,null,"","","",null,"",null,null,"",null,null,null,null,null,null,null,null,"",null,null,null,null,null,""]
[null,null,null,null,null,"","","",null,"",null,null,"",null,null,null,null,null,null,null,null,"",null,null,null,null,null,""]
[null,null,null,null,null,"","","",null,"",null,null,"",null,null,null,null,null,null,null,null,"",null,null,null,null,null,""]
[null,null,null,null,null,"","","",null,"",null,null,"",null,null,null,null,null,null,null,null,"",null,null,null,null,null,""]
[null,null,null,null,null,"","","",null,"",null,null,"",null,null,null,null,null,null,null,null,"",null,null,null,null,null,""]
[null,null,null,null,null,"","","",null,"",null,null,"",null,null,null,null,null,null,null,null,"",null,null,null,null,null,""]
[null,null,null,null,null,"","","",null,"",null,null,"",null,null,null,null,null,null,null,null,"",null,null,null,null,null,""]
[null,null,null,null,null,"","","",null,"",null,null,"",null,null,null,null,null,null,null,null,"",null,null,null,null,null,""]
[null,null,null,null,null,"","","",null,"",null,null,"",null,null,null,null,null,null,null,null,"",null,null,null,null,null,""]
[null,null,null,null,null,"","","",null,"",null,null,"",null,null,null,null,null,null,null,null,"",null,null,null,null,null,""]
[null,null,null,null,null,"","","",null,"",null,null,"",null,null,null,null,null,null,null,null,"",null,null,null,null,null,""]
[null,null,null,null,null,"","","",null,"",null,null,"",null,null,null,null,null,null,null,null,"",null,null,null,null,null,""]
[null,null,null,null,null,"","","",null,"",null,null,"",null,null,null,null,null,null,null,null,"",null,null,null,null,null,""]
[null,null,null,null,null,"","","",null,"",null,null,"",null,null,null,null,null,null,null,null,"",null,null,null,null,null,""]
[null,null,null,null,null,"","","",null,"",null,null,"",null,null,null,null,null,null,null,null,"",null,null,null,null,null,""]
[null,null,null,null,null,"","","",null,"",null,null,"",null,null,null,null,null,null,null,null,"",null,null,null,null,null,""]
[null,null,null,null,null,"","","",null,"",null,null,"",null,null,null,null,null,null,null,null,"",null,null,null,null,null,""]
[null,null,null,null,null,"","","",null,"",null,null,"",null,null,null,null,null,null,null,null,"",null,null,null,null,null,""]
[null,null,null,null,null,"","","",null,"",null,null,"",null,null,null,null,null,null,null,null,"",null,null,null,null,null,""]
[null,null,null,null,null,"","","",null,"",null,null,"",null,null,null,null,null,null,null,null,"",null,null,null,null,null,""]
[null,null,null,null,null,"","","",null,"",null,null,"",null,null,null,null,null,null,null,null,"",null,null,null,null,null,""]
[null,null,null,null,null,"","","",null,"",null,null,"",null,null,null,null,null,null,null,null,"",null,null,null,null,null,""]
[null,null,null,null,null,"","","",null,"",null,null,"",null,null,null,null,null,null,null,null,"",null,null,null,null,null,""]
[null,null,null,null,null,"","","",null,"",null,null,"",null,null,null,null,null,null,null,null,"",null,null,null,null,null,""]
[null,null,null,null,null,"","","",null,"",null,null,"",null,null,null,null,null,null,null,null,"",null,null,null,null,null,""]
[null,null,null,null,null,"","","",null,"",null,null,"",null,null,null,null,null,null,null,null,"",null,null,null,null,null,""]
[null,null,null,null,null,"","","",null,"",null,null,"",null,null,null,null,null,null,null,null,"",null,null,null,null,null,""]
[null,null,null,null,null,"","","",null,"",null,null,"",null,null,null,null,null,null,null,null,"",null,null,null,null,null,""]
[null,null,null,null,null,"","","",null,"",null,null,"",null,null,null,null,null,null,null,null,"",null,null,null,null,null,""]
[null,null,null,null,null,"","","",null,"",null,null,"",null,null,null,null,null,null,null,null,"",null,null,null,null,null,""]
[null,null,null,null,null,"","","",null,"",null,null,"",null,null,null,null,null,null,null,null,"",null,null,null,null,null,""]
[null,null,null,null,null,"","","",null,"",null,null,"",null,null,null,null,null,null,null,null,"",null,null,null,null,null,""]
[null,null,null,null,null,"","","",null,"",null,null,"",null,null,null,null,null,null,null,null,"",null,null,null,null,null,""]
[null,null,null,null,null,"","","",null,"",null,null,"",null,null,null,null,null,null,null,null,"",null,null,null,null,null,""]
[null,null,null,null,null,"","","",null,"",null,null,"",null,null,null,null,null,null,null,null,"",null,null,null,null,null,""]
[null,null,null,null,null,"","","",null,"",null,null,"",null,null,null,null,null,null,null,null,"",null,null,null,null,null,""]
[null,null,null,null,null,"","","",null,"",null,null,"",null,null,null,null,null,null,null,null,"",null,null,null,null,null,""]
[null,null,null,null,null,"","","",null,"",null,null,"",null,null,null,null,null,null,null,null,"",null,null,null,null,null,""]
[null,null,null,null,null,"","","",null,"",null,null,"",null,null,null,null,null,null,null,null,"",null,null,null,null,null,""]
[null,null,null,null,null,"","","",null,"",null,null,"",null,null,null,null,null,null,null,null,"",null,null,null,null,null,""]
[null,null,null,null,null,"","","",null,"",null,null,"",null,null,null,null,null,null,null,null,"",null,null,null,null,null,""]
[null,null,null,null,null,"","","",null,"",null,null,"",null,null,null,null,null,null,null,null,"",null,null,null,null,null,""]
[null,null,null,null,null,"","","",null,"",null,null,"",null,null,null,null,null,null,null,null,"",null,null,null,null,null,""]
[null,null,null,null,null,"","","",null,"",null,null,"",null,null,null,null,null,null,null,null,"",null,null,null,null,null,""]
[null,null,null,null,null,"","","",null,"",null,null,"",null,null,null,null,null,null,null,null,"",null,null,null,null,null,""]
[null,null,null,null,null,{"$f":"IF(AND(LEN(A78)>0,LEN(B78)>0),0.95^14,\"\")","v":""},{"$f":"IF(AND(LEN(A78)>0,LEN(B78)>0),0,\"\")","v":""},{"$f":"IF(AND(LEN(A78)>0,LEN(B78)>0),(C78+D78+E78)*F78+G78,\"\")","v":""},null,{"$f":"IF(AND(LEN(A78)>0,LEN(B78)>0),I78,\"\")","v":""},null,null,{"$f":"IF(AND(LEN(A78)>0,LEN(B78)>0),SUM(J78:L78),\"\")","v":""},null,null,null,null,null,null,null,null,{"$f":"IF(AND((A78)>0,(B78)>0),IF(H78-M78<0,N78+O78+P78+Q78++S78+T78-U78,H78-M78+N78+O78+P78+Q78+R78+S78-T78-U78),\"\")","v":""},null,null,null,null,null,{"$f":"IF(AND(LEN(A78)>0,LEN(B78)>0),IF((V78-(X78+Y78+Z78)-AA78)<0,0,V78-(X78+Y78+Z78)-AA78),\"\")","v":""}]
[null,null,null,null,null,"","","",null,"",null,null,"",null,null,null,null,null,null,null,null,"",null,null,null,null,null,""]
[null,null,null,null,null,"","","",null,"",null,null,"",null,null,null,null,null,null,null,null,"",null,null,null,null,null,""]
[null,null,null,null,null,"","","",null,"",null,null,"",null,null,null,null,null,null,null,null,"",null,null,null,null,null,""]
[null,null,null,null,null,"","","",null,"",null,null,"",null,null,null,null,null,null,null,null,"",null,null,null,null,null,""]
[null,null,null,null,null,"","","",null,"",null,null,"",null,null,null,null,null,null,null,null,"",null,null,null,null,null,""]
[null,null,null,null,null,"","","",null,"",null,null,"",null,null,null,null,null,null,null,null,"",null,null,null,null,null,""]
[null,null,null,null,null,"","","",null,"",null,null,"",null,null,null,null,null,null,null,null,"",null,null,null,null,null,""]
[null,null,null,null,null,"","","",null,"",null,null,"",null,null,null,null,null,null,null,null,"",null,null,null,null,null,""]
[null,null,null,null,null,"","","",null,"",null,null,"",null,null,null,null,null,null,null,null,"",null,null,null,null,null,""]
[null,null,null,null,null,"","","",null,"",null,null,"",null,null,null,null,null,null,null,null,"",null,null,null,null,null,""]
[null,null,null,null,null,"","","",null,"",null,null,"",null,null,null,null,null,null,null,null,"",null,null,null,null,null,""]
[null,null,null,null,null,"","","",null,"",null,null,"",null,null,null,null,null,null,null,null,"",null,null,null,null,null,""]
[null,null,null,null,null,"","","",null,"",null,null,"",null,null,null,null,null,null,null,null,"",null,null,null,null,null,""]
[null,null,null,null,null,"","","",null,"",null,null,"",null,null,null,null,null,null,null,null,"",null,null,null,null,null,""]
[null,null,null,null,null,"","","",null,"",null,null,"",null,null,null,null,null,null,null,null,"",null,null,null,null,null,""]
[null,null,null,null,null,"","","",null,"",null,null,"",null,null,null,null,null,null,null,null,"",null,null,null,null,null,""]
[null,null,null,null,null,"","","",null,"",null,null,"",null,null,null,null,null,null,null,null,"",null,null,null,null,null,""]
[null,null,null,null,null,"","","",null,"",null,null,"",null,null,null,null,null,null,null,null,"",null,null,null,null,null,""]
[null,null,null,null,null,"","","",null,"",null,null,"",null,null,null,null,null,null,null,null,"",null,null,null,null,null,""]
[null,null,null,null,null,"","","",null,"",null,null,"",null,null,null,null,null,null,null,null,"",null,null,null,null,null,""]
[null,null,null,null,null,"","","",null,"",null,null,"",null,null,null,null,null,null,null,null,"",null,null,null,null,null,""]
[null,null,null,null,null,"","","",null,"",null,null,"",null,null,null,null,null,null,null,null,"",null,null,null,null,null,""]
[null,null,null,null,null,"","","",null,"",null,null,"",null,null,null,null,null,null,null,null,"",null,null,null,null,null,""]
[null,null,null,null,null,"","","",null,"",null,null,"",null,null,null,null,null,null,null,null,"",null,null,null,null,null,""]
[null,null,null,null,null,"","","",null,"",null,null,"",null,null,null,null,null,null,null,null,"",null,null,null,null,null,""]
[null,null,null,null,null,"","","",null,"",null,null,"",null,null,null,null,null,null,null,null,"",null,null,null,null,null,""]
[null,null,null,null,null,"","","",null,"",null,null,"",null,null,null,null,null,null,null,null,"",null,null,null,null,null,""]
[null,null,null,null,null,"","","",null,"",null,null,"",null,null,null,null,null,null,null,null,"",null,null,null,null,null,""]
[null,null,null,null,null,"","","",null,"",null,null,"",null,null,null,null,null,null,null,null,"",null,null,null,null,null,""]
[null,null,null,null,null,"","","",null,"",null,null,"",null,null,null,null,null,null,null,null,"",null,null,null,null,null,""]
[null,null,null,null,null,"","","",null,"",null,null,"",null,null,null,null,null,null,null,null,"",null,null,null,null,null,""]
[null,null,null,null,null,"","","",null,"",null,null,"",null,null,null,null,null,null,null,null,"",null,null,null,null,null,""]
[null,null,null,null,null,"","","",null,"",null,null,"",null,null,null,null,null,null,null,null,"",null,null,null,null,null,""]
[null,null,null,null,null,"","","",null,"",null,null,"",null,null,null,null,null,null,null,null,"",null,null,null,null,null,""]
[null,null,null,null,null,"","","",null,"",null,null,"",null,null,null,null,null,null,null,null,"",null,null,null,null,null,""]
[null,null,null,null,null,"","","",null,"",null,null,"",null,null,null,null,null,null,null,null,"",null,null,null,null,null,""]
[null,null,null,null,null,"","","",null,"",null,null,"",null,null,null,null,null,null,null,null,"",null,null,null,null,null,""]
[null,null,null,null,null,"","","",null,"",null,null,"",null,null,null,null,null,null,null,null,"",null,null,null,null,null,""]
[null,null,null,null,null,"","","",null,"",null,null,"",null,null,null,null,null,null,null,null,"",null,null,null,null,null,""]
[null,null,null,null,null,"","","",null,"",null,null,"",null,null,null,null,null,null,null,null,"",null,null,null,null,null,""]
[null,null,null,null,null,"","","",null,"",null,null,"",null,null,null,null,null,null,null,null,"",null,null,null,null,null,""]
[null,null,null,null,null,"","","",null,"",null,null,"",null,null,null,null,null,null,null,null,"",null,null,null,null,null,""]
[null,null,null,null,null,"","","",null,"",null,null,"",null,null,null,null,null,null,null,null,"",null,null,null,null,null,""]
[null,null,null,null,null,"","","",null,"",null,null,"",null,null,null,null,null,null,null,null,"",null,null,null,null,null,""]
[null,null,null,null,null,"","","",null,"",null,null,"",null,null,null,null,null,null,null,null,"",null,null,null,null,null,""]
[null,null,null,null,null,"","","",null,"",null,null,"",null,null,null,null,null,null,null,null,"",null,null,null,null,null,""]
[null,null,null,null,null,"","","",null,"",null,null,"",null,null,null,null,null,null,null,null,"",null,null,null,null,null,""]
[null,null,null,null,null,"","","",null,"",null,null,"",null,null,null,null,null,null,null,null,"",null,null,null,null,null,""]
[null,null,null,null,null,"","","",null,"",null,null,"",null,null,null,null,null,null,null,null,"",null,null,null,null,null,""]
[null,null,null,null,null,"","","",null,"",null,null,"",null,null,null,null,null,null,null,null,"",null,null,null,null,null,""]
[null,null,null,null,null,"","","",null,"",null,null,"",null,null,null,null,null,null,null,null,"",null,null,null,null,null,""]
[null,null,null,null,null,"","","",null,"",null,null,"",null,null,null,null,null,null,null,null,"",null,null,null,null,null,""]
[null,null,null,null,null,"","","",null,"",null,null,"",null,null,null,null,null,null,null,null,"",null,null,null,null,null,""]
[null,null,null,null,null,"","","",null,"",null,null,"",null,null,null,null,null,null,null,null,"",null,null,null,null,null,""]
[null,null,null,null,null,"","","",null,"",null,null,"",null,null,null,null,null,null,null,null,"",null,null,null,null,null,""]
[null,null,null,null,null,"","","",null,"",null,null,"",null,null,null,null,null,null,null,null,"",null,null,null,null,null,""]
[null,null,null,null,null,"","","",null,"",null,null,"",null,null,null,null,null,null,null,null,"",null,null,null,null,null,""]
[null,null,null,null,null,"","","",null,"",null,null,"",null,null,null,null,null,null,null,null,"",null,null,null,null,null,""]
[null,null,null,null,null,"","","",null,"",null,null,"",null,null,null,null,null,null,null,null,"",null,null,null,null,null,""]
[null,null,null,null,null,"","","",null,"",null,null,"",null,null,null,null,null,null,null,null,"",null,null,null,null,null,""]
[null,null,null,null,null,"","","",null,"",null,null,"",null,null,null,null,null,null,null,null,"",null,null,null,null,null,""]
[null,null,null,null,null,"","","",null,"",null,null,"",null,null,null,null,null,null,null,null,"",null,null,null,null,null,""]
[null,null,null,null,null,"","","",null,"",null,null,"",null,null,null,null,null,null,null,null,"",null,null,null,null,null,""]
[null,null,null,null,null,{"$f":"IF(AND(LEN(A142)>0,LEN(B142)>0),0.95^14,\"\")","v":""},{"$f":"IF(AND(LEN(A142)>0,LEN(B142)>0),0,\"\")","v":""},{"$f":"IF(AND(LEN(A142)>0,LEN(B142)>0),(C142+D142+E142)*F142+G142,\"\")","v":""},null,{"$f":"IF(AND(LEN(A142)>0,LEN(B142)>0),I142,\"\")","v":""},null,null,{"$f":"IF(AND(LEN(A142)>0,LEN(B142)>0),SUM(J142:L142),\"\")","v":""},null,null,null,null,null,null,null,null,{"$f":"IF(AND((A142)>0,(B142)>0),IF(H142-M142<0,N142+O142+P142+Q142++S142+T142-U142,H142-M142+N142+O142+P142+Q142+R142+S142-T142-U142),\"\")","v":""},null,null,null,null,null,{"$f":"IF(AND(LEN(A142)>0,LEN(B142)>0),IF((V142-(X142+Y142+Z142)-AA142)<0,0,V142-(X142+Y142+Z142)-AA142),\"\")","v":""}]
[null,null,null,null,null,"","","",null,"",null,null,"",null,null,null,null,null,null,null,null,"",null,null,null,null,null,""]
[null,null,null,null,null,"","","",null,"",null,null,"",null,null,null,null,null,null,null,null,"",null,null,null,null,null,""]
[null,null,null,null,null,"","","",null,"",null,null,"",null,null,null,null,null,null,null,null,"",null,null,null,null,null,""]
[null,null,null,null,null,"","","",null,"",null,null,"",null,null,null,null,null,null,null,null,"",null,null,null,null,null,""]
[null,null,null,null,null,"","","",null,"",null,null,"",null,null,null,null,null,null,null,null,"",null,null,null,null,null,""]
[null,null,null,null,null,"","","",null,"",null,null,"",null,null,null,null,null,null,null,null,"",null,null,null,null,null,""]
[null,null,null,null,null,"","","",null,"",null,null,"",null,null,null,null,null,null,null,null,"",null,null,null,null,null,""]
[null,null,null,null,null,"","","",null,"",null,null,"",null,null,null,null,null,null,null,null,"",null,null,null,null,null,""]
[null,null,null,null,null,"","","",null,"",null,null,"",null,null,null,null,null,null,null,null,"",null,null,null,null,null,""]
[null,null,null,null,null,"","","",null,"",null,null,"",null,null,null,null,null,null,null,null,"",null,null,null,null,null,""]
[null,null,null,null,null,"","","",null,"",null,null,"",null,null,null,null,null,null,null,null,"",null,null,null,null,null,""]
[null,null,null,null,null,"","","",null,"",null,null,"",null,null,null,null,null,null,null,null,"",null,null,null,null,null,""]
[null,null,null,null,null,"","","",null,"",null,null,"",null,null,null,null,null,null,null,null,"",null,null,null,null,null,""]
[null,null,null,null,null,"","","",null,"",null,null,"",null,null,null,null,null,null,null,null,"",null,null,null,null,null,""]
[null,null,null,null,null,"","","",null,"",null,null,"",null,null,null,null,null,null,null,null,"",null,null,null,null,null,""]
[null,null,null,null,null,"","","",null,"",null,null,"",null,null,null,null,null,null,null,null,"",null,null,null,null,null,""]
[null,null,null,null,null,"","","",null,"",null,null,"",null,null,null,null,null,null,null,null,"",null,null,null,null,null,""]
[null,null,null,null,null,"","","",null,"",null,null,"",null,null,null,null,null,null,null,null,"",null,null,null,null,null,""]
[null,null,null,null,null,"","","",null,"",null,null,"",null,null,null,null,null,null,null,null,"",null,null,null,null,null,""]
[null,null,null,null,null,"","","",null,"",null,null,"",null,null,null,null,null,null,null,null,"",null,null,null,null,null,""]
[null,null,null,null,null,"","","",null,"",null,null,"",null,null,null,null,null,null,null,null,"",null,null,null,null,null,""]
[null,null,null,null,null,"","","",null,"",null,null,"",null,null,null,null,null,null,null,null,"",null,null,null,null,null,""]
[null,null,null,null,null,"","","",null,"",null,null,"",null,null,null,null,null,null,null,null,"",null,null,null,null,null,""]
[null,null,null,null,null,"","","",null,"",null,null,"",null,null,null,null,null,null,null,null,"",null,null,null,null,null,""]
[null,null,null,null,null,"","","",null,"",null,null,"",null,null,null,null,null,null,null,null,"",null,null,null,null,null,""]
[null,null,null,null,null,"","","",null,"",null,null,"",null,null,null,null,null,null,null,null,"",null,null,null,null,null,""]
[null,null,null,null,null,"","","",null,"",null,null,"",null,null,null,null,null,null,null,null,"",null,null,null,null,null,""]
[null,null,null,null,null,"","","",null,"",null,null,"",null,null,null,null,null,null,null,null,"",null,null,null,null,null,""]
[null,null,null,null,null,"","","",null,"",null,null,"",null,null,null,null,null,null,null,null,"",null,null,null,null,null,""]
[null,null,null,null,null,"","","",null,"",null,null,"",null,null,null,null,null,null,null,null,"",null,null,null,null,null,""]
[null,null,null,null,null,"","","",null,"",null,null,"",null,null,null,null,null,null,null,null,"",null,null,null,null,null,""]
[null,null,null,null,null,"","","",null,"",null,null,"",null,null,null,null,null,null,null,null,"",null,null,null,null,null,""]
[null,null,null,null,null,"","","",null,"",null,null,"",null,null,null,null,null,null,null,null,"",null,null,null,null,null,""]
[null,null,null,null,null,"","","",null,"",null,null,"",null,null,null,null,null,null,null,null,"",null,null,null,null,null,""]
[null,null,null,null,null,"","","",null,"",null,null,"",null,null,null,null,null,null,null,null,"",null,null,null,null,null,""]
[null,null,null,null,null,"","","",null,"",null,null,"",null,null,null,null,null,null,null,null,"",null,null,null,null,null,""]
[null,null,null,null,null,"","","",null,"",null,null,"",null,null,null,null,null,null,null,null,"",null,null,null,null,null,""]
[null,null,null,null,null,"","","",null,"",null,null,"",null,null,null,null,null,null,null,null,"",null,null,null,null,null,""]
[null,null,null,null,null,"","","",null,"",null,null,"",null,null,null,null,null,null,null,null,"",null,null,null,null,null,""]
[null,null,null,null,null,"","","",null,"",null,null,"",null,null,null,null,null,null,null,null,"",null,null,null,null,null,""]
[null,null,null,null,null,"","","",null,"",null,null,"",null,null,null,null,null,null,null,null,"",null,null,null,null,null,""]
[null,null,null,null,null,"","","",null,"",null,null,"",null,null,null,null,null,null,null,null,"",null,null,null,null,null,""]
[null,null,null,null,null,"","","",null,"",null,null,"",null,null,null,null,null,null,null,null,"",null,null,null,null,null,""]
[null,null,null,null,null,"","","",null,"",null,null,"",null,null,null,null,null,null,null,null,"",null,null,null,null,null,""]
[null,null,null,null,null,"","","",null,"",null,null,"",null,null,null,null,null,null,null,null,"",null,null,null,null,null,""]
[null,null,null,null,null,"","","",null,"",null,null,"",null,null,null,null,null,null,null,null,"",null,null,null,null,null,""]
[null,null,null,null,null,"","","",null,"",null,null,"",null,null,null,null,null,null,null,null,"",null,null,null,null,null,""]
[null,null,null,null,null,"","","",null,"",null,null,"",null,null,null,null,null,null,null,null,"",null,null,null,null,null,""]
[null,null,null,null,null,"","","",null,"",null,null,"",null,null,null,null,null,null,null,null,"",null,null,null,null,null,""]
[null,null,null,null,null,"","","",null,"",null,null,"",null,null,null,null,null,null,null,null,"",null,null,null,null,null,""]
[null,null,null,null,null,"","","",null,"",null,null,"",null,null,null,null,null,null,null,null,"",null,null,null,null,null,""]
[null,null,null,null,null,"","","",null,"",null,null,"",null,null,null,null,null,null,null,null,"",null,null,null,null,null,""]
[null,null,null,null,null,"","","",null,"",null,null,"",null,null,null,null,null,null,null,null,"",null,null,null,null,null,""]
[null,null,null,null,null,"","","",null,"",null,null,"",null,null,null,null,null,null,null,null,"",null,null,null,null,null,""]
[null,null,null,null,null,"","","",null,"",null,null,"",null,null,null,null,null,null,null,null,"",null,null,null,null,null,""]
[null,null,null,null,null,"","","",null,"",null,null,"",null,null,null,null,null,null,null,null,"",null,null,null,null,null,""]
[null,null,null,null,null,"","","",null,"",null,null,"",null,null,null,null,null,null,null,null,"",null,null,null,null,null,""]
[null,null,null,null,null,"","","",null,"",null,null,"",null,null,null,null,null,null,null,null,"",null,null,null,null,null,""]
[null,null,null,null,null,"","","",null,"",null,null,"",null,null,null,null,null,null,null,null,"",null,null,null,null,null,""]
[null,null,null,null,null,"","","",null,"",null,null,"",null,null,null,null,null,null,null,null,"",null,null,null,null,null,""]
[null,null,null,null,null,"","","",null,"",null,null,"",null,null,null,null,null,null,null,null,"",null,null,null,null,null,""]
[null,null,null,null,null,"","","",null,"",null,null,"",null,null,null,null,null,null,null,null,"",null,null,null,null,null,""]
[null,null,null,null,null,"","","",null,"",null,null,"",null,null,null,null,null,null,null,null,"",null,null,null,null,null,""]
[null,null,null,null,null,{"$f":"IF(AND(LEN(A206)>0,LEN(B206)>0),0.95^14,\"\")","v":""},{"$f":"IF(AND(LEN(A206)>0,LEN(B206)>0),0,\"\")","v":""},{"$f":"IF(AND(LEN(A206)>0,LEN(B206)>0),(C206+D206+E206)*F206+G206,\"\")","v":""},null,{"$f":"IF(AND(LEN(A206)>0,LEN(B206)>0),I206,\"\")","v":""},null,null,{"$f":"IF(AND(LEN(A206)>0,LEN(B206)>0),SUM(J206:L206),\"\")","v":""},null,null,null,null,null,null,null,null,{"$f":"IF(AND((A206)>0,(B206)>0),IF(H206-M206<0,N206+O206+P206+Q206++S206+T206-U206,H206-M206+N206+O206+P206+Q206+R206+S206-T206-U206),\"\")","v":""},null,null,null,null,null,{"$f":"IF(AND(LEN(A206)>0,LEN(B206)>0),IF((V206-(X206+Y206+Z206)-AA206)<0,0,V206-(X206+Y206+Z206)-AA206),\"\")","v":""}]
[null,null,null,null,null,"","","",null,"",null,null,"",null,null,null,null,null,null,null,null,"",null,null,null,null,null,""]
[null,null,null,null,null,"","","",null,"",null,null,"",null,null,null,null,null,null,null,null,"",null,null,null,null,null,""]
[null,null,null,null,null,"","","",null,"",null,null,"",null,null,null,null,null,null,null,null,"",null,null,null,null,null,""]
[null,null,null,null,null,"","","",null,"",null,null,"",null,null,null,null,null,null,null,null,"",null,null,null,null,null,""]
[null,null,null,null,null,"","","",null,"",null,null,"",null,null,null,null,null,null,null,null,"",null,null,null,null,null,""]
[null,null,null,null,null,"","","",null,"",null,null,"",null,null,null,null,null,null,null,null,"",null,null,null,null,null,""]
[null,null,null,null,null,"","","",null,"",null,null,"",null,null,null,null,null,null,null,null,"",null,null,null,null,null,""]
[null,null,null,null,null,"","","",null,"",null,null,"",null,null,null,null,null,null,null,null,"",null,null,null,null,null,""]
[null,null,null,null,null,"","","",null,"",null,null,"",null,null,null,null,null,null,null,null,"",null,null,null,null,null,""]
[null,null,null,null,null,"","","",null,"",null,null,"",null,null,null,null,null,null,null,null,"",null,null,null,null,null,""]
[null,null,null,null,null,"","","",null,"",null,null,"",null,null,null,null,null,null,null,null,"",null,null,null,null,null,""]
[null,null,null,null,null,"","","",null,"",null,null,"",null,null,null,null,null,null,null,null,"",null,null,null,null,null,""]
[null,null,null,null,null,"","","",null,"",null,null,"",null,null,null,null,null,null,null,null,"",null,null,null,null,null,""]
[null,null,null,null,null,"","","",null,"",null,null,"",null,null,null,null,null,null,null,null,"",null,null,null,null,null,""]
[null,null,null,null,null,"","","",null,"",null,null,"",null,null,null,null,null,null,null,null,"",null,null,null,null,null,""]
[null,null,null,null,null,"","","",null,"",null,null,"",null,null,null,null,null,null,null,null,"",null,null,null,null,null,""]
[null,null,null,null,null,"","","",null,"",null,null,"",null,null,null,null,null,null,null,null,"",null,null,null,null,null,""]
[null,null,null,null,null,"","","",null,"",null,null,"",null,null,null,null,null,null,null,null,"",null,null,null,null,null,""]
[null,null,null,null,null,"","","",null,"",null,null,"",null,null,null,null,null,null,null,null,"",null,null,null,null,null,""]
[null,null,null,null,null,"","","",null,"",null,null,"",null,null,null,null,null,null,null,null,"",null,null,null,null,null,""]
[null,null,null,null,null,"","","",null,"",null,null,"",null,null,null,null,null,null,null,null,"",null,null,null,null,null,""]
[null,null,null,null,null,"","","",null,"",null,null,"",null,null,null,null,null,null,null,null,"",null,null,null,null,null,""]
[null,null,null,null,null,"","","",null,"",null,null,"",null,null,null,null,null,null,null,null,"",null,null,null,null,null,""]
[null,null,null,null,null,"","","",null,"",null,null,"",null,null,null,null,null,null,null,null,"",null,null,null,null,null,""]
[null,null,null,null,null,"","","",null,"",null,null,"",null,null,null,null,null,null,null,null,"",null,null,null,null,null,""]
[null,null,null,null,null,"","","",null,"",null,null,"",null,null,null,null,null,null,null,null,"",null,null,null,null,null,""]
[null,null,null,null,null,"","","",null,"",null,null,"",null,null,null,null,null,null,null,null,"",null,null,null,null,null,""]
[null,null,null,null,null,"","","",null,"",null,null,"",null,null,null,null,null,null,null,null,"",null,null,null,null,null,""]
[null,null,null,null,null,"","","",null,"",null,null,"",null,null,null,null,null,null,null,null,"",null,null,null,null,null,""]
[null,null,null,null,null,"","","",null,"",null,null,"",null,null,null,null,null,null,null,null,"",null,null,null,null,null,""]
[null,null,null,null,null,"","","",null,"",null,null,"",null,null,null,null,null,null,null,null,"",null,null,null,null,null,""]
[null,null,null,null,null,"","","",null,"",null,null,"",null,null,null,null,null,null,null,null,"",null,null,null,null,null,""]
[null,null,null,null,null,"","","",null,"",null,null,"",null,null,null,null,null,null,null,null,"",null,null,null,null,null,""]
[null,null,null,null,null,"","","",null,"",null,null,"",null,null,null,null,null,null,null,null,"",null,null,null,null,null,""]
[null,null,null,null,null,"","","",null,"",null,null,"",null,null,null,null,null,null,null,null,"",null,null,null,null,null,""]
[null,null,null,null,null,"","","",null,"",null,null,"",null,null,null,null,null,null,null,null,"",null,null,null,null,null,""]
[null,null,null,null,null,"","","",null,"",null,null,"",null,null,null,null,null,null,null,null,"",null,null,null,null,null,""]
[null,null,null,null,null,"","","",null,"",null,null,"",null,null,null,null,null,null,null,null,"",null,null,null,null,null,""]
[null,null,null,null,null,"","","",null,"",null,null,"",null,null,null,null,null,null,null,null,"",null,null,null,null,null,""]
[null,null,null,null,null,"","","",null,"",null,null,"",null,null,null,null,null,null,null,null,"",null,null,null,null,null,""]
[null,null,null,null,null,"","","",null,"",null,null,"",null,null,null,null,null,null,null,null,"",null,null,null,null,null,""]
[null,null,null,null,null,"","","",null,"",null,null,"",null,null,null,null,null,null,null,null,"",null,null,null,null,null,""]
[null,null,null,null,null,"","","",null,"",null,null,"",null,null,null,null,null,null,null,null,"",null,null,null,null,null,""]
[null,null,null,null,null,"","","",null,"",null,null,"",null,null,null,null,null,null,null,null,"",null,null,null,null,null,""]
[null,null,null,null,null,"","","",null,"",null,null,"",null,null,null,null,null,null,null,null,"",null,null,null,null,null,""]
[null,null,null,null,null,"","","",null,"",null,null,"",null,null,null,null,null,null,null,null,"",null,null,null,null,null,""]
[null,null,null,null,null,"","","",null,"",null,null,"",null,null,null,null,null,null,null,null,"",null,null,null,null,null,""]
[null,null,null,null,null,"","","",null,"",null,null,"",null,null,null,null,null,null,null,null,"",null,null,null,null,null,""]
[null,null,null,null,null,"","","",null,"",null,null,"",null,null,null,null,null,null,null,null,"",null,null,null,null,null,""]
[null,null,null,null,null,"","","",null,"",null,null,"",null,null,null,null,null,null,null,null,"",null,null,null,null,null,""]
[null,null,null,null,null,"","","",null,"",null,null,"",null,null,null,null,null,null,null,null,"",null,null,null,null,null,""]
[null,null,null,null,null,"","","",null,"",null,null,"",null,null,null,null,null,null,null,null,"",null,null,null,null,null,""]
[null,null,null,null,null,"","","",null,"",null,null,"",null,null,null,null,null,null,null,null,"",null,null,null,null,null,""]
[null,null,null,null,null,"","","",null,"",null,null,"",null,null,null,null,null,null,null,null,"",null,null,null,null,null,""]
[null,null,null,null,null,"","","",null,"",null,null,"",null,null,null,null,null,null,null,null,"",null,null,null,null,null,""]
[null,null,null,null,null,"","","",null,"",null,null,"",null,null,null,null,null,null,null,null,"",null,null,null,null,null,""]
[null,null,null,null,null,"","","",null,"",null,null,"",null,null,null,null,null,null,null,null,"",null,null,null,null,null,""]
[null,null,null,null,null,"","","",null,"",null,null,"",null,null,null,null,null,null,null,null,"",null,null,null,null,null,""]
[null,null,null,null,null,"","","",null,"",null,null,"",null,null,null,null,null,null,null,null,"",null,null,null,null,null,""]
[null,null,null,null,null,"","","",null,"",null,null,"",null,null,null,null,null,null,null,null,"",null,null,null,null,null,""]
[null,null,null,null,null,"","","",null,"",null,null,"",null,null,null,null,null,null,null,null,"",null,null,null,null,null,""]
[null,null,null,null,null,"","","",null,"",null,null,"",null,null,null,null,null,null,null,null,"",null,null,null,null,null,""]
[null,null,null,null,null,"","","",null,"",null,null,"",null,null,null,null,null,null,null,null,"",null,null,null,null,null,""]
[null,null,null,null,null,{"$f":"IF(AND(LEN(A270)>0,LEN(B270)>0),0.95^14,\"\")","v":""},{"$f":"IF(AND(LEN(A270)>0,LEN(B270)>0),0,\"\")","v":""},{"$f":"IF(AND(LEN(A270)>0,LEN(B270)>0),(C270+D270+E270)*F270+G270,\"\")","v":""},null,{"$f":"IF(AND(LEN(A270)>0,LEN(B270)>0),I270,\"\")","v":""},null,null,{"$f":"IF(AND(LEN(A270)>0,LEN(B270)>0),SUM(J270:L270),\"\")","v":""},null,null,null,null,null,null,null,null,{"$f":"IF(AND((A270)>0,(B270)>0),IF(H270-M270<0,N270+O270+P270+Q270++S270+T270-U270,H270-M270+N270+O270+P270+Q270+R270+S270-T270-U270),\"\")","v":""},null,null,null,null,null,{"$f":"IF(AND(LEN(A270)>0,LEN(B270)>0),IF((V270-(X270+Y270+Z270)-AA270)<0,0,V270-(X270+Y270+Z270)-AA270),\"\")","v":""}]
[null,null,null,null,null,"","","",null,"",null,null,"",null,null,null,null,null,null,null,null,"",null,null,null,null,null,""]
[null,null,null,null,null,"","","",null,"",null,null,"",null,null,null,null,null,null,null,null,"",null,null,null,null,null,""]
[null,null,null,null,null,"","","",null,"",null,null,"",null,null,null,null,null,null,null,null,"",null,null,null,null,null,""]
[null,null,null,null,null,"","","",null,"",null,null,"",null,null,null,null,null,null,null,null,"",null,null,null,null,null,""]
[null,null,null,null,null,"","","",null,"",null,null,"",null,null,null,null,null,null,null,null,"",null,null,null,null,null,""]
[null,null,null,null,null,"","","",null,"",null,null,"",null,null,null,null,null,null,null,null,"",null,null,null,null,null,""]
[null,null,null,null,null,"","","",null,"",null,null,"",null,null,null,null,null,null,null,null,"",null,null,null,null,null,""]
[null,null,null,null,null,"","","",null,"",null,null,"",null,null,null,null,null,null,null,null,"",null,null,null,null,null,""]
[null,null,null,null,null,"","","",null,"",null,null,"",null,null,null,null,null,null,null,null,"",null,null,null,null,null,""]
[null,null,null,null,null,"","","",null,"",null,null,"",null,null,null,null,null,null,null,null,"",null,null,null,null,null,""]
[null,null,null,null,null,"","","",null,"",null,null,"",null,null,null,null,null,null,null,null,"",null,null,null,null,null,""]
[null,null,null,null,null,"","","",null,"",null,null,"",null,null,null,null,null,null,null,null,"",null,null,null,null,null,""]
[null,null,null,null,null,"","","",null,"",null,null,"",null,null,null,null,null,null,null,null,"",null,null,null,null,null,""]
[null,null,null,null,null,"","","",null,"",null,null,"",null,null,null,null,null,null,null,null,"",null,null,null,null,null,""]
[null,null,null,null,null,"","","",null,"",null,null,"",null,null,null,null,null,null,null,null,"",null,null,null,null,null,""]
[null,null,null,null,null,"","","",null,"",null,null,"",null,null,null,null,null,null,null,null,"",null,null,null,null,null,""]
[null,null,null,null,null,"","","",null,"",null,null,"",null,null,null,null,null,null,null,null,"",null,null,null,null,null,""]
[null,null,null,null,null,"","","",null,"",null,null,"",null,null,null,null,null,null,null,null,"",null,null,null,null,null,""]
[null,null,null,null,null,"","","",null,"",null,null,"",null,null,null,null,null,null,null,null,"",null,null,null,null,null,""]
[null,null,null,null,null,"","","",null,"",null,null,"",null,null,null,null,null,null,null,null,"",null,null,null,null,null,""]
[null,null,null,null,null,"","","",null,"",null,null,"",null,null,null,null,null,null,null,null,"",null,null,null,null,null,""]
[null,null,null,null,null,"","","",null,"",null,null,"",null,null,null,null,null,null,null,null,"",null,null,null,null,null,""]
[null,null,null,null,null,"","","",null,"",null,null,"",null,null,null,null,null,null,null,null,"",null,null,null,null,null,""]
[null,null,null,null,null,"","","",null,"",null,null,"",null,null,null,null,null,null,null,null,"",null,null,null,null,null,""]
[null,null,null,null,null,"","","",null,"",null,null,"",null,null,null,null,null,null,null,null,"",null,null,null,null,null,""]
[null,null,null,null,null,"","","",null,"",null,null,"",null,null,null,null,null,null,null,null,"",null,null,null,null,null,""]
[null,null,null,null,null,"","","",null,"",null,null,"",null,null,null,null,null,null,null,null,"",null,null,null,null,null,""]
[null,null,null,null,null,"","","",null,"",null,null,"",null,null,null,null,null,null,null,null,"",null,null,null,null,null,""]
[null,null,null,null,null,"","","",null,"",null,null,"",null,null,null,null,null,null,null,null,"",null,null,null,null,null,""]
[null,null,null,null,null,"","","",null,"",null,null,"",null,null,null,null,null,null,null,null,"",null,null,null,null,null,""]
[null,null,null,null,null,"","","",null,"",null,null,"",null,null,null,null,null,null,null,null,"",null,null,null,null,null,""]
[null,null,null,null,null,"","","",null,"",null,null,"",null,null,null,null,null,null,null,null,"",null,null,null,null,null,""]
[null,null,null,null,null,"","","",null,"",null,null,"",null,null,null,null,null,null,null,null,"",null,null,null,null,null,""]
[null,null,null,null,null,"","","",null,"",null,null,"",null,null,null,null,null,null,null,null,"",null,null,null,null,null,""]
[null,null,null,null,null,"","","",null,"",null,null,"",null,null,null,null,null,null,null,null,"",null,null,null,null,null,""]
[null,null,null,null,null,"","","",null,"",null,null,"",null,null,null,null,null,null,null,null,"",null,null,null,null,null,""]
[null,null,null,null,null,"","","",null,"",null,null,"",null,null,null,null,null,null,null,null,"",null,null,null,null,null,""]
[null,null,null,null,null,"","","",null,"",null,null,"",null,null,null,null,null,null,null,null,"",null,null,null,null,null,""]
[null,null,null,null,null,"","","",null,"",null,null,"",null,null,null,null,null,null,null,null,"",null,null,null,null,null,""]
[null,null,null,null,null,"","","",null,"",null,null,"",null,null,null,null,null,null,null,null,"",null,null,null,null,null,""]
[null,null,null,null,null,"","","",null,"",null,null,"",null,null,null,null,null,null,null,null,"",null,null,null,null,null,""]
[null,null,null,null,null,"","","",null,"",null,null,"",null,null,null,null,null,null,null,null,"",null,null,null,null,null,""]
[null,null,null,null,null,"","","",null,"",null,null,"",null,null,null,null,null,null,null,null,"",null,null,null,null,null,""]
[null,null,null,null,null,"","","",null,"",null,null,"",null,null,null,null,null,null,null,null,"",null,null,null,null,null,""]
[null,null,null,null,null,"","","",null,"",null,null,"",null,null,null,null,null,null,null,null,"",null,null,null,null,null,""]
[null,null,null,null,null,"","","",null,"",null,null,"",null,null,null,null,null,null,null,null,"",null,null,null,null,null,""]
[null,null,null,null,null,"","","",null,"",null,null,"",null,null,null,null,null,null,null,null,"",null,null,null,null,null,""]
[null,null,null,null,null,"","","",null,"",null,null,"",null,null,null,null,null,null,null,null,"",null,null,null,null,null,""]
[null,null,null,null,null,"","","",null,"",null,null,"",null,null,null,null,null,null,null,null,"",null,null,null,null,null,""]
[null,null,null,null,null,"","","",null,"",null,null,"",null,null,null,null,null,null,null,null,"",null,null,null,null,null,""]
[null,null,null,null,null,"","","",null,"",null,null,"",null,null,null,null,null,null,null,null,"",null,null,null,null,null,""]
[null,null,null,null,null,"","","",null,"",null,null,"",null,null,null,null,null,null,null,null,"",null,null,null,null,null,""]
[null,null,null,null,null,"","","",null,"",null,null,"",null,null,null,null,null,null,null,null,"",null,null,null,null,null,""]
[null,null,null,null,null,"","","",null,"",null,null,"",null,null,null,null,null,null,null,null,"",null,null,null,null,null,""]
[null,null,null,null,null,"","","",null,"",null,null,"",null,null,null,null,null,null,null,null,"",null,null,null,null,null,""]
[null,null,null,null,null,"","","",null,"",null,null,"",null,null,null,null,null,null,null,null,"",null,null,null,null,null,""]
[null,null,null,null,null,"","","",null,"",null,null,"",null,null,null,null,null,null,null,null,"",null,null,null,null,null,""]
[null,null,null,null,null,"","","",null,"",null,null,"",null,null,null,null,null,null,null,null,"",null,null,null,null,null,""]
[null,null,null,null,null,"","","",null,"",null,null,"",null,null,null,null,null,null,null,null,"",null,null,null,null,null,""]
[null,null,null,null,null,"","","",null,"",null,null,"",null,null,null,null,null,null,null,null,"",null,null,null,null,null,""]
[null,null,null,null,null,"","","",null,"",null,null,"",null,null,null,null,null,null,null,null,"",null,null,null,null,null,""]
[null,null,null,null,null,"","","",null,"",null,null,"",null,null,null,null,null,null,null,null,"",null,null,null,null,null,""]
[null,null,null,null,null,"","","",null,"",null,null,"",null,null,null,null,null,null,null,null,"",null,null,null,null,null,""]
[null,null,null,null,null,{"$f":"IF(AND(LEN(A334)>0,LEN(B334)>0),0.95^14,\"\")","v":""},{"$f":"IF(AND(LEN(A334)>0,LEN(B334)>0),0,\"\")","v":""},{"$f":"IF(AND(LEN(A334)>0,LEN(B334)>0),(C334+D334+E334)*F334+G334,\"\")","v":""},null,{"$f":"IF(AND(LEN(A334)>0,LEN(B334)>0),I334,\"\")","v":""},null,null,{"$f":"IF(AND(LEN(A334)>0,LEN(B334)>0),SUM(J334:L334),\"\")","v":""},null,null,null,null,null,null,null,null,{"$f":"IF(AND((A334)>0,(B334)>0),IF(H334-M334<0,N334+O334+P334+Q334++S334+T334-U334,H334-M334+N334+O334+P334+Q334+R334+S334-T334-U334),\"\")","v":""},null,null,null,null,null,{"$f":"IF(AND(LEN(A334)>0,LEN(B334)>0),IF((V334-(X334+Y334+Z334)-AA334)<0,0,V334-(X334+Y334+Z334)-AA334),\"\")","v":""}]
[null,null,null,null,null,"","","",null,"",null,null,"",null,null,null,null,null,null,null,null,"",null,null,null,null,null,""]
[null,null,null,null,null,"","","",null,"",null,null,"",null,null,null,null,null,null,null,null,"",null,null,null,null,null,""]
[null,null,null,null,null,"","","",null,"",null,null,"",null,null,null,null,null,null,null,null,"",null,null,null,null,null,""]
[null,null,null,null,null,"","","",null,"",null,null,"",null,null,null,null,null,null,null,null,"",null,null,null,null,null,""]
[null,null,null,null,null,"","","",null,"",null,null,"",null,null,null,null,null,null,null,null,"",null,null,null,null,null,""]
[null,null,null,null,null,"","","",null,"",null,null,"",null,null,null,null,null,null,null,null,"",null,null,null,null,null,""]
[null,null,null,null,null,"","","",null,"",null,null,"",null,null,null,null,null,null,null,null,"",null,null,null,null,null,""]
[null,null,null,null,null,"","","",null,"",null,null,"",null,null,null,null,null,null,null,null,"",null,null,null,null,null,""]
[null,null,null,null,null,"","","",null,"",null,null,"",null,null,null,null,null,null,null,null,"",null,null,null,null,null,""]
[null,null,null,null,null,"","","",null,"",null,null,"",null,null,null,null,null,null,null,null,"",null,null,null,null,null,""]
[null,null,null,null,null,"","","",null,"",null,null,"",null,null,null,null,null,null,null,null,"",null,null,null,null,null,""]
[null,null,null,null,null,"","","",null,"",null,null,"",null,null,null,null,null,null,null,null,"",null,null,null,null,null,""]
[null,null,null,null,null,"","","",null,"",null,null,"",null,null,null,null,null,null,null,null,"",null,null,null,null,null,""]
[null,null,null,null,null,"","","",null,"",null,null,"",null,null,null,null,null,null,null,null,"",null,null,null,null,null,""]
[null,null,null,null,null,"","","",null,"",null,null,"",null,null,null,null,null,null,null,null,"",null,null,null,null,null,""]
[null,null,null,null,null,"","","",null,"",null,null,"",null,null,null,null,null,null,null,null,"",null,null,null,null,null,""]
[null,null,null,null,null,"","","",null,"",null,null,"",null,null,null,null,null,null,null,null,"",null,null,null,null,null,""]
[null,null,null,null,null,"","","",null,"",null,null,"",null,null,null,null,null,null,null,null,"",null,null,null,null,null,""]
[null,null,null,null,null,"","","",null,"",null,null,"",null,null,null,null,null,null,null,null,"",null,null,null,null,null,""]
[null,null,null,null,null,"","","",null,"",null,null,"",null,null,null,null,null,null,null,null,"",null,null,null,null,null,""]
[null,null,null,null,null,"","","",null,"",null,null,"",null,null,null,null,null,null,null,null,"",null,null,null,null,null,""]
[null,null,null,null,null,"","","",null,"",null,null,"",null,null,null,null,null,null,null,null,"",null,null,null,null,null,""]
[null,null,null,null,null,"","","",null,"",null,null,"",null,null,null,null,null,null,null,null,"",null,null,null,null,null,""]
[null,null,null,null,null,"","","",null,"",null,null,"",null,null,null,null,null,null,null,null,"",null,null,null,null,null,""]
[null,null,null,null,null,"","","",null,"",null,null,"",null,null,null,null,null,null,null,null,"",null,null,null,null,null,""]
[null,null,null,null,null,"","","",null,"",null,null,"",null,null,null,null,null,null,null,null,"",null,null,null,null,null,""]
[null,null,null,null,null,"","","",null,"",null,null,"",null,null,null,null,null,null,null,null,"",null,null,null,null,null,""]
[null,null,null,null,null,"","","",null,"",null,null,"",null,null,null,null,null,null,null,null,"",null,null,null,null,null,""]
[null,null,null,null,null,"","","",null,"",null,null,"",null,null,null,null,null,null,null,null,"",null,null,null,null,null,""]
[null,null,null,null,null,"","","",null,"",null,null,"",null,null,null,null,null,null,null,null,"",null,null,null,null,null,""]
[null,null,null,null,null,"","","",null,"",null,null,"",null,null,null,null,null,null,null,null,"",null,null,null,null,null,""]
[null,null,null,null,null,"","","",null,"",null,null,"",null,null,null,null,null,null,null,null,"",null,null,null,null,null,""]
[null,null,null,null,null,"","","",null,"",null,null,"",null,null,null,null,null,null,null,null,"",null,null,null,null,null,""]
[null,null,null,null,null,"","","",null,"",null,null,"",null,null,null,null,null,null,null,null,"",null,null,null,null,null,""]
[null,null,null,null,null,"","","",null,"",null,null,"",null,null,null,null,null,null,null,null,"",null,null,null,null,null,""]
[null,null,null,null,null,"","","",null,"",null,null,"",null,null,null,null,null,null,null,null,"",null,null,null,null,null,""]
[null,null,null,null,null,"","","",null,"",null,null,"",null,null,null,null,null,null,null,null,"",null,null,null,null,null,""]
[null,null,null,null,null,"","","",null,"",null,null,"",null,null,null,null,null,null,null,null,"",null,null,null,null,null,""]
[null,null,null,null,null,"","","",null,"",null,null,"",null,null,null,null,null,null,null,null,"",null,null,null,null,null,""]
[null,null,null,null,null,"","","",null,"",null,null,"",null,null,null,null,null,null,null,null,"",null,null,null,null,null,""]
[null,null,null,null,null,"","","",null,"",null,null,"",null,null,null,null,null,null,null,null,"",null,null,null,null,null,""]
[null,null,null,null,null,"","","",null,"",null,null,"",null,null,null,null,null,null,null,null,"",null,null,null,null,null,""]
[null,null,null,null,null,"","","",null,"",null,null,"",null,null,null,null,null,null,null,null,"",null,null,null,null,null,""]
[null,null,null,null,null,"","","",null,"",null,null,"",null,null,null,null,null,null,null,null,"",null,null,null,null,null,""]
[null,null,null,null,null,"","","",null,"",null,null,"",null,null,null,null,null,null,null,null,"",null,null,null,null,null,""]
[null,null,null,null,null,"","","",null,"",null,null,"",null,null,null,null,null,null,null,null,"",null,null,null,null,null,""]
[null,null,null,null,null,"","","",null,"",null,null,"",null,null,null,null,null,null,null,null,"",null,null,null,null,null,""]
[null,null,null,null,null,"","","",null,"",null,null,"",null,null,null,null,null,null,null,null,"",null,null,null,null,null,""]
[null,null,null,null,null,"","","",null,"",null,null,"",null,null,null,null,null,null,null,null,"",null,null,null,null,null,""]
[null,null,null,null,null,"","","",null,"",null,null,"",null,null,null,null,null,null,null,null,"",null,null,null,null,null,""]
[null,null,null,null,null,"","","",null,"",null,null,"",null,null,null,null,null,null,null,null,"",null,null,null,null,null,""]
[null,null,null,null,null,"","","",null,"",null,null,"",null,null,null,null,null,null,null,null,"",null,null,null,null,null,""]
[null,null,null,null,null,"","","",null,"",null,null,"",null,null,null,null,null,null,null,null,"",null,null,null,null,null,""]
[null,null,null,null,null,"","","",null,"",null,null,"",null,null,null,null,null,null,null,null,"",null,null,null,null,null,""]
[null,null,null,null,null,"","","",null,"",null,null,"",null,null,null,null,null,null,null,null,"",null,null,null,null,null,""]
[null,null,null,null,null,"","","",null,"",null,null,"",null,null,null,null,null,null,null,null,"",null,null,null,null,null,""]
[null,null,null,null,null,"","","",null,"",null,null,"",null,null,null,null,null,null,null,null,"",null,null,null,null,null,""]
[null,null,null,null,null,"","","",null,"",null,null,"",null,null,null,null,null,null,null,null,"",null,null,null,null,null,""]
[null,null,null,null,null,"","","",null,"",null,null,"",null,null,null,null,null,null,null,null,"",null,null,null,null,null,""]
[null,null,null,null,null,"","","",null,"",null,null,"",null,null,null,null,null,null,null,null,"",null,null,null,null,null,""]
[null,null,null,null,null,"","","",null,"",null,null,"",null,null,null,null,null,null,null,null,"",null,null,null,null,null,""]
[null,null,null,null,null,"","","",null,"",null,null,"",null,null,null,null,null,null,null,null,"",null,null,null,null,null,""]
[null,null,null,null,null,"","","",null,"",null,null,"",null,null,null,null,null,null,null,null,"",null,null,null,null,null,""]
[null,null,null,null,null,{"$f":"IF(AND(LEN(A398)>0,LEN(B398)>0),0.95^14,\"\")","v":""},{"$f":"IF(AND(LEN(A398)>0,LEN(B398)>0),0,\"\")","v":""},{"$f":"IF(AND(LEN(A398)>0,LEN(B398)>0),(C398+D398+E398)*F398+G398,\"\")","v":""},null,{"$f":"IF(AND(LEN(A398)>0,LEN(B398)>0),I398,\"\")","v":""},null,null,{"$f":"IF(AND(LEN(A398)>0,LEN(B398)>0),SUM(J398:L398),\"\")","v":""},null,null,null,null,null,null,null,null,{"$f":"IF(AND((A398)>0,(B398)>0),IF(H398-M398<0,N398+O398+P398+Q398++S398+T398-U398,H398-M398+N398+O398+P398+Q398+R398+S398-T398-U398),\"\")","v":""},null,null,null,null,null,{"$f":"IF(AND(LEN(A398)>0,LEN(B398)>0),IF((V398-(X398+Y398+Z398)-AA398)<0,0,V398-(X398+Y398+Z398)-AA398),\"\")","v":""}]
[null,null,null,null,null,"","","",null,"",null,null,"",null,null,null,null,null,null,null,null,"",null,null,null,null,null,""]
[null,null,null,null,null,"","","",null,"",null,null,"",null,null,null,null,null,null,null,null,"",null,null,null,null,null,""]
[null,null,null,null,null,"","","",null,"",null,null,"",null,null,null,null,null,null,null,null,"",null,null,null,null,null,""]
[null,null,null,null,null,"","","",null,"",null,null,"",null,null,null,null,null,null,null,null,"",null,null,null,null,null,""]
[null,null,null,null,null,"","","",null,"",null,null,"",null,null,null,null,null,null,null,null,"",null,null,null,null,null,""]
[null,null,null,null,null,"","","",null,"",null,null,"",null,null,null,null,null,null,null,null,"",null,null,null,null,null,""]
[null,null,null,null,null,"","","",null,"",null,null,"",null,null,null,null,null,null,null,null,"",null,null,null,null,null,""]
[null,null,null,null,null,"","","",null,"",null,null,"",null,null,null,null,null,null,null,null,"",null,null,null,null,null,""]
[null,null,null,null,null,"","","",null,"",null,null,"",null,null,null,null,null,null,null,null,"",null,null,null,null,null,""]
[null,null,null,null,null,"","","",null,"",null,null,"",null,null,null,null,null,null,null,null,"",null,null,null,null,null,""]
[null,null,null,null,null,"","","",null,"",null,null,"",null,null,null,null,null,null,null,null,"",null,null,null,null,null,""]
[null,null,null,null,null,"","","",null,"",null,null,"",null,null,null,null,null,null,null,null,"",null,null,null,null,null,""]
[null,null,null,null,null,"","","",null,"",null,null,"",null,null,null,null,null,null,null,null,"",null,null,null,null,null,""]
[null,null,null,null,null,"","","",null,"",null,null,"",null,null,null,null,null,null,null,null,"",null,null,null,null,null,""]
[null,null,null,null,null,"","","",null,"",null,null,"",null,null,null,null,null,null,null,null,"",null,null,null,null,null,""]
[null,null,null,null,null,"","","",null,"",null,null,"",null,null,null,null,null,null,null,null,"",null,null,null,null,null,""]
[null,null,null,null,null,"","","",null,"",null,null,"",null,null,null,null,null,null,null,null,"",null,null,null,null,null,""]
[null,null,null,null,null,"","","",null,"",null,null,"",null,null,null,null,null,null,null,null,"",null,null,null,null,null,""]
[null,null,null,null,null,"","","",null,"",null,null,"",null,null,null,null,null,null,null,null,"",null,null,null,null,null,""]
[null,null,null,null,null,"","","",null,"",null,null,"",null,null,null,null,null,null,null,null,"",null,null,null,null,null,""]
[null,null,null,null,null,"","","",null,"",null,null,"",null,null,null,null,null,null,null,null,"",null,null,null,null,null,""]
[null,null,null,null,null,"","","",null,"",null,null,"",null,null,null,null,null,null,null,null,"",null,null,null,null,null,""]
[null,null,null,null,null,"","","",null,"",null,null,"",null,null,null,null,null,null,null,null,"",null,null,null,null,null,""]
[null,null,null,null,null,"","","",null,"",null,null,"",null,null,null,null,null,null,null,null,"",null,null,null,null,null,""]
[null,null,null,null,null,"","","",null,"",null,null,"",null,null,null,null,null,null,null,null,"",null,null,null,null,null,""]
[null,null,null,null,null,"","","",null,"",null,null,"",null,null,null,null,null,null,null,null,"",null,null,null,null,null,""]
[null,null,null,null,null,"","","",null,"",null,null,"",null,null,null,null,null,null,null,null,"",null,null,null,null,null,""]
[null,null,null,null,null,"","","",null,"",null,null,"",null,null,null,null,null,null,null,null,"",null,null,null,null,null,""]
[null,null,null,null,null,"","","",null,"",null,null,"",null,null,null,null,null,null,null,null,"",null,null,null,null,null,""]
[null,null,null,null,null,"","","",null,"",null,null,"",null,null,null,null,null,null,null,null,"",null,null,null,null,null,""]
[null,null,null,null,null,"","","",null,"",null,null,"",null,null,null,null,null,null,null,null,"",null,null,null,null,null,""]
[null,null,null,null,null,"","","",null,"",null,null,"",null,null,null,null,null,null,null,null,"",null,null,null,null,null,""]
[null,null,null,null,null,"","","",null,"",null,null,"",null,null,null,null,null,null,null,null,"",null,null,null,null,null,""]
[null,null,null,null,null,"","","",null,"",null,null,"",null,null,null,null,null,null,null,null,"",null,null,null,null,null,""]
[null,null,null,null,null,"","","",null,"",null,null,"",null,null,null,null,null,null,null,null,"",null,null,null,null,null,""]
[null,null,null,null,null,"","","",null,"",null,null,"",null,null,null,null,null,null,null,null,"",null,null,null,null,null,""]
[null,null,null,null,null,"","","",null,"",null,null,"",null,null,null,null,null,null,null,null,"",null,null,null,null,null,""]
[null,null,null,null,null,"","","",null,"",null,null,"",null,null,null,null,null,null,null,null,"",null,null,null,null,null,""]
[null,null,null,null,null,"","","",null,"",null,null,"",null,null,null,null,null,null,null,null,"",null,null,null,null,null,""]
[null,null,null,null,null,"","","",null,"",null,null,"",null,null,null,null,null,null,null,null,"",null,null,null,null,null,""]
[null,null,null,null,null,"","","",null,"",null,null,"",null,null,null,null,null,null,null,null,"",null,null,null,null,null,""]
[null,null,null,null,null,"","","",null,"",null,null,"",null,null,null,null,null,null,null,null,"",null,null,null,null,null,""]
[null,null,null,null,null,"","","",null,"",null,null,"",null,null,null,null,null,null,null,null,"",null,null,null,null,null,""]
[null,null,null,null,null,"","","",null,"",null,null,"",null,null,null,null,null,null,null,null,"",null,null,null,null,null,""]
[null,null,null,null,null,"","","",null,"",null,null,"",null,null,null,null,null,null,null,null,"",null,null,null,null,null,""]
[null,null,null,null,null,"","","",null,"",null,null,"",null,null,null,null,null,null,null,null,"",null,null,null,null,null,""]
[null,null,null,null,null,"","","",null,"",null,null,"",null,null,null,null,null,null,null,null,"",null,null,null,null,null,""]
[null,null,null,null,null,"","","",null,"",null,null,"",null,null,null,null,null,null,null,null,"",null,null,null,null,null,""]
[null,null,null,null,null,"","","",null,"",null,null,"",null,null,null,null,null,null,null,null,"",null,null,null,null,null,""]
[null,null,null,null,null,"","","",null,"",null,null,"",null,null,null,null,null,null,null,null,"",null,null,null,null,null,""]
[null,null,null,null,null,"","","",null,"",null,null,"",null,null,null,null,null,null,null,null,"",null,null,null,null,null,""]
[null,null,null,null,null,"","","",null,"",null,null,"",null,null,null,null,null,null,null,null,"",null,null,null,null,null,""]
[null,null,null,null,null,"","","",null,"",null,null,"",null,null,null,null,null,null,null,null,"",null,null,null,null,null,""]
[null,null,null,null,null,"","","",null,"",null,null,"",null,null,null,null,null,null,null,null,"",null,null,null,null,null,""]
[null,null,null,null,null,"","","",null,"",null,null,"",null,null,null,null,null,null,null,null,"",null,null,null,null,null,""]
[null,null,null,null,null,"","","",null,"",null,null,"",null,null,null,null,null,null,null,null,"",null,null,null,null,null,""]
[null,null,null,null,null,"","","",null,"",null,null,"",null,null,null,null,null,null,null,null,"",null,null,null,null,null,""]
[null,null,null,null,null,"","","",null,"",null,null,"",null,null,null,null,null,null,null,null,"",null,null,null,null,null,""]
[null,null,null,null,null,"","","",null,"",null,null,"",null,null,null,null,null,null,null,null,"",null,null,null,null,null,""]
[null,null,null,null,null,"","","",null,"",null,null,"",null,null,null,null,null,null,null,null,"",null,null,null,null,null,""]
[null,null,null,null,null,"","","",null,"",null,null,"",null,null,null,null,null,null,null,null,"",null,null,null,null,null,""]
[null,null,null,null,null,"","","",null,"",null,null,"",null,null,null,null,null,null,null,null,"",null,null,null,null,null,""]
[null,null,null,null,null,"","","",null,"",null,null,"",null,null,null,null,null,null,null,null,"",null,null,null,null,null,""]
[null,null,null,null,null,{"$f":"IF(AND(LEN(A462)>0,LEN(B462)>0),0.95^14,\"\")","v":""},{"$f":"IF(AND(LEN(A462)>0,LEN(B462)>0),0,\"\")","v":""},{"$f":"IF(AND(LEN(A462)>0,LEN(B462)>0),(C462+D462+E462)*F462+G462,\"\")","v":""},null,{"$f":"IF(AND(LEN(A462)>0,LEN(B462)>0),I462,\"\")","v":""},null,null,{"$f":"IF(AND(LEN(A462)>0,LEN(B462)>0),SUM(J462:L462),\"\")","v":""},null,null,null,null,null,null,null,null,{"$f":"IF(AND((A462)>0,(B462)>0),IF(H462-M462<0,N462+O462+P462+Q462++S462+T462-U462,H462-M462+N462+O462+P462+Q462+R462+S462-T462-U462),\"\")","v":""},null,null,null,null,null,{"$f":"IF(AND(LEN(A462)>0,LEN(B462)>0),IF((V462-(X462+Y462+Z462)-AA462)<0,0,V462-(X462+Y462+Z462)-AA462),\"\")","v":""}]
[null,null,null,null,null,"","","",null,"",null,null,"",null,null,null,null,null,null,null,null,"",null,null,null,null,null,""]
[null,null,null,null,null,"","","",null,"",null,null,"",null,null,null,null,null,null,null,null,"",null,null,null,null,null,""]
[null,null,null,null,null,"","","",null,"",null,null,"",null,null,null,null,null,null,null,null,"",null,null,null,null,null,""]
[null,null,null,null,null,"","","",null,"",null,null,"",null,null,null,null,null,null,null,null,"",null,null,null,null,null,""]
[null,null,null,null,null,"","","",null,"",null,null,"",null,null,null,null,null,null,null,null,"",null,null,null,null,null,""]
[null,null,null,null,null,"","","",null,"",null,null,"",null,null,null,null,null,null,null,null,"",null,null,null,null,null,""]
[null,null,null,null,null,"","","",null,"",null,null,"",null,null,null,null,null,null,null,null,"",null,null,null,null,null,""]
[null,null,null,null,null,"","","",null,"",null,null,"",null,null,null,null,null,null,null,null,"",null,null,null,null,null,""]
[null,null,null,null,null,"","","",null,"",null,null,"",null,null,null,null,null,null,null,null,"",null,null,null,null,null,""]
[null,null,null,null,null,"","","",null,"",null,null,"",null,null,null,null,null,null,null,null,"",null,null,null,null,null,""]
[null,null,null,null,null,"","","",null,"",null,null,"",null,null,null,null,null,null,null,null,"",null,null,null,null,null,""]
[null,null,null,null,null,"","","",null,"",null,null,"",null,null,null,null,null,null,null,null,"",null,null,null,null,null,""]
[null,null,null,null,null,"","","",null,"",null,null,"",null,null,null,null,null,null,null,null,"",null,null,null,null,null,""]
[null,null,null,null,null,"","","",null,"",null,null,"",null,null,null,null,null,null,null,null,"",null,null,null,null,null,""]
[null,null,null,null,null,"","","",null,"",null,null,"",null,null,null,null,null,null,null,null,"",null,null,null,null,null,""]
[null,null,null,null,null,"","","",null,"",null,null,"",null,null,null,null,null,null,null,null,"",null,null,null,null,null,""]
[null,null,null,null,null,"","","",null,"",null,null,"",null,null,null,null,null,null,null,null,"",null,null,null,null,null,""]
[null,null,null,null,null,"","","",null,"",null,null,"",null,null,null,null,null,null,null,null,"",null,null,null,null,null,""]
[null,null,null,null,null,"","","",null,"",null,null,"",null,null,null,null,null,null,null,null,"",null,null,null,null,null,""]
[null,null,null,null,null,"","","",null,"",null,null,"",null,null,null,null,null,null,null,null,"",null,null,null,null,null,""]
[null,null,null,null,null,"","","",null,"",null,null,"",null,null,null,null,null,null,null,null,"",null,null,null,null,null,""]
[null,null,null,null,null,"","","",null,"",null,null,"",null,null,null,null,null,null,null,null,"",null,null,null,null,null,""]
[null,null,null,null,null,"","","",null,"",null,null,"",null,null,null,null,null,null,null,null,"",null,null,null,null,null,""]
[null,null,null,null,null,"","","",null,"",null,null,"",null,null,null,null,null,null,null,null,"",null,null,null,null,null,""]
[null,null,null,null,null,"","","",null,"",null,null,"",null,null,null,null,null,null,null,null,"",null,null,null,null,null,""]
[null,null,null,null,null,"","","",null,"",null,null,"",null,null,null,null,null,null,null,null,"",null,null,null,null,null,""]
[null,null,null,null,null,"","","",null,"",null,null,"",null,null,null,null,null,null,null,null,"",null,null,null,null,null,""]
[null,null,null,null,null,"","","",null,"",null,null,"",null,null,null,null,null,null,null,null,"",null,null,null,null,null,""]
[null,null,null,null,null,"","","",null,"",null,null,"",null,null,null,null,null,null,null,null,"",null,null,null,null,null,""]
[null,null,null,null,null,"","","",null,"",null,null,"",null,null,null,null,null,null,null,null,"",null,null,null,null,null,""]
[null,null,null,null,null,"","","",null,"",null,null,"",null,null,null,null,null,null,null,null,"",null,null,null,null,null,""]
[null,null,null,null,null,"","","",null,"",null,null,"",null,null,null,null,null,null,null,null,"",null,null,null,null,null,""]
[null,null,null,null,null,"","","",null,"",null,null,"",null,null,null,null,null,null,null,null,"",null,null,null,null,null,""]
[null,null,null,null,null,"","","",null,"",null,null,"",null,null,null,null,null,null,null,null,"",null,null,null,null,null,""]
[null,null,null,null,null,"","","",null,"",null,null,"",null,null,null,null,null,null,null,null,"",null,null,null,null,null,""]
[null,null,null,null,null,"","","",null,"",null,null,"",null,null,null,null,null,null,null,null,"",null,null,null,null,null,""]
[null,null,null,null,null,"","","",null,"",null,null,"",null,null,null,null,null,null,null,null,"",null,null,null,null,null,""]
[null,null,null,null,null,"","","",null,"",null,null,"",null,null,null,null,null,null,null,null,"",null,null,null,null,null,""]
[null,null,null,null,null,"","","",null,"",null,null,"",null,null,null,null,null,null,null,null,"",null,null,null,null,null,""]
[null,null,null,null,null,"","","",null,"",null,null,"",null,null,null,null,null,null,null,null,"",null,null,null,null,null,""]
[null,null,null,null,null,"","","",null,"",null,null,"",null,null,null,null,null,null,null,null,"",null,null,null,null,null,""]
[null,null,null,null,null,"","","",null,"",null,null,"",null,null,null,null,null,null,null,null,"",null,null,null,null,null,""]
[null,null,null,null,null,"","","",null,"",null,null,"",null,null,null,null,null,null,null,null,"",null,null,null,null,null,""]
[null,null,null,null,null,"","","",null,"",null,null,"",null,null,null,null,null,null,null,null,"",null,null,null,null,null,""]
[null,null,null,null,null,"","","",null,"",null,null,"",null,null,null,null,null,null,null,null,"",null,null,null,null,null,""]
[null,null,null,null,null,"","","",null,"",null,null,"",null,null,null,null,null,null,null,null,"",null,null,null,null,null,""]
[null,null,null,null,null,"","","",null,"",null,null,"",null,null,null,null,null,null,null,null,"",null,null,null,null,null,""]
[null,null,null,null,null,"","","",null,"",null,null,"",null,null,null,null,null,null,null,null,"",null,null,null,null,null,""]
[null,null,null,null,null,"","","",null,"",null,null,"",null,null,null,null,null,null,null,null,"",null,null,null,null,null,""]
[null,null,null,null,null,"","","",null,"",null,null,"",null,null,null,null,null,null,null,null,"",null,null,null,null,null,""]
[null,null,null,null,null,"","","",null,"",null,null,"",null,null,null,null,null,null,null,null,"",null,null,null,null,null,""]
[null,null,null,null,null,"","","",null,"",null,null,"",null,null,null,null,null,null,null,null,"",null,null,null,null,null,""]
[null,null,null,null,null,"","","",null,"",null,null,"",null,null,null,null,null,null,null,null,"",null,null,null,null,null,""]
[null,null,null,null,null,"","","",null,"",null,null,"",null,null,null,null,null,null,null,null,"",null,null,null,null,null,""]
[null,null,null,null,null,"","","",null,"",null,null,"",null,null,null,null,null,null,null,null,"",null,null,null,null,null,""]
[null,null,null,null,null,"","","",null,"",null,null,"",null,null,null,null,null,null,null,null,"",null,null,null,null,null,""]
[null,null,null,null,null,"","","",null,"",null,null,"",null,null,null,null,null,null,null,null,"",null,null,null,null,null,""]
[null,null,null,null,null,"","","",null,"",null,null,"",null,null,null,null,null,null,null,null,"",null,null,null,null,null,""]
[null,null,null,null,null,"","","",null,"",null,null,"",null,null,null,null,null,null,null,null,"",null,null,null,null,null,""]
[null,null,null,null,null,"","","",null,"",null,null,"",null,null,null,null,null,null,null,null,"",null,null,null,null,null,""]
[null,null,null,null,null,"","","",null,"",null,null,"",null,null,null,null,null,null,null,null,"",null,null,null,null,null,""]
[null,null,null,null,null,"","","",null,"",null,null,"",null,null,null,null,null,null,null,null,"",null,null,null,null,null,""]
[null,null,null,null,null,"","","",null,"",null,null,"",null,null,null,null,null,null,null,null,"",null,null,null,null,null,""]
[null,null,null,null,null,{"$f":"IF(AND(LEN(A526)>0,LEN(B526)>0),0.95^14,\"\")","v":""},{"$f":"IF(AND(LEN(A526)>0,LEN(B526)>0),0,\"\")","v":""},{"$f":"IF(AND(LEN(A526)>0,LEN(B526)>0),(C526+D526+E526)*F526+G526,\"\")","v":""},null,{"$f":"IF(AND(LEN(A526)>0,LEN(B526)>0),I526,\"\")","v":""},null,null,{"$f":"IF(AND(LEN(A526)>0,LEN(B526)>0),SUM(J526:L526),\"\")","v":""},null,null,null,null,null,null,null,null,{"$f":"IF(AND((A526)>0,(B526)>0),IF(H526-M526<0,N526+O526+P526+Q526++S526+T526-U526,H526-M526+N526+O526+P526+Q526+R526+S526-T526-U526),\"\")","v":""},null,null,null,null,null,{"$f":"IF(AND(LEN(A526)>0,LEN(B526)>0),IF((V526-(X526+Y526+Z526)-AA526)<0,0,V526-(X526+Y526+Z526)-AA526),\"\")","v":""}]
[null,null,null,null,null,"","","",null,"",null,null,"",null,null,null,null,null,null,null,null,"",null,null,null,null,null,""]
[null,null,null,null,null,"","","",null,"",null,null,"",null,null,null,null,null,null,null,null,"",null,null,null,null,null,""]
[null,null,null,null,null,"","","",null,"",null,null,"",null,null,null,null,null,null,null,null,"",null,null,null,null,null,""]
[null,null,null,null,null,"","","",null,"",null,null,"",null,null,null,null,null,null,null,null,"",null,null,null,null,null,""]
[null,null,null,null,null,"","","",null,"",null,null,"",null,null,null,null,null,null,null,null,"",null,null,null,null,null,""]
[null,null,null,null,null,"","","",null,"",null,null,"",null,null,null,null,null,null,null,null,"",null,null,null,null,null,""]
[null,null,null,null,null,"","","",null,"",null,null,"",null,null,null,null,null,null,null,null,"",null,null,null,null,null,""]
[null,null,null,null,null,"","","",null,"",null,null,"",null,null,null,null,null,null,null,null,"",null,null,null,null,null,""]
[null,null,null,null,null,"","","",null,"",null,null,"",null,null,null,null,null,null,null,null,"",null,null,null,null,null,""]
[null,null,null,null,null,"","","",null,"",null,null,"",null,null,null,null,null,null,null,null,"",null,null,null,null,null,""]
[null,null,null,null,null,"","","",null,"",null,null,"",null,null,null,null,null,null,null,null,"",null,null,null,null,null,""]
[null,null,null,null,null,"","","",null,"",null,null,"",null,null,null,null,null,null,null,null,"",null,null,null,null,null,""]
[null,null,null,null,null,"","","",null,"",null,null,"",null,null,null,null,null,null,null,null,"",null,null,null,null,null,""]
[null,null,null,null,null,"","","",null,"",null,null,"",null,null,null,null,null,null,null,null,"",null,null,null,null,null,""]
[null,null,null,null,null,"","","",null,"",null,null,"",null,null,null,null,null,null,null,null,"",null,null,null,null,null,""]
[null,null,null,null,null,"","","",null,"",null,null,"",null,null,null,null,null,null,null,null,"",null,null,null,null,null,""]
[null,null,null,null,null,"","","",null,"",null,null,"",null,null,null,null,null,null,null,null,"",null,null,null,null,null,""]
[null,null,null,null,null,"","","",null,"",null,null,"",null,null,null,null,null,null,null,null,"",null,null,null,null,null,""]
[null,null,null,null,null,"","","",null,"",null,null,"",null,null,null,null,null,null,null,null,"",null,null,null,null,null,""]
[null,null,null,null,null,"","","",null,"",null,null,"",null,null,null,null,null,null,null,null,"",null,null,null,null,null,""]
[null,null,null,null,null,"","","",null,"",null,null,"",null,null,null,null,null,null,null,null,"",null,null,null,null,null,""]
[null,null,null,null,null,"","","",null,"",null,null,"",null,null,null,null,null,null,null,null,"",null,null,null,null,null,""]
[null,null,null,null,null,"","","",null,"",null,null,"",null,null,null,null,null,null,null,null,"",null,null,null,null,null,""]
[null,null,null,null,null,"","","",null,"",null,null,"",null,null,null,null,null,null,null,null,"",null,null,null,null,null,""]
[null,null,null,null,null,"","","",null,"",null,null,"",null,null,null,null,null,null,null,null,"",null,null,null,null,null,""]
[null,null,null,null,null,"","","",null,"",null,null,"",null,null,null,null,null,null,null,null,"",null,null,null,null,null,""]
[null,null,null,null,null,"","","",null,"",null,null,"",null,null,null,null,null,null,null,null,"",null,null,null,null,null,""]
[null,null,null,null,null,"","","",null,"",null,null,"",null,null,null,null,null,null,null,null,"",null,null,null,null,null,""]
[null,null,null,null,null,"","","",null,"",null,null,"",null,null,null,null,null,null,null,null,"",null,null,null,null,null,""]
[null,null,null,null,null,"","","",null,"",null,null,"",null,null,null,null,null,null,null,null,"",null,null,null,null,null,""]
[null,null,null,null,null,"","","",null,"",null,null,"",null,null,null,null,null,null,null,null,"",null,null,null,null,null,""]
[null,null,null,null,null,"","","",null,"",null,null,"",null,null,null,null,null,null,null,null,"",null,null,null,null,null,""]
[null,null,null,null,null,"","","",null,"",null,null,"",null,null,null,null,null,null,null,null,"",null,null,null,null,null,""]
[null,null,null,null,null,"","","",null,"",null,null,"",null,null,null,null,null,null,null,null,"",null,null,null,null,null,""]
[null,null,null,null,null,"","","",null,"",null,null,"",null,null,null,null,null,null,null,null,"",null,null,null,null,null,""]
[null,null,null,null,null,"","","",null,"",null,null,"",null,null,null,null,null,null,null,null,"",null,null,null,null,null,""]
[null,null,null,null,null,"","","",null,"",null,null,"",null,null,null,null,null,null,null,null,"",null,null,null,null,null,""]
[null,null,null,null,null,"","","",null,"",null,null,"",null,null,null,null,null,null,null,null,"",null,null,null,null,null,""]
[null,null,null,null,null,"","","",null,"",null,null,"",null,null,null,null,null,null,null,null,"",null,null,null,null,null,""]
[null,null,null,null,null,"","","",null,"",null,null,"",null,null,null,null,null,null,null,null,"",null,null,null,null,null,""]
[null,null,null,null,null,"","","",null,"",null,null,"",null,null,null,null,null,null,null,null,"",null,null,null,null,null,""]
[null,null,null,null,null,"","","",null,"",null,null,"",null,null,null,null,null,null,null,null,"",null,null,null,null,null,""]
[null,null,null,null,null,"","","",null,"",null,null,"",null,null,null,null,null,null,null,null,"",null,null,null,null,null,""]
[null,null,null,null,null,"","","",null,"",null,null,"",null,null,null,null,null,null,null,null,"",null,null,null,null,null,""]
[null,null,null,null,null,"","","",null,"",null,null,"",null,null,null,null,null,null,null,null,"",null,null,null,null,null,""]
[null,null,null,null,null,"","","",null,"",null,null,"",null,null,null,null,null,null,null,null,"",null,null,null,null,null,""]
[null,null,null,null,null,"","","",null,"",null,null,"",null,null,null,null,null,null,null,null,"",null,null,null,null,null,""]
[null,null,null,null,null,"","","",null,"",null,null,"",null,null,null,null,null,null,null,null,"",null,null,null,null,null,""]
[null,null,null,null,null,"","","",null,"",null,null,"",null,null,null,null,null,null,null,null,"",null,null,null,null,null,""]
[null,null,null,null,null,"","","",null,"",null,null,"",null,null,null,null,null,null,null,null,"",null,null,null,null,null,""]
[null,null,null,null,null,"","","",null,"",null,null,"",null,null,null,null,null,null,null,null,"",null,null,null,null,null,""]
[null,null,null,null,null,"","","",null,"",null,null,"",null,null,null,null,null,null,null,null,"",null,null,null,null,null,""]
[null,null,null,null,null,"","","",null,"",null,null,"",null,null,null,null,null,null,null,null,"",null,null,null,null,null,""]
[null,null,null,null,null,"","","",null,"",null,null,"",null,null,null,null,null,null,null,null,"",null,null,null,null,null,""]
[null,null,null,null,null,"","","",null,"",null,null,"",null,null,null,null,null,null,null,null,"",null,null,null,null,null,""]
[null,null,null,null,null,"","","",null,"",null,null,"",null,null,null,null,null,null,null,null,"",null,null,null,null,null,""]
[null,null,null,null,null,"","","",null,"",null,null,"",null,null,null,null,null,null,null,null,"",null,null,null,null,null,""]
[null,null,null,null,null,"","","",null,"",null,null,"",null,null,null,null,null,null,null,null,"",null,null,null,null,null,""]
[null,null,null,null,null,"","","",null,"",null,null,"",null,null,null,null,null,null,null,null,"",null,null,null,null,null,""]
[null,null,null,null,null,"","","",null,"",null,null,"",null,null,null,null,null,null,null,null,"",null,null,null,null,null,""]
[null,null,null,null,null,"","","",null,"",null,null,"",null,null,null,null,null,null,null,null,"",null,null,null,null,null,""]
[null,null,null,null,null,"","","",null,"",null,null,"",null,null,null,null,null,null,null,null,"",null,null,null,null,null,""]
[null,null,null,null,null,"","","",null,"",null,null,"",null,null,null,null,null,null,null,null,"",null,null,null,null,null,""]
[null,null,null,null,null,{"$f":"IF(AND(LEN(A590)>0,LEN(B590)>0),0.95^14,\"\")","v":""},{"$f":"IF(AND(LEN(A590)>0,LEN(B590)>0),0,\"\")","v":""},{"$f":"IF(AND(LEN(A590)>0,LEN(B590)>0),(C590+D590+E590)*F590+G590,\"\")","v":""},null,{"$f":"IF(AND(LEN(A590)>0,LEN(B590)>0),I590,\"\")","v":""},null,null,{"$f":"IF(AND(LEN(A590)>0,LEN(B590)>0),SUM(J590:L590),\"\")","v":""},null,null,null,null,null,null,null,null,{"$f":"IF(AND((A590)>0,(B590)>0),IF(H590-M590<0,N590+O590+P590+Q590++S590+T590-U590,H590-M590+N590+O590+P590+Q590+R590+S590-T590-U590),\"\")","v":""},null,null,null,null,null,{"$f":"IF(AND(LEN(A590)>0,LEN(B590)>0),IF((V590-(X590+Y590+Z590)-AA590)<0,0,V590-(X590+Y590+Z590)-AA590),\"\")","v":""}]
[null,null,null,null,null,"","","",null,"",null,null,"",null,null,null,null,null,null,null,null,"",null,null,null,null,null,""]
[null,null,null,null,null,"","","",null,"",null,null,"",null,null,null,null,null,null,null,null,"",null,null,null,null,null,""]
[null,null,null,null,null,"","","",null,"",null,null,"",null,null,null,null,null,null,null,null,"",null,null,null,null,null,""]
[null,null,null,null,null,"","","",null,"",null,null,"",null,null,null,null,null,null,null,null,"",null,null,null,null,null,""]
[null,null,null,null,null,"","","",null,"",null,null,"",null,null,null,null,null,null,null,null,"",null,null,null,null,null,""]
[null,null,null,null,null,"","","",null,"",null,null,"",null,null,null,null,null,null,null,null,"",null,null,null,null,null,""]
[null,null,null,null,null,"","","",null,"",null,null,"",null,null,null,null,null,null,null,null,"",null,null,null,null,null,""]
[null,null,null,null,null,"","","",null,"",null,null,"",null,null,null,null,null,null,null,null,"",null,null,null,null,null,""]
[null,null,null,null,null,"","","",null,"",null,null,"",null,null,null,null,null,null,null,null,"",null,null,null,null,null,""]
[null,null,null,null,null,"","","",null,"",null,null,"",null,null,null,null,null,null,null,null,"",null,null,null,null,null,""]
[null,null,null,null,null,"","","",null,"",null,null,"",null,null,null,null,null,null,null,null,"",null,null,null,null,null,""]
[null,null,null,null,null,"","","",null,"",null,null,"",null,null,null,null,null,null,null,null,"",null,null,null,null,null,""]
[null,null,null,null,null,"","","",null,"",null,null,"",null,null,null,null,null,null,null,null,"",null,null,null,null,null,""]
[null,null,null,null,null,"","","",null,"",null,null,"",null,null,null,null,null,null,null,null,"",null,null,null,null,null,""]
[null,null,null,null,null,"","","",null,"",null,null,"",null,null,null,null,null,null,null,null,"",null,null,null,null,null,""]
[null,null,null,null,null,"","","",null,"",null,null,"",null,null,null,null,null,null,null,null,"",null,null,null,null,null,""]
[null,null,null,null,null,"","","",null,"",null,null,"",null,null,null,null,null,null,null,null,"",null,null,null,null,null,""]
[null,null,null,null,null,"","","",null,"",null,null,"",null,null,null,null,null,null,null,null,"",null,null,null,null,null,""]
[null,null,null,null,null,"","","",null,"",null,null,"",null,null,null,null,null,null,null,null,"",null,null,null,null,null,""]
[null,null,null,null,null,"","","",null,"",null,null,"",null,null,null,null,null,null,null,null,"",null,null,null,null,null,""]
[null,null,null,null,null,"","","",null,"",null,null,"",null,null,null,null,null,null,null,null,"",null,null,null,null,null,""]
[null,null,null,null,null,"","","",null,"",null,null,"",null,null,null,null,null,null,null,null,"",null,null,null,null,null,""]
[null,null,null,null,null,"","","",null,"",null,null,"",null,null,null,null,null,null,null,null,"",null,null,null,null,null,""]
[null,null,null,null,null,"","","",null,"",null,null,"",null,null,null,null,null,null,null,null,"",null,null,null,null,null,""]
[null,null,null,null,null,"","","",null,"",null,null,"",null,null,null,null,null,null,null,null,"",null,null,null,null,null,""]
[null,null,null,null,null,"","","",null,"",null,null,"",null,null,null,null,null,null,null,null,"",null,null,null,null,null,""]
[null,null,null,null,null,"","","",null,"",null,null,"",null,null,null,null,null,null,null,null,"",null,null,null,null,null,""]
[null,null,null,null,null,"","","",null,"",null,null,"",null,null,null,null,null,null,null,null,"",null,null,null,null,null,""]
[null,null,null,null,null,"","","",null,"",null,null,"",null,null,null,null,null,null,null,null,"",null,null,null,null,null,""]
[null,null,null,null,null,"","","",null,"",null,null,"",null,null,null,null,null,null,null,null,"",null,null,null,null,null,""]
[null,null,null,null,null,"","","",null,"",null,null,"",null,null,null,null,null,null,null,null,"",null,null,null,null,null,""]
[null,null,null,null,null,"","","",null,"",null,null,"",null,null,null,null,null,null,null,null,"",null,null,null,null,null,""]
[null,null,null,null,null,"","","",null,"",null,null,"",null,null,null,null,null,null,null,null,"",null,null,null,null,null,""]
[null,null,null,null,null,"","","",null,"",null,null,"",null,null,null,null,null,null,null,null,"",null,null,null,null,null,""]
[null,null,null,null,null,"","","",null,"",null,null,"",null,null,null,null,null,null,null,null,"",null,null,null,null,null,""]
[null,null,null,null,null,"","","",null,"",null,null,"",null,null,null,null,null,null,null,null,"",null,null,null,null,null,""]
[null,null,null,null,null,"","","",null,"",null,null,"",null,null,null,null,null,null,null,null,"",null,null,null,null,null,""]
[null,null,null,null,null,"","","",null,"",null,null,"",null,null,null,null,null,null,null,null,"",null,null,null,null,null,""]
[null,null,null,null,null,"","","",null,"",null,null,"",null,null,null,null,null,null,null,null,"",null,null,null,null,null,""]
[null,null,null,null,null,"","","",null,"",null,null,"",null,null,null,null,null,null,null,null,"",null,null,null,null,null,""]
[null,null,null,null,null,"","","",null,"",null,null,"",null,null,null,null,null,null,null,null,"",null,null,null,null,null,""]
[null,null,null,null,null,"","","",null,"",null,null,"",null,null,null,null,null,null,null,null,"",null,null,null,null,null,""]
[null,null,null,null,null,"","","",null,"",null,null,"",null,null,null,null,null,null,null,null,"",null,null,null,null,null,""]
[null,null,null,null,null,"","","",null,"",null,null,"",null,null,null,null,null,null,null,null,"",null,null,null,null,null,""]
[null,null,null,null,null,"","","",null,"",null,null,"",null,null,null,null,null,null,null,null,"",null,null,null,null,null,""]
[null,null,null,null,null,"","","",null,"",null,null,"",null,null,null,null,null,null,null,null,"",null,null,null,null,null,""]
[null,null,null,null,null,"","","",null,"",null,null,"",null,null,null,null,null,null,null,null,"",null,null,null,null,null,""]
[null,null,null,null,null,"","","",null,"",null,null,"",null,null,null,null,null,null,null,null,"",null,null,null,null,null,""]
[null,null,null,null,null,"","","",null,"",null,null,"",null,null,null,null,null,null,null,null,"",null,null,null,null,null,""]
[null,null,null,null,null,"","","",null,"",null,null,"",null,null,null,null,null,null,null,null,"",null,null,null,null,null,""]
[null,null,null,null,null,"","","",null,"",null,null,"",null,null,null,null,null,null,null,null,"",null,null,null,null,null,""]
[null,null,null,null,null,"","","",null,"",null,null,"",null,null,null,null,null,null,null,null,"",null,null,null,null,null,""]
[null,null,null,null,null,"","","",null,"",null,null,"",null,null,null,null,null,null,null,null,"",null,null,null,null,null,""]
[null,null,null,null,null,"","","",null,"",null,null,"",null,null,null,null,null,null,null,null,"",null,null,null,null,null,""]
[null,null,null,null,null,"","","",null,"",null,null,"",null,null,null,null,null,null,null,null,"",null,null,null,null,null,""]
[null,null,null,null,null,"","","",null,"",null,null,"",null,null,null,null,null,null,null,null,"",null,null,null,null,null,""]
[null,null,null,null,null,"","","",null,"",null,null,"",null,null,null,null,null,null,null,null,"",null,null,null,null,null,""]
[null,null,null,null,null,"","","",null,"",null,null,"",null,null,null,null,null,null,null,null,"",null,null,null,null,null,""]
[null,null,null,null,null,"","","",null,"",null,null,"",null,null,null,null,null,null,null,null,"",null,null,null,null,null,""]
[null,null,null,null,null,"","","",null,"",null,null,"",null,null,null,null,null,null,null,null,"",null,null,null,null,null,""]
[null,null,null,null,null,"","","",null,"",null,null,"",null,null,null,null,null,null,null,null,"",null,null,null,null,null,""]
[null,null,null,null,null,"","","",null,"",null,null,"",null,null,null,null,null,null,null,null,"",null,null,null,null,null,""]
[null,null,null,null,null,"","","",null,"",null,null,"",null,null,null,null,null,null,null,null,"",null,null,null,null,null,""]
[null,null,null,null,null,{"$f":"IF(AND(LEN(A654)>0,LEN(B654)>0),0.95^14,\"\")","v":""},{"$f":"IF(AND(LEN(A654)>0,LEN(B654)>0),0,\"\")","v":""},{"$f":"IF(AND(LEN(A654)>0,LEN(B654)>0),(C654+D654+E654)*F654+G654,\"\")","v":""},null,{"$f":"IF(AND(LEN(A654)>0,LEN(B654)>0),I654,\"\")","v":""},null,null,{"$f":"IF(AND(LEN(A654)>0,LEN(B654)>0),SUM(J654:L654),\"\")","v":""},null,null,null,null,null,null,null,null,{"$f":"IF(AND((A654)>0,(B654)>0),IF(H654-M654<0,N654+O654+P654+Q654++S654+T654-U654,H654-M654+N654+O654+P654+Q654+R654+S654-T654-U654),\"\")","v":""},null,null,null,null,null,{"$f":"IF(AND(LEN(A654)>0,LEN(B654)>0),IF((V654-(X654+Y654+Z654)-AA654)<0,0,V654-(X654+Y654+Z654)-AA654),\"\")","v":""}]
[null,null,null,null,null,"","","",null,"",null,null,"",null,null,null,null,null,null,null,null,"",null,null,null,null,null,""]
[null,null,null,null,null,"","","",null,"",null,null,"",null,null,null,null,null,null,null,null,"",null,null,null,null,null,""]
[null,null,null,null,null,"","","",null,"",null,null,"",null,null,null,null,null,null,null,null,"",null,null,null,null,null,""]
[null,null,null,null,null,"","","",null,"",null,null,"",null,null,null,null,null,null,null,null,"",null,null,null,null,null,""]
[null,null,null,null,null,"","","",null,"",null,null,"",null,null,null,null,null,null,null,null,"",null,null,null,null,null,""]
[null,null,null,null,null,"","","",null,"",null,null,"",null,null,null,null,null,null,null,null,"",null,null,null,null,null,""]
[null,null,null,null,null,"","","",null,"",null,null,"",null,null,null,null,null,null,null,null,"",null,null,null,null,null,""]
[null,null,null,null,null,"","","",null,"",null,null,"",null,null,null,null,null,null,null,null,"",null,null,null,null,null,""]
[null,null,null,null,null,"","","",null,"",null,null,"",null,null,null,null,null,null,null,null,"",null,null,null,null,null,""]
[null,null,null,null,null,"","","",null,"",null,null,"",null,null,null,null,null,null,null,null,"",null,null,null,null,null,""]
[null,null,null,null,null,"","","",null,"",null,null,"",null,null,null,null,null,null,null,null,"",null,null,null,null,null,""]
[null,null,null,null,null,"","","",null,"",null,null,"",null,null,null,null,null,null,null,null,"",null,null,null,null,null,""]
[null,null,null,null,null,"","","",null,"",null,null,"",null,null,null,null,null,null,null,null,"",null,null,null,null,null,""]
[null,null,null,null,null,"","","",null,"",null,null,"",null,null,null,null,null,null,null,null,"",null,null,null,null,null,""]
[null,null,null,null,null,"","","",null,"",null,null,"",null,null,null,null,null,null,null,null,"",null,null,null,null,null,""]
[null,null,null,null,null,"","","",null,"",null,null,"",null,null,null,null,null,null,null,null,"",null,null,null,null,null,""]
[null,null,null,null,null,"","","",null,"",null,null,"",null,null,null,null,null,null,null,null,"",null,null,null,null,null,""]
[null,null,null,null,null,"","","",null,"",null,null,"",null,null,null,null,null,null,null,null,"",null,null,null,null,null,""]
[null,null,null,null,null,"","","",null,"",null,null,"",null,null,null,null,null,null,null,null,"",null,null,null,null,null,""]
[null,null,null,null,null,"","","",null,"",null,null,"",null,null,null,null,null,null,null,null,"",null,null,null,null,null,""]
[null,null,null,null,null,"","","",null,"",null,null,"",null,null,null,null,null,null,null,null,"",null,null,null,null,null,""]
[null,null,null,null,null,"","","",null,"",null,null,"",null,null,null,null,null,null,null,null,"",null,null,null,null,null,""]
[null,null,null,null,null,"","","",null,"",null,null,"",null,null,null,null,null,null,null,null,"",null,null,null,null,null,""]
[null,null,null,null,null,"","","",null,"",null,null,"",null,null,null,null,null,null,null,null,"",null,null,null,null,null,""]
[null,null,null,null,null,"","","",null,"",null,null,"",null,null,null,null,null,null,null,null,"",null,null,null,null,null,""]
[null,null,null,null,null,"","","",null,"",null,null,"",null,null,null,null,null,null,null,null,"",null,null,null,null,null,""]
[null,null,null,null,null,"","","",null,"",null,null,"",null,null,null,null,null,null,null,null,"",null,null,null,null,null,""]
[null,null,null,null,null,"","","",null,"",null,null,"",null,null,null,null,null,null,null,null,"",null,null,null,null,null,""]
[null,null,null,null,null,"","","",null,"",null,null,"",null,null,null,null,null,null,null,null,"",null,null,null,null,null,""]
[null,null,null,null,null,"","","",null,"",null,null,"",null,null,null,null,null,null,null,null,"",null,null,null,null,null,""]
[null,null,null,null,null,"","","",null,"",null,null,"",null,null,null,null,null,null,null,null,"",null,null,null,null,null,""]
[null,null,null,null,null,"","","",null,"",null,null,"",null,null,null,null,null,null,null,null,"",null,null,null,null,null,""]
[null,null,null,null,null,"","","",null,"",null,null,"",null,null,null,null,null,null,null,null,"",null,null,null,null,null,""]
[null,null,null,null,null,"","","",null,"",null,null,"",null,null,null,null,null,null,null,null,"",null,null,null,null,null,""]
[null,null,null,null,null,"","","",null,"",null,null,"",null,null,null,null,null,null,null,null,"",null,null,null,null,null,""]
[null,null,null,null,null,"","","",null,"",null,null,"",null,null,null,null,null,null,null,null,"",null,null,null,null,null,""]
[null,null,null,null,null,"","","",null,"",null,null,"",null,null,null,null,null,null,null,null,"",null,null,null,null,null,""]
[null,null,null,null,null,"","","",null,"",null,null,"",null,null,null,null,null,null,null,null,"",null,null,null,null,null,""]
[null,null,null,null,null,"","","",null,"",null,null,"",null,null,null,null,null,null,null,null,"",null,null,null,null,null,""]
[null,null,null,null,null,"","","",null,"",null,null,"",null,null,null,null,null,null,null,null,"",null,null,null,null,null,""]
[null,null,null,null,null,"","","",null,"",null,null,"",null,null,null,null,null,null,null,null,"",null,null,null,null,null,""]
[null,null,null,null,null,"","","",null,"",null,null,"",null,null,null,null,null,null,null,null,"",null,null,null,null,null,""]
[null,null,null,null,null,"","","",null,"",null,null,"",null,null,null,null,null,null,null,null,"",null,null,null,null,null,""]
[null,null,null,null,null,"","","",null,"",null,null,"",null,null,null,null,null,null,null,null,"",null,null,null,null,null,""]
[null,null,null,null,null,"","","",null,"",null,null,"",null,null,null,null,null,null,null,null,"",null,null,null,null,null,""]
[null,null,null,null,null,"","","",null,"",null,null,"",null,null,null,null,null,null,null,null,"",null,null,null,null,null,""]
[null,null,null,null,null,"","","",null,"",null,null,"",null,null,null,null,null,null,null,null,"",null,null,null,null,null,""]
[null,null,null,null,null,"","","",null,"",null,null,"",null,null,null,null,null,null,null,null,"",null,null,null,null,null,""]
[null,null,null,null,null,"","","",null,"",null,null,"",null,null,null,null,null,null,null,null,"",null,null,null,null,null,""]
[null,null,null,null,null,"","","",null,"",null,null,"",null,null,null,null,null,null,null,null,"",null,null,null,null,null,""]
[null,null,null,null,null,"","","",null,"",null,null,"",null,null,null,null,null,null,null,null,"",null,null,null,null,null,""]
[null,null,null,null,null,"","","",null,"",null,null,"",null,null,null,null,null,null,null,null,"",null,null,null,null,null,""]
[null,null,null,null,null,"","","",null,"",null,null,"",null,null,null,null,null,null,null,null,"",null,null,null,null,null,""]
[null,null,null,null,null,"","","",null,"",null,null,"",null,null,null,null,null,null,null,null,"",null,null,null,null,null,""]
[null,null,null,null,null,"","","",null,"",null,null,"",null,null,null,null,null,null,null,null,"",null,null,null,null,null,""]
[null,null,null,null,null,"","","",null,"",null,null,"",null,null,null,null,null,null,null,null,"",null,null,null,null,null,""]
[null,null,null,null,null,"","","",null,"",null,null,"",null,null,null,null,null,null,null,null,"",null,null,null,null,null,""]
[null,null,null,null,null,"","","",null,"",null,null,"",null,null,null,null,null,null,null,null,"",null,null,null,null,null,""]
[null,null,null,null,null,"","","",null,"",null,null,"",null,null,null,null,null,null,null,null,"",null,null,null,null,null,""]
[null,null,null,null,null,"","","",null,"",null,null,"",null,null,null,null,null,null,null,null,"",null,null,null,null,null,""]
[null,null,null,null,null,"","","",null,"",null,null,"",null,null,null,null,null,null,null,null,"",null,null,null,null,null,""]
[null,null,null,null,null,"","","",null,"",null,null,"",null,null,null,null,null,null,null,null,"",null,null,null,null,null,""]
[null,null,null,null,null,"","","",null,"",null,null,"",null,null,null,null,null,null,null,null,"",null,null,null,null,null,""]
[null,null,null,null,null,{"$f":"IF(AND(LEN(A718)>0,LEN(B718)>0),0.95^14,\"\")","v":""},{"$f":"IF(AND(LEN(A718)>0,LEN(B718)>0),0,\"\")","v":""},{"$f":"IF(AND(LEN(A718)>0,LEN(B718)>0),(C718+D718+E718)*F718+G718,\"\")","v":""},null,{"$f":"IF(AND(LEN(A718)>0,LEN(B718)>0),I718,\"\")","v":""},null,null,{"$f":"IF(AND(LEN(A718)>0,LEN(B718)>0),SUM(J718:L718),\"\")","v":""},null,null,null,null,null,null,null,null,{"$f":"IF(AND((A718)>0,(B718)>0),IF(H718-M718<0,N718+O718+P718+Q718++S718+T718-U718,H718-M718+N718+O718+P718+Q718+R718+S718-T718-U718),\"\")","v":""},null,null,null,null,null,{"$f":"IF(AND(LEN(A718)>0,LEN(B718)>0),IF((V718-(X718+Y718+Z718)-AA718)<0,0,V718-(X718+Y718+Z718)-AA718),\"\")","v":""}]
[null,null,null,null,null,"","","",null,"",null,null,"",null,null,null,null,null,null,null,null,"",null,null,null,null,null,""]
[null,null,null,null,null,"","","",null,"",null,null,"",null,null,null,null,null,null,null,null,"",null,null,null,null,null,""]
[null,null,null,null,null,"","","",null,"",null,null,"",null,null,null,null,null,null,null,null,"",null,null,null,null,null,""]
[null,null,null,null,null,"","","",null,"",null,null,"",null,null,null,null,null,null,null,null,"",null,null,null,null,null,""]
[null,null,null,null,null,"","","",null,"",null,null,"",null,null,null,null,null,null,null,null,"",null,null,null,null,null,""]
[null,null,null,null,null,"","","",null,"",null,null,"",null,null,null,null,null,null,null,null,"",null,null,null,null,null,""]
[null,null,null,null,null,"","","",null,"",null,null,"",null,null,null,null,null,null,null,null,"",null,null,null,null,null,""]
[null,null,null,null,null,"","","",null,"",null,null,"",null,null,null,null,null,null,null,null,"",null,null,null,null,null,""]
[null,null,null,null,null,"","","",null,"",null,null,"",null,null,null,null,null,null,null,null,"",null,null,null,null,null,""]
[null,null,null,null,null,"","","",null,"",null,null,"",null,null,null,null,null,null,null,null,"",null,null,null,null,null,""]
[null,null,null,null,null,"","","",null,"",null,null,"",null,null,null,null,null,null,null,null,"",null,null,null,null,null,""]
[null,null,null,null,null,"","","",null,"",null,null,"",null,null,null,null,null,null,null,null,"",null,null,null,null,null,""]
[null,null,null,null,null,"","","",null,"",null,null,"",null,null,null,null,null,null,null,null,"",null,null,null,null,null,""]
[null,null,null,null,null,"","","",null,"",null,null,"",null,null,null,null,null,null,null,null,"",null,null,null,null,null,""]
[null,null,null,null,null,"","","",null,"",null,null,"",null,null,null,null,null,null,null,null,"",null,null,null,null,null,""]
[null,null,null,null,null,"","","",null,"",null,null,"",null,null,null,null,null,null,null,null,"",null,null,null,null,null,""]
[null,null,null,null,null,"","","",null,"",null,null,"",null,null,null,null,null,null,null,null,"",null,null,null,null,null,""]
[null,null,null,null,null,"","","",null,"",null,null,"",null,null,null,null,null,null,null,null,"",null,null,null,null,null,""]
[null,null,null,null,null,"","","",null,"",null,null,"",null,null,null,null,null,null,null,null,"",null,null,null,null,null,""]
[null,null,null,null,null,"","","",null,"",null,null,"",null,null,null,null,null,null,null,null,"",null,null,null,null,null,""]
[null,null,null,null,null,"","","",null,"",null,null,"",null,null,null,null,null,null,null,null,"",null,null,null,null,null,""]
[null,null,null,null,null,"","","",null,"",null,null,"",null,null,null,null,null,null,null,null,"",null,null,null,null,null,""]
[null,null,null,null,null,"","","",null,"",null,null,"",null,null,null,null,null,null,null,null,"",null,null,null,null,null,""]
[null,null,null,null,null,"","","",null,"",null,null,"",null,null,null,null,null,null,null,null,"",null,null,null,null,null,""]
[null,null,null,null,null,"","","",null,"",null,null,"",null,null,null,null,null,null,null,null,"",null,null,null,null,null,""]
[null,null,null,null,null,"","","",null,"",null,null,"",null,null,null,null,null,null,null,null,"",null,null,null,null,null,""]
[null,null,null,null,null,"","","",null,"",null,null,"",null,null,null,null,null,null,null,null,"",null,null,null,null,null,""]
[null,null,null,null,null,"","","",null,"",null,null,"",null,null,null,null,null,null,null,null,"",null,null,null,null,null,""]
[null,null,null,null,null,"","","",null,"",null,null,"",null,null,null,null,null,null,null,null,"",null,null,null,null,null,""]
[null,null,null,null,null,"","","",null,"",null,null,"",null,null,null,null,null,null,null,null,"",null,null,null,null,null,""]
[null,null,null,null,null,"","","",null,"",null,null,"",null,null,null,null,null,null,null,null,"",null,null,null,null,null,""]
[null,null,null,null,null,"","","",null,"",null,null,"",null,null,null,null,null,null,null,null,"",null,null,null,null,null,""]
[null,null,null,null,null,"","","",null,"",null,null,"",null,null,null,null,null,null,null,null,"",null,null,null,null,null,""]
[null,null,null,null,null,"","","",null,"",null,null,"",null,null,null,null,null,null,null,null,"",null,null,null,null,null,""]
[null,null,null,null,null,"","","",null,"",null,null,"",null,null,null,null,null,null,null,null,"",null,null,null,null,null,""]
[null,null,null,null,null,"","","",null,"",null,null,"",null,null,null,null,null,null,null,null,"",null,null,null,null,null,""]
[null,null,null,null,null,"","","",null,"",null,null,"",null,null,null,null,null,null,null,null,"",null,null,null,null,null,""]
[null,null,null,null,null,"","","",null,"",null,null,"",null,null,null,null,null,null,null,null,"",null,null,null,null,null,""]
[null,null,null,null,null,"","","",null,"",null,null,"",null,null,null,null,null,null,null,null,"",null,null,null,null,null,""]
[null,null,null,null,null,"","","",null,"",null,null,"",null,null,null,null,null,null,null,null,"",null,null,null,null,null,""]
[null,null,null,null,null,"","","",null,"",null,null,"",null,null,null,null,null,null,null,null,"",null,null,null,null,null,""]
[null,null,null,null,null,"","","",null,"",null,null,"",null,null,null,null,null,null,null,null,"",null,null,null,null,null,""]
[null,null,null,null,null,"","","",null,"",null,null,"",null,null,null,null,null,null,null,null,"",null,null,null,null,null,""]
[null,null,null,null,null,"","","",null,"",null,null,"",null,null,null,null,null,null,null,null,"",null,null,null,null,null,""]
[null,null,null,null,null,"","","",null,"",null,null,"",null,null,null,null,null,null,null,null,"",null,null,null,null,null,""]
[null,null,null,null,null,"","","",null,"",null,null,"",null,null,null,null,null,null,null,null,"",null,null,null,null,null,""]
[null,null,null,null,null,"","","",null,"",null,null,"",null,null,null,null,null,null,null,null,"",null,null,null,null,null,""]
[null,null,null,null,null,"","","",null,"",null,null,"",null,null,null,null,null,null,null,null,"",null,null,null,null,null,""]
[null,null,null,null,null,"","","",null,"",null,null,"",null,null,null,null,null,null,null,null,"",null,null,null,null,null,""]
[null,null,null,null,null,"","","",null,"",null,null,"",null,null,null,null,null,null,null,null,"",null,null,null,null,null,""]
[null,null,null,null,null,"","","",null,"",null,null,"",null,null,null,null,null,null,null,null,"",null,null,null,null,null,""]
[null,null,null,null,null,"","","",null,"",null,null,"",null,null,null,null,null,null,null,null,"",null,null,null,null,null,""]
[null,null,null,null,null,"","","",null,"",null,null,"",null,null,null,null,null,null,null,null,"",null,null,null,null,null,""]
[null,null,null,null,null,"","","",null,"",null,null,"",null,null,null,null,null,null,null,null,"",null,null,null,null,null,""]
[null,null,null,null,null,"","","",null,"",null,null,"",null,null,null,null,null,null,null,null,"",null,null,null,null,null,""]
[null,null,null,null,null,"","","",null,"",null,null,"",null,null,null,null,null,null,null,null,"",null,null,null,null,null,""]
[null,null,null,null,null,"","","",null,"",null,null,"",null,null,null,null,null,null,null,null,"",null,null,null,null,null,""]
[null,null,null,null,null,"","","",null,"",null,null,"",null,null,null,null,null,null,null,null,"",null,null,null,null,null,""]
[null,null,null,null,null,"","","",null,"",null,null,"",null,null,null,null,null,null,null,null,"",null,null,null,null,null,""]
[null,null,null,null,null,"","","",null,"",null,null,"",null,null,null,null,null,null,null,null,"",null,null,null,null,null,""]
[null,null,null,null,null,"","","",null,"",null,null,"",null,null,null,null,null,null,null,null,"",null,null,null,null,null,""]
[null,null,null,null,null,"","","",null,"",null,null,"",null,null,null,null,null,null,null,null,"",null,null,null,null,null,""]
[null,null,null,null,null,"","","",null,"",null,null,"",null,null,null,null,null,null,null,null,"",null,null,null,null,null,""]
[null,null,null,null,null,{"$f":"IF(AND(LEN(A782)>0,LEN(B782)>0),0.95^14,\"\")","v":""},{"$f":"IF(AND(LEN(A782)>0,LEN(B782)>0),0,\"\")","v":""},{"$f":"IF(AND(LEN(A782)>0,LEN(B782)>0),(C782+D782+E782)*F782+G782,\"\")","v":""},null,{"$f":"IF(AND(LEN(A782)>0,LEN(B782)>0),I782,\"\")","v":""},null,null,{"$f":"IF(AND(LEN(A782)>0,LEN(B782)>0),SUM(J782:L782),\"\")","v":""},null,null,null,null,null,null,null,null,{"$f":"IF(AND((A782)>0,(B782)>0),IF(H782-M782<0,N782+O782+P782+Q782++S782+T782-U782,H782-M782+N782+O782+P782+Q782+R782+S782-T782-U782),\"\")","v":""},null,null,null,null,null,{"$f":"IF(AND(LEN(A782)>0,LEN(B782)>0),IF((V782-(X782+Y782+Z782)-AA782)<0,0,V782-(X782+Y782+Z782)-AA782),\"\")","v":""}]
[null,null,null,null,null,"","","",null,"",null,null,"",null,null,null,null,null,null,null,null,"",null,null,null,null,null,""]
[null,null,null,null,null,"","","",null,"",null,null,"",null,null,null,null,null,null,null,null,"",null,null,null,null,null,""]
[null,null,null,null,null,"","","",null,"",null,null,"",null,null,null,null,null,null,null,null,"",null,null,null,null,null,""]
[null,null,null,null,null,"","","",null,"",null,null,"",null,null,null,null,null,null,null,null,"",null,null,null,null,null,""]
[null,null,null,null,null,"","","",null,"",null,null,"",null,null,null,null,null,null,null,null,"",null,null,null,null,null,""]
[null,null,null,null,null,"","","",null,"",null,null,"",null,null,null,null,null,null,null,null,"",null,null,null,null,null,""]
[null,null,null,null,null,"","","",null,"",null,null,"",null,null,null,null,null,null,null,null,"",null,null,null,null,null,""]
[null,null,null,null,null,"","","",null,"",null,null,"",null,null,null,null,null,null,null,null,"",null,null,null,null,null,""]
[null,null,null,null,null,"","","",null,"",null,null,"",null,null,null,null,null,null,null,null,"",null,null,null,null,null,""]
[null,null,null,null,null,"","","",null,"",null,null,"",null,null,null,null,null,null,null,null,"",null,null,null,null,null,""]
[null,null,null,null,null,"","","",null,"",null,null,"",null,null,null,null,null,null,null,null,"",null,null,null,null,null,""]
[null,null,null,null,null,"","","",null,"",null,null,"",null,null,null,null,null,null,null,null,"",null,null,null,null,null,""]
[null,null,null,null,null,"","","",null,"",null,null,"",null,null,null,null,null,null,null,null,"",null,null,null,null,null,""]
[null,null,null,null,null,"","","",null,"",null,null,"",null,null,null,null,null,null,null,null,"",null,null,null,null,null,""]
[null,null,null,null,null,"","","",null,"",null,null,"",null,null,null,null,null,null,null,null,"",null,null,null,null,null,""]
[null,null,null,null,null,"","","",null,"",null,null,"",null,null,null,null,null,null,null,null,"",null,null,null,null,null,""]
[null,null,null,null,null,"","","",null,"",null,null,"",null,null,null,null,null,null,null,null,"",null,null,null,null,null,""]
[null,null,null,null,null,"","","",null,"",null,null,"",null,null,null,null,null,null,null,null,"",null,null,null,null,null,""]
[null,null,null,null,null,"","","",null,"",null,null,"",null,null,null,null,null,null,null,null,"",null,null,null,null,null,""]
[null,null,null,null,null,"","","",null,"",null,null,"",null,null,null,null,null,null,null,null,"",null,null,null,null,null,""]
[null,null,null,null,null,"","","",null,"",null,null,"",null,null,null,null,null,null,null,null,"",null,null,null,null,null,""]
[null,null,null,null,null,"","","",null,"",null,null,"",null,null,null,null,null,null,null,null,"",null,null,null,null,null,""]
[null,null,null,null,null,"","","",null,"",null,null,"",null,null,null,null,null,null,null,null,"",null,null,null,null,null,""]
[null,null,null,null,null,"","","",null,"",null,null,"",null,null,null,null,null,null,null,null,"",null,null,null,null,null,""]
[null,null,null,null,null,"","","",null,"",null,null,"",null,null,null,null,null,null,null,null,"",null,null,null,null,null,""]
[null,null,null,null,null,"","","",null,"",null,null,"",null,null,null,null,null,null,null,null,"",null,null,null,null,null,""]
[null,null,null,null,null,"","","",null,"",null,null,"",null,null,null,null,null,null,null,null,"",null,null,null,null,null,""]
[null,null,null,null,null,"","","",null,"",null,null,"",null,null,null,null,null,null,null,null,"",null,null,null,null,null,""]
[null,null,null,null,null,"","","",null,"",null,null,"",null,null,null,null,null,null,null,null,"",null,null,null,null,null,""]
[null,null,null,null,null,"","","",null,"",null,null,"",null,null,null,null,null,null,null,null,"",null,null,null,null,null,""]
[null,null,null,null,null,"","","",null,"",null,null,"",null,null,null,null,null,null,null,null,"",null,null,null,null,null,""]
[null,null,null,null,null,"","","",null,"",null,null,"",null,null,null,null,null,null,null,null,"",null,null,null,null,null,""]
[null,null,null,null,null,"","","",null,"",null,null,"",null,null,null,null,null,null,null,null,"",null,null,null,null,null,""]
[null,null,null,null,null,"","","",null,"",null,null,"",null,null,null,null,null,null,null,null,"",null,null,null,null,null,""]
[null,null,null,null,null,"","","",null,"",null,null,"",null,null,null,null,null,null,null,null,"",null,null,null,null,null,""]
[null,null,null,null,null,"","","",null,"",null,null,"",null,null,null,null,null,null,null,null,"",null,null,null,null,null,""]
[null,null,null,null,null,"","","",null,"",null,null,"",null,null,null,null,null,null,null,null,"",null,null,null,null,null,""]
[null,null,null,null,null,"","","",null,"",null,null,"",null,null,null,null,null,null,null,null,"",null,null,null,null,null,""]
[null,null,null,null,null,"","","",null,"",null,null,"",null,null,null,null,null,null,null,null,"",null,null,null,null,null,""]
[null,null,null,null,null,"","","",null,"",null,null,"",null,null,null,null,null,null,null,null,"",null,null,null,null,null,""]
[null,null,null,null,null,"","","",null,"",null,null,"",null,null,null,null,null,null,null,null,"",null,null,null,null,null,""]
[null,null,null,null,null,"","","",null,"",null,null,"",null,null,null,null,null,null,null,null,"",null,null,null,null,null,""]
[null,null,null,null,null,"","","",null,"",null,null,"",null,null,null,null,null,null,null,null,"",null,null,null,null,null,""]
[null,null,null,null,null,"","","",null,"",null,null,"",null,null,null,null,null,null,null,null,"",null,null,null,null,null,""]
[null,null,null,null,null,"","","",null,"",null,null,"",null,null,null,null,null,null,null,null,"",null,null,null,null,null,""]
[null,null,null,null,null,"","","",null,"",null,null,"",null,null,null,null,null,null,null,null,"",null,null,null,null,null,""]
[null,null,null,null,null,"","","",null,"",null,null,"",null,null,null,null,null,null,null,null,"",null,null,null,null,null,""]
[null,null,null,null,null,"","","",null,"",null,null,"",null,null,null,null,null,null,null,null,"",null,null,null,null,null,""]
[null,null,null,null,null,"","","",null,"",null,null,"",null,null,null,null,null,null,null,null,"",null,null,null,null,null,""]
[null,null,null,null,null,"","","",null,"",null,null,"",null,null,null,null,null,null,null,null,"",null,null,null,null,null,""]
[null,null,null,null,null,"","","",null,"",null,null,"",null,null,null,null,null,null,null,null,"",null,null,null,null,null,""]
[null,null,null,null,null,"","","",null,"",null,null,"",null,null,null,null,null,null,null,null,"",null,null,null,null,null,""]
[null,null,null,null,null,"","","",null,"",null,null,"",null,null,null,null,null,null,null,null,"",null,null,null,null,null,""]
[null,null,null,null,null,"","","",null,"",null,null,"",null,null,null,null,null,null,null,null,"",null,null,null,null,null,""]
[null,null,null,null,null,"","","",null,"",null,null,"",null,null,null,null,null,null,null,null,"",null,null,null,null,null,""]
[null,null,null,null,null,"","","",null,"",null,null,"",null,null,null,null,null,null,null,null,"",null,null,null,null,null,""]
[null,null,null,null,null,"","","",null,"",null,null,"",null,null,null,null,null,null,null,null,"",null,null,null,null,null,""]
[null,null,null,null,null,"","","",null,"",null,null,"",null,null,null,null,null,null,null,null,"",null,null,null,null,null,""]
[null,null,null,null,null,"","","",null,"",null,null,"",null,null,null,null,null,null,null,null,"",null,null,null,null,null,""]
[null,null,null,null,null,"","","",null,"",null,null,"",null,null,null,null,null,null,null,null,"",null,null,null,null,null,""]
[null,null,null,null,null,"","","",null,"",null,null,"",null,null,null,null,null,null,null,null,"",null,null,null,null,null,""]
[null,null,null,null,null,"","","",null,"",null,null,"",null,null,null,null,null,null,null,null,"",null,null,null,null,null,""]
[null,null,null,null,null,"","","",null,"",null,null,"",null,null,null,null,null,null,null,null,"",null,null,null,null,null,""]
[null,null,null,null,null,{"$f":"IF(AND(LEN(A846)>0,LEN(B846)>0),0.95^14,\"\")","v":""},{"$f":"IF(AND(LEN(A846)>0,LEN(B846)>0),0,\"\")","v":""},{"$f":"IF(AND(LEN(A846)>0,LEN(B846)>0),(C846+D846+E846)*F846+G846,\"\")","v":""},null,{"$f":"IF(AND(LEN(A846)>0,LEN(B846)>0),I846,\"\")","v":""},null,null,{"$f":"IF(AND(LEN(A846)>0,LEN(B846)>0),SUM(J846:L846),\"\")","v":""},null,null,null,null,null,null,null,null,{"$f":"IF(AND((A846)>0,(B846)>0),IF(H846-M846<0,N846+O846+P846+Q846++S846+T846-U846,H846-M846+N846+O846+P846+Q846+R846+S846-T846-U846),\"\")","v":""},null,null,null,null,null,{"$f":"IF(AND(LEN(A846)>0,LEN(B846)>0),IF((V846-(X846+Y846+Z846)-AA846)<0,0,V846-(X846+Y846+Z846)-AA846),\"\")","v":""}]
[null,null,null,null,null,"","","",null,"",null,null,"",null,null,null,null,null,null,null,null,"",null,null,null,null,null,""]
[null,null,null,null,null,"","","",null,"",null,null,"",null,null,null,null,null,null,null,null,"",null,null,null,null,null,""]
[null,null,null,null,null,"","","",null,"",null,null,"",null,null,null,null,null,null,null,null,"",null,null,null,null,null,""]
[null,null,null,null,null,"","","",null,"",null,null,"",null,null,null,null,null,null,null,null,"",null,null,null,null,null,""]
[null,null,null,null,null,"","","",null,"",null,null,"",null,null,null,null,null,null,null,null,"",null,null,null,null,null,""]
[null,null,null,null,null,"","","",null,"",null,null,"",null,null,null,null,null,null,null,null,"",null,null,null,null,null,""]
[null,null,null,null,null,"","","",null,"",null,null,"",null,null,null,null,null,null,null,null,"",null,null,null,null,null,""]
[null,null,null,null,null,"","","",null,"",null,null,"",null,null,null,null,null,null,null,null,"",null,null,null,null,null,""]
[null,null,null,null,null,"","","",null,"",null,null,"",null,null,null,null,null,null,null,null,"",null,null,null,null,null,""]
[null,null,null,null,null,"","","",null,"",null,null,"",null,null,null,null,null,null,null,null,"",null,null,null,null,null,""]
[null,null,null,null,null,"","","",null,"",null,null,"",null,null,null,null,null,null,null,null,"",null,null,null,null,null,""]
[null,null,null,null,null,"","","",null,"",null,null,"",null,null,null,null,null,null,null,null,"",null,null,null,null,null,""]
[null,null,null,null,null,"","","",null,"",null,null,"",null,null,null,null,null,null,null,null,"",null,null,null,null,null,""]
[null,null,null,null,null,"","","",null,"",null,null,"",null,null,null,null,null,null,null,null,"",null,null,null,null,null,""]
[null,null,null,null,null,"","","",null,"",null,null,"",null,null,null,null,null,null,null,null,"",null,null,null,null,null,""]
[null,null,null,null,null,"","","",null,"",null,null,"",null,null,null,null,null,null,null,null,"",null,null,null,null,null,""]
[null,null,null,null,null,"","","",null,"",null,null,"",null,null,null,null,null,null,null,null,"",null,null,null,null,null,""]
[null,null,null,null,null,"","","",null,"",null,null,"",null,null,null,null,null,null,null,null,"",null,null,null,null,null,""]
[null,null,null,null,null,"","","",null,"",null,null,"",null,null,null,null,null,null,null,null,"",null,null,null,null,null,""]
[null,null,null,null,null,"","","",null,"",null,null,"",null,null,null,null,null,null,null,null,"",null,null,null,null,null,""]
[null,null,null,null,null,"","","",null,"",null,null,"",null,null,null,null,null,null,null,null,"",null,null,null,null,null,""]
[null,null,null,null,null,"","","",null,"",null,null,"",null,null,null,null,null,null,null,null,"",null,null,null,null,null,""]
[null,null,null,null,null,"","","",null,"",null,null,"",null,null,null,null,null,null,null,null,"",null,null,null,null,null,""]
[null,null,null,null,null,"","","",null,"",null,null,"",null,null,null,null,null,null,null,null,"",null,null,null,null,null,""]
[null,null,null,null,null,"","","",null,"",null,null,"",null,null,null,null,null,null,null,null,"",null,null,null,null,null,""]
[null,null,null,null,null,"","","",null,"",null,null,"",null,null,null,null,null,null,null,null,"",null,null,null,null,null,""]
[null,null,null,null,null,"","","",null,"",null,null,"",null,null,null,null,null,null,null,null,"",null,null,null,null,null,""]
[null,null,null,null,null,"","","",null,"",null,null,"",null,null,null,null,null,null,null,null,"",null,null,null,null,null,""]
[null,null,null,null,null,"","","",null,"",null,null,"",null,null,null,null,null,null,null,null,"",null,null,null,null,null,""]
[null,null,null,null,null,"","","",null,"",null,null,"",null,null,null,null,null,null,null,null,"",null,null,null,null,null,""]
[null,null,null,null,null,"","","",null,"",null,null,"",null,null,null,null,null,null,null,null,"",null,null,null,null,null,""]
[null,null,null,null,null,"","","",null,"",null,null,"",null,null,null,null,null,null,null,null,"",null,null,null,null,null,""]
[null,null,null,null,null,"","","",null,"",null,null,"",null,null,null,null,null,null,null,null,"",null,null,null,null,null,""]
[null,null,null,null,null,"","","",null,"",null,null,"",null,null,null,null,null,null,null,null,"",null,null,null,null,null,""]
[null,null,null,null,null,"","","",null,"",null,null,"",null,null,null,null,null,null,null,null,"",null,null,null,null,null,""]
[null,null,null,null,null,"","","",null,"",null,null,"",null,null,null,null,null,null,null,null,"",null,null,null,null,null,""]
[null,null,null,null,null,"","","",null,"",null,null,"",null,null,null,null,null,null,null,null,"",null,null,null,null,null,""]
[null,null,null,null,null,"","","",null,"",null,null,"",null,null,null,null,null,null,null,null,"",null,null,null,null,null,""]
[null,null,null,null,null,"","","",null,"",null,null,"",null,null,null,null,null,null,null,null,"",null,null,null,null,null,""]
[null,null,null,null,null,"","","",null,"",null,null,"",null,null,null,null,null,null,null,null,"",null,null,null,null,null,""]
[null,null,null,null,null,"","","",null,"",null,null,"",null,null,null,null,null,null,null,null,"",null,null,null,null,null,""]
[null,null,null,null,null,"","","",null,"",null,null,"",null,null,null,null,null,null,null,null,"",null,null,null,null,null,""]
[null,null,null,null,null,"","","",null,"",null,null,"",null,null,null,null,null,null,null,null,"",null,null,null,null,null,""]
[null,null,null,null,null,"","","",null,"",null,null,"",null,null,null,null,null,null,null,null,"",null,null,null,null,null,""]
[null,null,null,null,null,"","","",null,"",null,null,"",null,null,null,null,null,null,null,null,"",null,null,null,null,null,""]
[null,null,null,null,null,"","","",null,"",null,null,"",null,null,null,null,null,null,null,null,"",null,null,null,null,null,""]
[null,null,null,null,null,"","","",null,"",null,null,"",null,null,null,null,null,null,null,null,"",null,null,null,null,null,""]
[null,null,null,null,null,"","","",null,"",null,null,"",null,null,null,null,null,null,null,null,"",null,null,null,null,null,""]
[null,null,null,null,null,"","","",null,"",null,null,"",null,null,null,null,null,null,null,null,"",null,null,null,null,null,""]
[null,null,null,null,null,"","","",null,"",null,null,"",null,null,null,null,null,null,null,null,"",null,null,null,null,null,""]
[null,null,null,null,null,"","","",null,"",null,null,"",null,null,null,null,null,null,null,null,"",null,null,null,null,null,""]
[null,null,null,null,null,"","","",null,"",null,null,"",null,null,null,null,null,null,null,null,"",null,null,null,null,null,""]
[null,null,null,null,null,"","","",null,"",null,null,"",null,null,null,null,null,null,null,null,"",null,null,null,null,null,""]
[null,null,null,null,null,"","","",null,"",null,null,"",null,null,null,null,null,null,null,null,"",null,null,null,null,null,""]
[null,null,null,null,null,"","","",null,"",null,null,"",null,null,null,null,null,null,null,null,"",null,null,null,null,null,""]
[null,null,null,null,null,"","","",null,"",null,null,"",null,null,null,null,null,null,null,null,"",null,null,null,null,null,""]
[null,null,null,null,null,"","","",null,"",null,null,"",null,null,null,null,null,null,null,null,"",null,null,null,null,null,""]
[null,null,null,null,null,"","","",null,"",null,null,"",null,null,null,null,null,null,null,null,"",null,null,null,null,null,""]
[null,null,null,null,null,"","","",null,"",null,null,"",null,null,null,null,null,null,null,null,"",null,null,null,null,null,""]
[null,null,null,null,null,"","","",null,"",null,null,"",null,null,null,null,null,null,null,null,"",null,null,null,null,null,""]
[null,null,null,null,null,"","","",null,"",null,null,"",null,null,null,null,null,null,null,null,"",null,null,null,null,null,""]
[null,null,null,null,null,"","","",null,"",null,null,"",null,null,null,null,null,null,null,null,"",null,null,null,null,null,""]
[null,null,null,null,null,"","","",null,"",null,null,"",null,null,null,null,null,null,null,null,"",null,null,null,null,null,""]
[null,null,null,null,null,{"$f":"IF(AND(LEN(A910)>0,LEN(B910)>0),0.95^14,\"\")","v":""},{"$f":"IF(AND(LEN(A910)>0,LEN(B910)>0),0,\"\")","v":""},{"$f":"IF(AND(LEN(A910)>0,LEN(B910)>0),(C910+D910+E910)*F910+G910,\"\")","v":""},null,{"$f":"IF(AND(LEN(A910)>0,LEN(B910)>0),I910,\"\")","v":""},null,null,{"$f":"IF(AND(LEN(A910)>0,LEN(B910)>0),SUM(J910:L910),\"\")","v":""},null,null,null,null,null,null,null,null,{"$f":"IF(AND((A910)>0,(B910)>0),IF(H910-M910<0,N910+O910+P910+Q910++S910+T910-U910,H910-M910+N910+O910+P910+Q910+R910+S910-T910-U910),\"\")","v":""},null,null,null,null,null,{"$f":"IF(AND(LEN(A910)>0,LEN(B910)>0),IF((V910-(X910+Y910+Z910)-AA910)<0,0,V910-(X910+Y910+Z910)-AA910),\"\")","v":""}]
[null,null,null,null,null,"","","",null,"",null,null,"",null,null,null,null,null,null,null,null,"",null,null,null,null,null,""]
[null,null,null,null,null,"","","",null,"",null,null,"",null,null,null,null,null,null,null,null,"",null,null,null,null,null,""]
[null,null,null,null,null,"","","",null,"",null,null,"",null,null,null,null,null,null,null,null,"",null,null,null,null,null,""]
[null,null,null,null,null,"","","",null,"",null,null,"",null,null,null,null,null,null,null,null,"",null,null,null,null,null,""]
[null,null,null,null,null,"","","",null,"",null,null,"",null,null,null,null,null,null,null,null,"",null,null,null,null,null,""]
[null,null,null,null,null,"","","",null,"",null,null,"",null,null,null,null,null,null,null,null,"",null,null,null,null,null,""]
[null,null,null,null,null,"","","",null,"",null,null,"",null,null,null,null,null,null,null,null,"",null,null,null,null,null,""]
[null,null,null,null,null,"","","",null,"",null,null,"",null,null,null,null,null,null,null,null,"",null,null,null,null,null,""]
[null,null,null,null,null,"","","",null,"",null,null,"",null,null,null,null,null,null,null,null,"",null,null,null,null,null,""]
[null,null,null,null,null,"","","",null,"",null,null,"",null,null,null,null,null,null,null,null,"",null,null,null,null,null,""]
[null,null,null,null,null,"","","",null,"",null,null,"",null,null,null,null,null,null,null,null,"",null,null,null,null,null,""]
[null,null,null,null,null,"","","",null,"",null,null,"",null,null,null,null,null,null,null,null,"",null,null,null,null,null,""]
[null,null,null,null,null,"","","",null,"",null,null,"",null,null,null,null,null,null,null,null,"",null,null,null,null,null,""]
[null,null,null,null,null,"","","",null,"",null,null,"",null,null,null,null,null,null,null,null,"",null,null,null,null,null,""]
[null,null,null,null,null,"","","",null,"",null,null,"",null,null,null,null,null,null,null,null,"",null,null,null,null,null,""]
[null,null,null,null,null,"","","",null,"",null,null,"",null,null,null,null,null,null,null,null,"",null,null,null,null,null,""]
[null,null,null,null,null,"","","",null,"",null,null,"",null,null,null,null,null,null,null,null,"",null,null,null,null,null,""]
[null,null,null,null,null,"","","",null,"",null,null,"",null,null,null,null,null,null,null,null,"",null,null,null,null,null,""]
[null,null,null,null,null,"","","",null,"",null,null,"",null,null,null,null,null,null,null,null,"",null,null,null,null,null,""]
[null,null,null,null,null,"","","",null,"",null,null,"",null,null,null,null,null,null,null,null,"",null,null,null,null,null,""]
[null,null,null,null,null,"","","",null,"",null,null,"",null,null,null,null,null,null,null,null,"",null,null,null,null,null,""]
[null,null,null,null,null,"","","",null,"",null,null,"",null,null,null,null,null,null,null,null,"",null,null,null,null,null,""]
[null,null,null,null,null,"","","",null,"",null,null,"",null,null,null,null,null,null,null,null,"",null,null,null,null,null,""]
[null,null,null,null,null,"","","",null,"",null,null,"",null,null,null,null,null,null,null,null,"",null,null,null,null,null,""]
[null,null,null,null,null,"","","",null,"",null,null,"",null,null,null,null,null,null,null,null,"",null,null,null,null,null,""]
[null,null,null,null,null,"","","",null,"",null,null,"",null,null,null,null,null,null,null,null,"",null,null,null,null,null,""]
[null,null,null,null,null,"","","",null,"",null,null,"",null,null,null,null,null,null,null,null,"",null,null,null,null,null,""]
[null,null,null,null,null,"","","",null,"",null,null,"",null,null,null,null,null,null,null,null,"",null,null,null,null,null,""]
[null,null,null,null,null,"","","",null,"",null,null,"",null,null,null,null,null,null,null,null,"",null,null,null,null,null,""]
[null,null,null,null,null,"","","",null,"",null,null,"",null,null,null,null,null,null,null,null,"",null,null,null,null,null,""]
[null,null,null,null,null,"","","",null,"",null,null,"",null,null,null,null,null,null,null,null,"",null,null,null,null,null,""]
[null,null,null,null,null,"","","",null,"",null,null,"",null,null,null,null,null,null,null,null,"",null,null,null,null,null,""]
[null,null,null,null,null,"","","",null,"",null,null,"",null,null,null,null,null,null,null,null,"",null,null,null,null,null,""]
[null,null,null,null,null,"","","",null,"",null,null,"",null,null,null,null,null,null,null,null,"",null,null,null,null,null,""]
[null,null,null,null,null,"","","",null,"",null,null,"",null,null,null,null,null,null,null,null,"",null,null,null,null,null,""]
[null,null,null,null,null,"","","",null,"",null,null,"",null,null,null,null,null,null,null,null,"",null,null,null,null,null,""]
[null,null,null,null,null,"","","",null,"",null,null,"",null,null,null,null,null,null,null,null,"",null,null,null,null,null,""]
[null,null,null,null,null,"","","",null,"",null,null,"",null,null,null,null,null,null,null,null,"",null,null,null,null,null,""]
[null,null,null,null,null,"","","",null,"",null,null,"",null,null,null,null,null,null,null,null,"",null,null,null,null,null,""]
[null,null,null,null,null,"","","",null,"",null,null,"",null,null,null,null,null,null,null,null,"",null,null,null,null,null,""]
[null,null,null,null,null,"","","",null,"",null,null,"",null,null,null,null,null,null,null,null,"",null,null,null,null,null,""]
[null,null,null,null,null,"","","",null,"",null,null,"",null,null,null,null,null,null,null,null,"",null,null,null,null,null,""]
[null,null,null,null,null,"","","",null,"",null,null,"",null,null,null,null,null,null,null,null,"",null,null,null,null,null,""]
[null,null,null,null,null,"","","",null,"",null,null,"",null,null,null,null,null,null,null,null,"",null,null,null,null,null,""]
[null,null,null,null,null,"","","",null,"",null,null,"",null,null,null,null,null,null,null,null,"",null,null,null,null,null,""]
[null,null,null,null,null,"","","",null,"",null,null,"",null,null,null,null,null,null,null,null,"",null,null,null,null,null,""]
[null,null,null,null,null,"","","",null,"",null,null,"",null,null,null,null,null,null,null,null,"",null,null,null,null,null,""]
[null,null,null,null,null,"","","",null,"",null,null,"",null,null,null,null,null,null,null,null,"",null,null,null,null,null,""]
[null,null,null,null,null,"","","",null,"",null,null,"",null,null,null,null,null,null,null,null,"",null,null,null,null,null,""]
[null,null,null,null,null,"","","",null,"",null,null,"",null,null,null,null,null,null,null,null,"",null,null,null,null,null,""]
[null,null,null,null,null,"","","",null,"",null,null,"",null,null,null,null,null,null,null,null,"",null,null,null,null,null,""]
[null,null,null,null,null,"","","",null,"",null,null,"",null,null,null,null,null,null,null,null,"",null,null,null,null,null,""]
[null,null,null,null,null,"","","",null,"",null,null,"",null,null,null,null,null,null,null,null,"",null,null,null,null,null,""]
[null,null,null,null,null,"","","",null,"",null,null,"",null,null,null,null,null,null,null,null,"",null,null,null,null,null,""]
[null,null,null,null,null,"","","",null,"",null,null,"",null,null,null,null,null,null,null,null,"",null,null,null,null,null,""]
[null,null,null,null,null,"","","",null,"",null,null,"",null,null,null,null,null,null,null,null,"",null,null,null,null,null,""]
[null,null,null,null,null,"","","",null,"",null,null,"",null,null,null,null,null,null,null,null,"",null,null,null,null,null,""]
[null,null,null,null,null,"","","",null,"",null,null,"",null,null,null,null,null,null,null,null,"",null,null,null,null,null,""]
[null,null,null,null,null,"","","",null,"",null,null,"",null,null,null,null,null,null,null,null,"",null,null,null,null,null,""]
[null,null,null,null,null,"","","",null,"",null,null,"",null,null,null,null,null,null,null,null,"",null,null,null,null,null,""]
[null,null,null,null,null,"","","",null,"",null,null,"",null,null,null,null,null,null,null,null,"",null,null,null,null,null,""]
[null,null,null,null,null,"","","",null,"",null,null,"",null,null,null,null,null,null,null,null,"",null,null,null,null,null,""]
[null,null,null,null,null,"","","",null,"",null,null,"",null,null,null,null,null,null,null,null,"",null,null,null,null,null,""]
[null,null,null,null,null,{"$f":"IF(AND(LEN(A974)>0,LEN(B974)>0),0.95^14,\"\")","v":""},{"$f":"IF(AND(LEN(A974)>0,LEN(B974)>0),0,\"\")","v":""},{"$f":"IF(AND(LEN(A974)>0,LEN(B974)>0),(C974+D974+E974)*F974+G974,\"\")","v":""},null,{"$f":"IF(AND(LEN(A974)>0,LEN(B974)>0),I974,\"\")","v":""},null,null,{"$f":"IF(AND(LEN(A974)>0,LEN(B974)>0),SUM(J974:L974),\"\")","v":""},null,null,null,null,null,null,null,null,{"$f":"IF(AND((A974)>0,(B974)>0),IF(H974-M974<0,N974+O974+P974+Q974++S974+T974-U974,H974-M974+N974+O974+P974+Q974+R974+S974-T974-U974),\"\")","v":""},null,null,null,null,null,{"$f":"IF(AND(LEN(A974)>0,LEN(B974)>0),IF((V974-(X974+Y974+Z974)-AA974)<0,0,V974-(X974+Y974+Z974)-AA974),\"\")","v":""}]
[null,null,null,null,null,"","","",null,"",null,null,"",null,null,null,null,null,null,null,null,"",null,null,null,null,null,""]
[null,null,null,null,null,"","","",null,"",null,null,"",null,null,null,null,null,null,null,null,"",null,null,null,null,null,""]
[null,null,null,null,null,"","","",null,"",null,null,"",null,null,null,null,null,null,null,null,"",null,null,null,null,null,""]
[null,null,null,null,null,"","","",null,"",null,null,"",null,null,null,null,null,null,null,null,"",null,null,null,null,null,""]
[null,null,null,null,null,"","","",null,"",null,null,"",null,null,null,null,null,null,null,null,"",null,null,null,null,null,""]
[null,null,null,null,null,"","","",null,"",null,null,"",null,null,null,null,null,null,null,null,"",null,null,null,null,null,""]
[null,null,null,null,null,"","","",null,"",null,null,"",null,null,null,null,null,null,null,null,"",null,null,null,null,null,""]
[null,null,null,null,null,"","","",null,"",null,null,"",null,null,null,null,null,null,null,null,"",null,null,null,null,null,""]
[null,null,null,null,null,"","","",null,"",null,null,"",null,null,null,null,null,null,null,null,"",null,null,null,null,null,""]
[null,null,null,null,null,"","","",null,"",null,null,"",null,null,null,null,null,null,null,null,"",null,null,null,null,null,""]
[null,null,null,null,null,"","","",null,"",null,null,"",null,null,null,null,null,null,null,null,"",null,null,null,null,null,""]
[null,null,null,null,null,"","","",null,"",null,null,"",null,null,null,null,null,null,null,null,"",null,null,null,null,null,""]
[null,null,null,null,null,"","","",null,"",null,null,"",null,null,null,null,null,null,null,null,"",null,null,null,null,null,""]
[null,null,null,null,null,"","","",null,"",null,null,"",null,null,null,null,null,null,null,null,"",null,null,null,null,null,""]
[null,null,null,null,null,"","","",null,"",null,null,"",null,null,null,null,null,null,null,null,"",null,null,null,null,null,""]
[null,null,null,null,null,"","","",null,"",null,null,"",null,null,null,null,null,null,null,null,"",null,null,null,null,null,""]
[null,null,null,null,null,"","","",null,"",null,null,"",null,null,null,null,null,null,null,null,"",null,null,null,null,null,""]
[null,null,null,null,null,"","","",null,"",null,null,"",null,null,null,null,null,null,null,null,"",null,null,null,null,null,""]
[null,null,null,null,null,"","","",null,"",null,null,"",null,null,null,null,null,null,null,null,"",null,null,null,null,null,""]
[null,null,null,null,null,"","","",null,"",null,null,"",null,null,null,null,null,null,null,null,"",null,null,null,null,null,""]
[null,null,null,null,null,"","","",null,"",null,null,"",null,null,null,null,null,null,null,null,"",null,null,null,null,null,""]
[null,null,null,null,null,"","","",null,"",null,null,"",null,null,null,null,null,null,null,null,"",null,null,null,null,null,""]
[null,null,null,null,null,"","","",null,"",null,null,"",null,null,null,null,null,null,null,null,"",null,null,null,null,null,""]
[null,null,null,null,null,"","","",null,"",null,null,"",null,null,null,null,null,null,null,null,"",null,null,null,null,null,""]
[null,null,null,null,null,"","","",null,"",null,null,"",null,null,null,null,null,null,null,null,"",null,null,null,null,null,""]
[null,null,null,null,null,"","","",null,"",null,null,"",null,null,null,null,null,null,null,null,"",null,null,null,null,null,""]
[null,null,null,null,null,"","","",null,"",null,null,"",null,null,null,null,null,null,null,null,"",null,null,null,null,null,""]
[null,null,null,null,null,"","","",null,"",null,null,"",null,null,null,null,null,null,null,null,"",null,null,null,null,null,""]
[null,null,null,null,null,"","","",null,"",null,null,"",null,null,null,null,null,null,null,null,"",null,null,null,null,null,""]
[null,null,null,null,null,"","","",null,"",null,null,"",null,null,null,null,null,null,null,null,"",null,null,null,null,null,""]
[null,null,null,null,null,"","","",null,"",null,null,"",null,null,null,null,null,null,null,null,"",null,null,null,null,null,""]
[null,null,null,null,null,"","","",null,"",null,null,"",null,null,null,null,null,null,null,null,"",null,null,null,null,null,""]
[null,null,null,null,null,"","","",null,"",null,null,"",null,null,null,null,null,null,null,null,"",null,null,null,null,null,""]
[null,null,null,null,null,"","","",null,"",null,null,"",null,null,null,null,null,null,null,null,"",null,null,null,null,null,""]
[null,null,null,null,null,"","","",null,"",null,null,"",null,null,null,null,null,null,null,null,"",null,null,null,null,null,""]
[null,null,null,null,null,"","","",null,"",null,null,"",null,null,null,null,null,null,null,null,"",null,null,null,null,null,""]
[null,null,null,null,null,"","","",null,"",null,null,"",null,null,null,null,null,null,null,null,"",null,null,null,null,null,""]
[null,null,null,null,null,"","","",null,"",null,null,"",null,null,null,null,null,null,null,null,"",null,null,null,null,null,""]
[null,null,null,null,null,"","","",null,"",null,null,"",null,null,null,null,null,null,null,null,"",null,null,null,null,null,""]
[null,null,null,null,null,"","","",null,"",null,null,"",null,null,null,null,null,null,null,null,"",null,null,null,null,null,""]
[null,null,null,null,null,"","","",null,"",null,null,"",null,null,null,null,null,null,null,null,"",null,null,null,null,null,""]
[null,null,null,null,null,"","","",null,"",null,null,"",null,null,null,null,null,null,null,null,"",null,null,null,null,null,""]
[null,null,null,null,null,"","","",null,"",null,null,"",null,null,null,null,null,null,null,null,"",null,null,null,null,null,""]
[null,null,null,null,null,"","","",null,"",null,null,"",null,null,null,null,null,null,null,null,"",null,null,null,null,null,""]
[null,null,null,null,null,"","","",null,"",null,null,"",null,null,null,null,null,null,null,null,"",null,null,null,null,null,""]
[null,null,null,null,null,"","","",null,"",null,null,"",null,null,null,null,null,null,null,null,"",null,null,null,null,null,""]
[null,null,null,null,null,"","","",null,"",null,null,"",null,null,null,null,null,null,null,null,"",null,null,null,null,null,""]
[null,null,null,null,null,"","","",null,"",null,null,"",null,null,null,null,null,null,null,null,"",null,null,null,null,null,""]
[null,null,null,null,null,"","","",null,"",null,null,"",null,null,null,null,null,null,null,null,"",null,null,null,null,null,""]
[null,null,null,null,null,"","","",null,"",null,null,"",null,null,null,null,null,null,null,null,"",null,null,null,null,null,""]
[null,null,null,null,null,"","","",null,"",null,null,"",null,null,null,null,null,null,null,null,"",null,null,null,null,null,""]
[null,null,null,null,null,"","","",null,"",null,null,"",null,null,null,null,null,null,null,null,"",null,null,null,null,null,""]
[null,null,null,null,null,"","","",null,"",null,null,"",null,null,null,null,null,null,null,null,"",null,null,null,null,null,""]
[null,null,null,null,null,"","","",null,"",null,null,"",null,null,null,null,null,null,null,null,"",null,null,null,null,null,""]
[null,null,null,null,null,"","","",null,"",null,null,"",null,null,null,null,null,null,null,null,"",null,null,null,null,null,""]
[null,null,null,null,null,"","","",null,"",null,null,"",null,null,null,null,null,null,null,null,"",null,null,null,null,null,""]
[null,null,null,null,null,"","","",null,"",null,null,"",null,null,null,null,null,null,null,null,"",null,null,null,null,null,""]
[null,null,null,null,null,"","","",null,"",null,null,"",null,null,null,null,null,null,null,null,"",null,null,null,null,null,""]
[null,null,null,null,null,"","","",null,"",null,null,"",null,null,null,null,null,null,null,null,"",null,null,null,null,null,""]
[null,null,null,null,null,"","","",null,"",null,null,"",null,null,null,null,null,null,null,null,"",null,null,null,null,null,""]
[null,null,null,null,null,"","","",null,"",null,null,"",null,null,null,null,null,null,null,null,"",null,null,null,null,null,""]
[null,null,null,null,null,"","","",null,"",null,null,"",null,null,null,null,null,null,null,null,"",null,null,null,null,null,""]
[null,null,null,null,null,"","","",null,"",null,null,"",null,null,null,null,null,null,null,null,"",null,null,null,null,null,""]
[null,null,null,null,null,{"$f":"IF(AND(LEN(A1038)>0,LEN(B1038)>0),0.95^14,\"\")","v":""},{"$f":"IF(AND(LEN(A1038)>0,LEN(B1038)>0),0,\"\")","v":""},{"$f":"IF(AND(LEN(A1038)>0,LEN(B1038)>0),(C1038+D1038+E1038)*F1038+G1038,\"\")","v":""},null,{"$f":"IF(AND(LEN(A1038)>0,LEN(B1038)>0),I1038,\"\")","v":""},null,null,{"$f":"IF(AND(LEN(A1038)>0,LEN(B1038)>0),SUM(J1038:L1038),\"\")","v":""},null,null,null,null,null,null,null,null,{"$f":"IF(AND((A1038)>0,(B1038)>0),IF(H1038-M1038<0,N1038+O1038+P1038+Q1038++S1038+T1038-U1038,H1038-M1038+N1038+O1038+P1038+Q1038+R1038+S1038-T1038-U1038),\"\")","v":""},null,null,null,null,null,{"$f":"IF(AND(LEN(A1038)>0,LEN(B1038)>0),IF((V1038-(X1038+Y1038+Z1038)-AA1038)<0,0,V1038-(X1038+Y1038+Z1038)-AA1038),\"\")","v":""}]
[null,null,null,null,null,"","","",null,"",null,null,"",null,null,null,null,null,null,null,null,"",null,null,null,null,null,""]
[null,null,null,null,null,"","","",null,"",null,null,"",null,null,null,null,null,null,null,null,"",null,null,null,null,null,""]
[null,null,null,null,null,"","","",null,"",null,null,"",null,null,null,null,null,null,null,null,"",null,null,null,null,null,""]
[null,null,null,null,null,"","","",null,"",null,null,"",null,null,null,null,null,null,null,null,"",null,null,null,null,null,""]
[null,null,null,null,null,"","","",null,"",null,null,"",null,null,null,null,null,null,null,null,"",null,null,null,null,null,""]
[null,null,null,null,null,"","","",null,"",null,null,"",null,null,null,null,null,null,null,null,"",null,null,null,null,null,""]
[null,null,null,null,null,"","","",null,"",null,null,"",null,null,null,null,null,null,null,null,"",null,null,null,null,null,""]
[null,null,null,null,null,"","","",null,"",null,null,"",null,null,null,null,null,null,null,null,"",null,null,null,null,null,""]
[null,null,null,null,null,"","","",null,"",null,null,"",null,null,null,null,null,null,null,null,"",null,null,null,null,null,""]
[null,null,null,null,null,"","","",null,"",null,null,"",null,null,null,null,null,null,null,null,"",null,null,null,null,null,""]
[null,null,null,null,null,"","","",null,"",null,null,"",null,null,null,null,null,null,null,null,"",null,null,null,null,null,""]
[null,null,null,null,null,"","","",null,"",null,null,"",null,null,null,null,null,null,null,null,"",null,null,null,null,null,""]
[null,null,null,null,null,"","","",null,"",null,null,"",null,null,null,null,null,null,null,null,"",null,null,null,null,null,""]
[null,null,null,null,null,"","","",null,"",null,null,"",null,null,null,null,null,null,null,null,"",null,null,null,null,null,""]
[null,null,null,null,null,"","","",null,"",null,null,"",null,null,null,null,null,null,null,null,"",null,null,null,null,null,""]
[null,null,null,null,null,"","","",null,"",null,null,"",null,null,null,null,null,null,null,null,"",null,null,null,null,null,""]
[null,null,null,null,null,"","","",null,"",null,null,"",null,null,null,null,null,null,null,null,"",null,null,null,null,null,""]
[null,null,null,null,null,"","","",null,"",null,null,"",null,null,null,null,null,null,null,null,"",null,null,null,null,null,""]
[null,null,null,null,null,"","","",null,"",null,null,"",null,null,null,null,null,null,null,null,"",null,null,null,null,null,""]
[null,null,null,null,null,"","","",null,"",null,null,"",null,null,null,null,null,null,null,null,"",null,null,null,null,null,""]
[null,null,null,null,null,"","","",null,"",null,null,"",null,null,null,null,null,null,null,null,"",null,null,null,null,null,""]
[null,null,null,null,null,"","","",null,"",null,null,"",null,null,null,null,null,null,null,null,"",null,null,null,null,null,""]
[null,null,null,null,null,"","","",null,"",null,null,"",null,null,null,null,null,null,null,null,"",null,null,null,null,null,""]
[null,null,null,null,null,"","","",null,"",null,null,"",null,null,null,null,null,null,null,null,"",null,null,null,null,null,""]
[null,null,null,null,null,"","","",null,"",null,null,"",null,null,null,null,null,null,null,null,"",null,null,null,null,null,""]
[null,null,null,null,null,"","","",null,"",null,null,"",null,null,null,null,null,null,null,null,"",null,null,null,null,null,""]
[null,null,null,null,null,"","","",null,"",null,null,"",null,null,null,null,null,null,null,null,"",null,null,null,null,null,""]
[null,null,null,null,null,"","","",null,"",null,null,"",null,null,null,null,null,null,null,null,"",null,null,null,null,null,""]
[null,null,null,null,null,"","","",null,"",null,null,"",null,null,null,null,null,null,null,null,"",null,null,null,null,null,""]
[null,null,null,null,null,"","","",null,"",null,null,"",null,null,null,null,null,null,null,null,"",null,null,null,null,null,""]
[null,null,null,null,null,"","","",null,"",null,null,"",null,null,null,null,null,null,null,null,"",null,null,null,null,null,""]
[null,null,null,null,null,"","","",null,"",null,null,"",null,null,null,null,null,null,null,null,"",null,null,null,null,null,""]
[null,null,null,null,null,"","","",null,"",null,null,"",null,null,null,null,null,null,null,null,"",null,null,null,null,null,""]
[null,null,null,null,null,"","","",null,"",null,null,"",null,null,null,null,null,null,null,null,"",null,null,null,null,null,""]
[null,null,null,null,null,"","","",null,"",null,null,"",null,null,null,null,null,null,null,null,"",null,null,null,null,null,""]
[null,null,null,null,null,"","","",null,"",null,null,"",null,null,null,null,null,null,null,null,"",null,null,null,null,null,""]
[null,null,null,null,null,"","","",null,"",null,null,"",null,null,null,null,null,null,null,null,"",null,null,null,null,null,""]
[null,null,null,null,null,"","","",null,"",null,null,"",null,null,null,null,null,null,null,null,"",null,null,null,null,null,""]
[null,null,null,null,null,"","","",null,"",null,null,"",null,null,null,null,null,null,null,null,"",null,null,null,null,null,""]
[null,null,null,null,null,"","","",null,"",null,null,"",null,null,null,null,null,null,null,null,"",null,null,null,null,null,""]
[null,null,null,null,null,"","","",null,"",null,null,"",null,null,null,null,null,null,null,null,"",null,null,null,null,null,""]
[null,null,null,null,null,"","","",null,"",null,null,"",null,null,null,null,null,null,null,null,"",null,null,null,null,null,""]
[null,null,null,null,null,"","","",null,"",null,null,"",null,null,null,null,null,null,null,null,"",null,null,null,null,null,""]
[null,null,null,null,null,"","","",null,"",null,null,"",null,null,null,null,null,null,null,null,"",null,null,null,null,null,""]
[null,null,null,null,null,"","","",null,"",null,null,"",null,null,null,null,null,null,null,null,"",null,null,null,null,null,""]
[null,null,null,null,null,"","","",null,"",null,null,"",null,null,null,null,null,null,null,null,"",null,null,null,null,null,""]
[null,null,null,null,null,"","","",null,"",null,null,"",null,null,null,null,null,null,null,null,"",null,null,null,null,null,""]
[null,null,null,null,null,"","","",null,"",null,null,"",null,null,null,null,null,null,null,null,"",null,null,null,null,null,""]
[null,null,null,null,null,"","","",null,"",null,null,"",null,null,null,null,null,null,null,null,"",null,null,null,null,null,""]
[null,null,null,null,null,"","","",null,"",null,null,"",null,null,null,null,null,null,null,null,"",null,null,null,null,null,""]
[null,null,null,null,null,"","","",null,"",null,null,"",null,null,null,null,null,null,null,null,"",null,null,null,null,null,""]
[null,null,null,null,null,"","","",null,"",null,null,"",null,null,null,null,null,null,null,null,"",null,null,null,null,null,""]
[null,null,null,null,null,"","","",null,"",null,null,"",null,null,null,null,null,null,null,null,"",null,null,null,null,null,""]
[null,null,null,null,null,"","","",null,"",null,null,"",null,null,null,null,null,null,null,null,"",null,null,null,null,null,""]
[null,null,null,null,null,"","","",null,"",null,null,"",null,null,null,null,null,null,null,null,"",null,null,null,null,null,""]
[null,null,null,null,null,"","","",null,"",null,null,"",null,null,null,null,null,null,null,null,"",null,null,null,null,null,""]
[null,null,null,null,null,"","","",null,"",null,null,"",null,null,null,null,null,null,null,null,"",null,null,null,null,null,""]
[null,null,null,null,null,"","","",null,"",null,null,"",null,null,null,null,null,null,null,null,"",null,null,null,null,null,""]
[null,null,null,null,null,"","","",null,"",null,null,"",null,null,null,null,null,null,null,null,"",null,null,null,null,null,""]
[null,null,null,null,null,"","","",null,"",null,null,"",null,null,null,null,null,null,null,null,"",null,null,null,null,null,""]
[null,null,null,null,null,"","","",null,"",null,null,"",null,null,null,null,null,null,null,null,"",null,null,null,null,null,""]
[null,null,null,null,null,"","","",null,"",null,null,"",null,null,null,null,null,null,null,null,"",null,null,null,null,null,""]
[null,null,null,null,null,"","","",null,"",null,null,"",null,null,null,null,null,null,null,null,"",null,null,null,null,null,""]
[null,null,null,null,null,{"$f":"IF(AND(LEN(A1102)>0,LEN(B1102)>0),0.95^14,\"\")","v":""},{"$f":"IF(AND(LEN(A1102)>0,LEN(B1102)>0),0,\"\")","v":""},{"$f":"IF(AND(LEN(A1102)>0,LEN(B1102)>0),(C1102+D1102+E1102)*F1102+G1102,\"\")","v":""},null,{"$f":"IF(AND(LEN(A1102)>0,LEN(B1102)>0),I1102,\"\")","v":""},null,null,{"$f":"IF(AND(LEN(A1102)>0,LEN(B1102)>0),SUM(J1102:L1102),\"\")","v":""},null,null,null,null,null,null,null,null,{"$f":"IF(AND((A1102)>0,(B1102)>0),IF(H1102-M1102<0,N1102+O1102+P1102+Q1102++S1102+T1102-U1102,H1102-M1102+N1102+O1102+P1102+Q1102+R1102+S1102-T1102-U1102),\"\")","v":""},null,null,null,null,null,{"$f":"IF(AND(LEN(A1102)>0,LEN(B1102)>0),IF((V1102-(X1102+Y1102+Z1102)-AA1102)<0,0,V1102-(X1102+Y1102+Z1102)-AA1102),\"\")","v":""}]
[null,null,null,null,null,"","","",null,"",null,null,"",null,null,null,null,null,null,null,null,"",null,null,null,null,null,""]
[null,null,null,null,null,"","","",null,"",null,null,"",null,null,null,null,null,null,null,null,"",null,null,null,null,null,""]
[null,null,null,null,null,"","","",null,"",null,null,"",null,null,null,null,null,null,null,null,"",null,null,null,null,null,""]
[null,null,null,null,null,"","","",null,"",null,null,"",null,null,null,null,null,null,null,null,"",null,null,null,null,null,""]
[null,null,null,null,null,"","","",null,"",null,null,"",null,null,null,null,null,null,null,null,"",null,null,null,null,null,""]
[null,null,null,null,null,"","","",null,"",null,null,"",null,null,null,null,null,null,null,null,"",null,null,null,null,null,""]
[null,null,null,null,null,"","","",null,"",null,null,"",null,null,null,null,null,null,null,null,"",null,null,null,null,null,""]
[null,null,null,null,null,"","","",null,"",null,null,"",null,null,null,null,null,null,null,null,"",null,null,null,null,null,""]
[null,null,null,null,null,"","","",null,"",null,null,"",null,null,null,null,null,null,null,null,"",null,null,null,null,null,""]
[null,null,null,null,null,"","","",null,"",null,null,"",null,null,null,null,null,null,null,null,"",null,null,null,null,null,""]
[null,null,null,null,null,"","","",null,"",null,null,"",null,null,null,null,null,null,null,null,"",null,null,null,null,null,""]
[null,null,null,null,null,"","","",null,"",null,null,"",null,null,null,null,null,null,null,null,"",null,null,null,null,null,""]
[null,null,null,null,null,"","","",null,"",null,null,"",null,null,null,null,null,null,null,null,"",null,null,null,null,null,""]
[null,null,null,null,null,"","","",null,"",null,null,"",null,null,null,null,null,null,null,null,"",null,null,null,null,null,""]
[null,null,null,null,null,"","","",null,"",null,null,"",null,null,null,null,null,null,null,null,"",null,null,null,null,null,""]
[null,null,null,null,null,"","","",null,"",null,null,"",null,null,null,null,null,null,null,null,"",null,null,null,null,null,""]
[null,null,null,null,null,"","","",null,"",null,null,"",null,null,null,null,null,null,null,null,"",null,null,null,null,null,""]
[null,null,null,null,null,"","","",null,"",null,null,"",null,null,null,null,null,null,null,null,"",null,null,null,null,null,""]
[null,null,null,null,null,"","","",null,"",null,null,"",null,null,null,null,null,null,null,null,"",null,null,null,null,null,""]
[null,null,null,null,null,"","","",null,"",null,null,"",null,null,null,null,null,null,null,null,"",null,null,null,null,null,""]
[null,null,null,null,null,"","","",null,"",null,null,"",null,null,null,null,null,null,null,null,"",null,null,null,null,null,""]
[null,null,null,null,null,"","","",null,"",null,null,"",null,null,null,null,null,null,null,null,"",null,null,null,null,null,""]
[null,null,null,null,null,"","","",null,"",null,null,"",null,null,null,null,null,null,null,null,"",null,null,null,null,null,""]
[null,null,null,null,null,"","","",null,"",null,null,"",null,null,null,null,null,null,null,null,"",null,null,null,null,null,""]
[null,null,null,null,null,"","","",null,"",null,null,"",null,null,null,null,null,null,null,null,"",null,null,null,null,null,""]
[null,null,null,null,null,"","","",null,"",null,null,"",null,null,null,null,null,null,null,null,"",null,null,null,null,null,""]
[null,null,null,null,null,"","","",null,"",null,null,"",null,null,null,null,null,null,null,null,"",null,null,null,null,null,""]
[null,null,null,null,null,"","","",null,"",null,null,"",null,null,null,null,null,null,null,null,"",null,null,null,null,null,""]
[null,null,null,null,null,"","","",null,"",null,null,"",null,null,null,null,null,null,null,null,"",null,null,null,null,null,""]
[null,null,null,null,null,"","","",null,"",null,null,"",null,null,null,null,null,null,null,null,"",null,null,null,null,null,""]
[null,null,null,null,null,"","","",null,"",null,null,"",null,null,null,null,null,null,null,null,"",null,null,null,null,null,""]
[null,null,null,null,null,"","","",null,"",null,null,"",null,null,null,null,null,null,null,null,"",null,null,null,null,null,""]
[null,null,null,null,null,"","","",null,"",null,null,"",null,null,null,null,null,null,null,null,"",null,null,null,null,null,""]
[null,null,null,null,null,"","","",null,"",null,null,"",null,null,null,null,null,null,null,null,"",null,null,null,null,null,""]
[null,null,null,null,null,"","","",null,"",null,null,"",null,null,null,null,null,null,null,null,"",null,null,null,null,null,""]
[null,null,null,null,null,"","","",null,"",null,null,"",null,null,null,null,null,null,null,null,"",null,null,null,null,null,""]
[null,null,null,null,null,"","","",null,"",null,null,"",null,null,null,null,null,null,null,null,"",null,null,null,null,null,""]
[null,null,null,null,null,"","","",null,"",null,null,"",null,null,null,null,null,null,null,null,"",null,null,null,null,null,""]
[null,null,null,null,null,"","","",null,"",null,null,"",null,null,null,null,null,null,null,null,"",null,null,null,null,null,""]
[null,null,null,null,null,"","","",null,"",null,null,"",null,null,null,null,null,null,null,null,"",null,null,null,null,null,""]
[null,null,null,null,null,"","","",null,"",null,null,"",null,null,null,null,null,null,null,null,"",null,null,null,null,null,""]
[null,null,null,null,null,"","","",null,"",null,null,"",null,null,null,null,null,null,null,null,"",null,null,null,null,null,""]
[null,null,null,null,null,"","","",null,"",null,null,"",null,null,null,null,null,null,null,null,"",null,null,null,null,null,""]
[null,null,null,null,null,"","","",null,"",null,null,"",null,null,null,null,null,null,null,null,"",null,null,null,null,null,""]
[null,null,null,null,null,"","","",null,"",null,null,"",null,null,null,null,null,null,null,null,"",null,null,null,null,null,""]
[null,null,null,null,null,"","","",null,"",null,null,"",null,null,null,null,null,null,null,null,"",null,null,null,null,null,""]
[null,null,null,null,null,"","","",null,"",null,null,"",null,null,null,null,null,null,null,null,"",null,null,null,null,null,""]
[null,null,null,null,null,"","","",null,"",null,null,"",null,null,null,null,null,null,null,null,"",null,null,null,null,null,""]
[null,null,null,null,null,"","","",null,"",null,null,"",null,null,null,null,null,null,null,null,"",null,null,null,null,null,""]
[null,null,null,null,null,"","","",null,"",null,null,"",null,null,null,null,null,null,null,null,"",null,null,null,null,null,""]
[null,null,null,null,null,"","","",null,"",null,null,"",null,null,null,null,null,null,null,null,"",null,null,null,null,null,""]
[null,null,null,null,null,"","","",null,"",null,null,"",null,null,null,null,null,null,null,null,"",null,null,null,null,null,""]
[null,null,null,null,null,"","","",null,"",null,null,"",null,null,null,null,null,null,null,null,"",null,null,null,null,null,""]
[null,null,null,null,null,"","","",null,"",null,null,"",null,null,null,null,null,null,null,null,"",null,null,null,null,null,""]
[null,null,null,null,null,"","","",null,"",null,null,"",null,null,null,null,null,null,null,null,"",null,null,null,null,null,""]
[null,null,null,null,null,"","","",null,"",null,null,"",null,null,null,null,null,null,null,null,"",null,null,null,null,null,""]
[null,null,null,null,null,"","","",null,"",null,null,"",null,null,null,null,null,null,null,null,"",null,null,null,null,null,""]
[null,null,null,null,null,"","","",null,"",null,null,"",null,null,null,null,null,null,null,null,"",null,null,null,null,null,""]
[null,null,null,null,null,"","","",null,"",null,null,"",null,null,null,null,null,null,null,null,"",null,null,null,null,null,""]
[null,null,null,null,null,"","","",null,"",null,null,"",null,null,null,null,null,null,null,null,"",null,null,null,null,null,""]
[null,null,null,null,null,"","","",null,"",null,null,"",null,null,null,null,null,null,null,null,"",null,null,null,null,null,""]
[null,null,null,null,null,"","","",null,"",null,null,"",null,null,null,null,null,null,null,null,"",null,null,null,null,null,""]
[null,null,null,null,null,"","","",null,"",null,null,"",null,null,null,null,null,null,null,null,"",null,null,null,null,null,""]
[null,null,null,null,null,{"$f":"IF(AND(LEN(A1166)>0,LEN(B1166)>0),0.95^14,\"\")","v":""},{"$f":"IF(AND(LEN(A1166)>0,LEN(B1166)>0),0,\"\")","v":""},{"$f":"IF(AND(LEN(A1166)>0,LEN(B1166)>0),(C1166+D1166+E1166)*F1166+G1166,\"\")","v":""},null,{"$f":"IF(AND(LEN(A1166)>0,LEN(B1166)>0),I1166,\"\")","v":""},null,null,{"$f":"IF(AND(LEN(A1166)>0,LEN(B1166)>0),SUM(J1166:L1166),\"\")","v":""},null,null,null,null,null,null,null,null,{"$f":"IF(AND((A1166)>0,(B1166)>0),IF(H1166-M1166<0,N1166+O1166+P1166+Q1166++S1166+T1166-U1166,H1166-M1166+N1166+O1166+P1166+Q1166+R1166+S1166-T1166-U1166),\"\")","v":""},null,null,null,null,null,{"$f":"IF(AND(LEN(A1166)>0,LEN(B1166)>0),IF((V1166-(X1166+Y1166+Z1166)-AA1166)<0,0,V1166-(X1166+Y1166+Z1166)-AA1166),\"\")","v":""}]
[null,null,null,null,null,"","","",null,"",null,null,"",null,null,null,null,null,null,null,null,"",null,null,null,null,null,""]
[null,null,null,null,null,"","","",null,"",null,null,"",null,null,null,null,null,null,null,null,"",null,null,null,null,null,""]
[null,null,null,null,null,"","","",null,"",null,null,"",null,null,null,null,null,null,null,null,"",null,null,null,null,null,""]
[null,null,null,null,null,"","","",null,"",null,null,"",null,null,null,null,null,null,null,null,"",null,null,null,null,null,""]
[null,null,null,null,null,"","","",null,"",null,null,"",null,null,null,null,null,null,null,null,"",null,null,null,null,null,""]
[null,null,null,null,null,"","","",null,"",null,null,"",null,null,null,null,null,null,null,null,"",null,null,null,null,null,""]
[null,null,null,null,null,"","","",null,"",null,null,"",null,null,null,null,null,null,null,null,"",null,null,null,null,null,""]
[null,null,null,null,null,"","","",null,"",null,null,"",null,null,null,null,null,null,null,null,"",null,null,null,null,null,""]
[null,null,null,null,null,"","","",null,"",null,null,"",null,null,null,null,null,null,null,null,"",null,null,null,null,null,""]
[null,null,null,null,null,"","","",null,"",null,null,"",null,null,null,null,null,null,null,null,"",null,null,null,null,null,""]
[null,null,null,null,null,"","","",null,"",null,null,"",null,null,null,null,null,null,null,null,"",null,null,null,null,null,""]
[null,null,null,null,null,"","","",null,"",null,null,"",null,null,null,null,null,null,null,null,"",null,null,null,null,null,""]
[null,null,null,null,null,"","","",null,"",null,null,"",null,null,null,null,null,null,null,null,"",null,null,null,null,null,""]
[null,null,null,null,null,"","","",null,"",null,null,"",null,null,null,null,null,null,null,null,"",null,null,null,null,null,""]
[null,null,null,null,null,"","","",null,"",null,null,"",null,null,null,null,null,null,null,null,"",null,null,null,null,null,""]
[null,null,null,null,null,"","","",null,"",null,null,"",null,null,null,null,null,null,null,null,"",null,null,null,null,null,""]
[null,null,null,null,null,"","","",null,"",null,null,"",null,null,null,null,null,null,null,null,"",null,null,null,null,null,""]
[null,null,null,null,null,"","","",null,"",null,null,"",null,null,null,null,null,null,null,null,"",null,null,null,null,null,""]
[null,null,null,null,null,"","","",null,"",null,null,"",null,null,null,null,null,null,null,null,"",null,null,null,null,null,""]
[null,null,null,null,null,"","","",null,"",null,null,"",null,null,null,null,null,null,null,null,"",null,null,null,null,null,""]
[null,null,null,null,null,"","","",null,"",null,null,"",null,null,null,null,null,null,null,null,"",null,null,null,null,null,""]
[null,null,null,null,null,"","","",null,"",null,null,"",null,null,null,null,null,null,null,null,"",null,null,null,null,null,""]
[null,null,null,null,null,"","","",null,"",null,null,"",null,null,null,null,null,null,null,null,"",null,null,null,null,null,""]
[null,null,null,null,null,"","","",null,"",null,null,"",null,null,null,null,null,null,null,null,"",null,null,null,null,null,""]
[null,null,null,null,null,"","","",null,"",null,null,"",null,null,null,null,null,null,null,null,"",null,null,null,null,null,""]
[null,null,null,null,null,"","","",null,"",null,null,"",null,null,null,null,null,null,null,null,"",null,null,null,null,null,""]
[null,null,null,null,null,"","","",null,"",null,null,"",null,null,null,null,null,null,null,null,"",null,null,null,null,null,""]
[null,null,null,null,null,"","","",null,"",null,null,"",null,null,null,null,null,null,null,null,"",null,null,null,null,null,""]
[null,null,null,null,null,"","","",null,"",null,null,"",null,null,null,null,null,null,null,null,"",null,null,null,null,null,""]
[null,null,null,null,null,"","","",null,"",null,null,"",null,null,null,null,null,null,null,null,"",null,null,null,null,null,""]
[null,null,null,null,null,"","","",null,"",null,null,"",null,null,null,null,null,null,null,null,"",null,null,null,null,null,""]
[null,null,null,null,null,"","","",null,"",null,null,"",null,null,null,null,null,null,null,null,"",null,null,null,null,null,""]
[null,null,null,null,null,"","","",null,"",null,null,"",null,null,null,null,null,null,null,null,"",null,null,null,null,null,""]
[null,null,null,null,null,"","","",null,"",null,null,"",null,null,null,null,null,null,null,null,"",null,null,null,null,null,""]
[null,null,null,null,null,"","","",null,"",null,null,"",null,null,null,null,null,null,null,null,"",null,null,null,null,null,""]
[null,null,null,null,null,"","","",null,"",null,null,"",null,null,null,null,null,null,null,null,"",null,null,null,null,null,""]
[null,null,null,null,null,"","","",null,"",null,null,"",null,null,null,null,null,null,null,null,"",null,null,null,null,null,""]
[null,null,null,null,null,"","","",null,"",null,null,"",null,null,null,null,null,null,null,null,"",null,null,null,null,null,""]
[null,null,null,null,null,"","","",null,"",null,null,"",null,null,null,null,null,null,null,null,"",null,null,null,null,null,""]
[null,null,null,null,null,"","","",null,"",null,null,"",null,null,null,null,null,null,null,null,"",null,null,null,null,null,""]
[null,null,null,null,null,"","","",null,"",null,null,"",null,null,null,null,null,null,null,null,"",null,null,null,null,null,""]
[null,null,null,null,null,"","","",null,"",null,null,"",null,null,null,null,null,null,null,null,"",null,null,null,null,null,""]
[null,null,null,null,null,"","","",null,"",null,null,"",null,null,null,null,null,null,null,null,"",null,null,null,null,null,""]
[null,null,null,null,null,"","","",null,"",null,null,"",null,null,null,null,null,null,null,null,"",null,null,null,null,null,""]
[null,null,null,null,null,"","","",null,"",null,null,"",null,null,null,null,null,null,null,null,"",null,null,null,null,null,""]
[null,null,null,null,null,"","","",null,"",null,null,"",null,null,null,null,null,null,null,null,"",null,null,null,null,null,""]
[null,null,null,null,null,"","","",null,"",null,null,"",null,null,null,null,null,null,null,null,"",null,null,null,null,null,""]
[null,null,null,null,null,"","","",null,"",null,null,"",null,null,null,null,null,null,null,null,"",null,null,null,null,null,""]
[null,null,null,null,null,"","","",null,"",null,null,"",null,null,null,null,null,null,null,null,"",null,null,null,null,null,""]
[null,null,null,null,null,"","","",null,"",null,null,"",null,null,null,null,null,null,null,null,"",null,null,null,null,null,""]
[null,null,null,null,null,"","","",null,"",null,null,"",null,null,null,null,null,null,null,null,"",null,null,null,null,null,""]
[null,null,null,null,null,"","","",null,"",null,null,"",null,null,null,null,null,null,null,null,"",null,null,null,null,null,""]
[null,null,null,null,null,"","","",null,"",null,null,"",null,null,null,null,null,null,null,null,"",null,null,null,null,null,""]
[null,null,null,null,null,"","","",null,"",null,null,"",null,null,null,null,null,null,null,null,"",null,null,null,null,null,""]
[null,null,null,null,null,"","","",null,"",null,null,"",null,null,null,null,null,null,null,null,"",null,null,null,null,null,""]
[null,null,null,null,null,"","","",null,"",null,null,"",null,null,null,null,null,null,null,null,"",null,null,null,null,null,""]
[null,null,null,null,null,"","","",null,"",null,null,"",null,null,null,null,null,null,null,null,"",null,null,null,null,null,""]
[null,null,null,null,null,"","","",null,"",null,null,"",null,null,null,null,null,null,null,null,"",null,null,null,null,null,""]
[null,null,null,null,null,"","","",null,"",null,null,"",null,null,null,null,null,null,null,null,"",null,null,null,null,null,""]
[null,null,null,null,null,"","","",null,"",null,null,"",null,null,null,null,null,null,null,null,"",null,null,null,null,null,""]
[null,null,null,null,null,"","","",null,"",null,null,"",null,null,null,null,null,null,null,null,"",null,null,null,null,null,""]
[null,null,null,null,null,"","","",null,"",null,null,"",null,null,null,null,null,null,null,null,"",null,null,null,null,null,""]
[null,null,null,null,null,"","","",null,"",null,null,"",null,null,null,null,null,null,null,null,"",null,null,null,null,null,""]
[null,null,null,null,null,{"$f":"IF(AND(LEN(A1230)>0,LEN(B1230)>0),0.95^14,\"\")","v":""},{"$f":"IF(AND(LEN(A1230)>0,LEN(B1230)>0),0,\"\")","v":""},{"$f":"IF(AND(LEN(A1230)>0,LEN(B1230)>0),(C1230+D1230+E1230)*F1230+G1230,\"\")","v":""},null,{"$f":"IF(AND(LEN(A1230)>0,LEN(B1230)>0),I1230,\"\")","v":""},null,null,{"$f":"IF(AND(LEN(A1230)>0,LEN(B1230)>0),SUM(J1230:L1230),\"\")","v":""},null,null,null,null,null,null,null,null,{"$f":"IF(AND((A1230)>0,(B1230)>0),IF(H1230-M1230<0,N1230+O1230+P1230+Q1230++S1230+T1230-U1230,H1230-M1230+N1230+O1230+P1230+Q1230+R1230+S1230-T1230-U1230),\"\")","v":""},null,null,null,null,null,{"$f":"IF(AND(LEN(A1230)>0,LEN(B1230)>0),IF((V1230-(X1230+Y1230+Z1230)-AA1230)<0,0,V1230-(X1230+Y1230+Z1230)-AA1230),\"\")","v":""}]
[null,null,null,null,null,"","","",null,"",null,null,"",null,null,null,null,null,null,null,null,"",null,null,null,null,null,""]
[null,null,null,null,null,"","","",null,"",null,null,"",null,null,null,null,null,null,null,null,"",null,null,null,null,null,""]
[null,null,null,null,null,"","","",null,"",null,null,"",null,null,null,null,null,null,null,null,"",null,null,null,null,null,""]
[null,null,null,null,null,"","","",null,"",null,null,"",null,null,null,null,null,null,null,null,"",null,null,null,null,null,""]
[null,null,null,null,null,"","","",null,"",null,null,"",null,null,null,null,null,null,null,null,"",null,null,null,null,null,""]
[null,null,null,null,null,"","","",null,"",null,null,"",null,null,null,null,null,null,null,null,"",null,null,null,null,null,""]
[null,null,null,null,null,"","","",null,"",null,null,"",null,null,null,null,null,null,null,null,"",null,null,null,null,null,""]
[null,null,null,null,null,"","","",null,"",null,null,"",null,null,null,null,null,null,null,null,"",null,null,null,null,null,""]
[null,null,null,null,null,"","","",null,"",null,null,"",null,null,null,null,null,null,null,null,"",null,null,null,null,null,""]
[null,null,null,null,null,"","","",null,"",null,null,"",null,null,null,null,null,null,null,null,"",null,null,null,null,null,""]
[null,null,null,null,null,"","","",null,"",null,null,"",null,null,null,null,null,null,null,null,"",null,null,null,null,null,""]
[null,null,null,null,null,"","","",null,"",null,null,"",null,null,null,null,null,null,null,null,"",null,null,null,null,null,""]
[null,null,null,null,null,"","","",null,"",null,null,"",null,null,null,null,null,null,null,null,"",null,null,null,null,null,""]
[null,null,null,null,null,"","","",null,"",null,null,"",null,null,null,null,null,null,null,null,"",null,null,null,null,null,""]
[null,null,null,null,null,"","","",null,"",null,null,"",null,null,null,null,null,null,null,null,"",null,null,null,null,null,""]
[null,null,null,null,null,"","","",null,"",null,null,"",null,null,null,null,null,null,null,null,"",null,null,null,null,null,""]
[null,null,null,null,null,"","","",null,"",null,null,"",null,null,null,null,null,null,null,null,"",null,null,null,null,null,""]
[null,null,null,null,null,"","","",null,"",null,null,"",null,null,null,null,null,null,null,null,"",null,null,null,null,null,""]
[null,null,null,null,null,"","","",null,"",null,null,"",null,null,null,null,null,null,null,null,"",null,null,null,null,null,""]
[null,null,null,null,null,"","","",null,"",null,null,"",null,null,null,null,null,null,null,null,"",null,null,null,null,null,""]
[null,null,null,null,null,"","","",null,"",null,null,"",null,null,null,null,null,null,null,null,"",null,null,null,null,null,""]
[null,null,null,null,null,"","","",null,"",null,null,"",null,null,null,null,null,null,null,null,"",null,null,null,null,null,""]
[null,null,null,null,null,"","","",null,"",null,null,"",null,null,null,null,null,null,null,null,"",null,null,null,null,null,""]
[null,null,null,null,null,"","","",null,"",null,null,"",null,null,null,null,null,null,null,null,"",null,null,null,null,null,""]
[null,null,null,null,null,"","","",null,"",null,null,"",null,null,null,null,null,null,null,null,"",null,null,null,null,null,""]
[null,null,null,null,null,"","","",null,"",null,null,"",null,null,null,null,null,null,null,null,"",null,null,null,null,null,""]
[null,null,null,null,null,"","","",null,"",null,null,"",null,null,null,null,null,null,null,null,"",null,null,null,null,null,""]
[null,null,null,null,null,"","","",null,"",null,null,"",null,null,null,null,null,null,null,null,"",null,null,null,null,null,""]
[null,null,null,null,null,"","","",null,"",null,null,"",null,null,null,null,null,null,null,null,"",null,null,null,null,null,""]
[null,null,null,null,null,"","","",null,"",null,null,"",null,null,null,null,null,null,null,null,"",null,null,null,null,null,""]
[null,null,null,null,null,"","","",null,"",null,null,"",null,null,null,null,null,null,null,null,"",null,null,null,null,null,""]
[null,null,null,null,null,"","","",null,"",null,null,"",null,null,null,null,null,null,null,null,"",null,null,null,null,null,""]
[null,null,null,null,null,"","","",null,"",null,null,"",null,null,null,null,null,null,null,null,"",null,null,null,null,null,""]
[null,null,null,null,null,"","","",null,"",null,null,"",null,null,null,null,null,null,null,null,"",null,null,null,null,null,""]
[null,null,null,null,null,"","","",null,"",null,null,"",null,null,null,null,null,null,null,null,"",null,null,null,null,null,""]
[null,null,null,null,null,"","","",null,"",null,null,"",null,null,null,null,null,null,null,null,"",null,null,null,null,null,""]
[null,null,null,null,null,"","","",null,"",null,null,"",null,null,null,null,null,null,null,null,"",null,null,null,null,null,""]
[null,null,null,null,null,"","","",null,"",null,null,"",null,null,null,null,null,null,null,null,"",null,null,null,null,null,""]
[null,null,null,null,null,"","","",null,"",null,null,"",null,null,null,null,null,null,null,null,"",null,null,null,null,null,""]
[null,null,null,null,null,"","","",null,"",null,null,"",null,null,null,null,null,null,null,null,"",null,null,null,null,null,""]
[null,null,null,null,null,"","","",null,"",null,null,"",null,null,null,null,null,null,null,null,"",null,null,null,null,null,""]
[null,null,null,null,null,"","","",null,"",null,null,"",null,null,null,null,null,null,null,null,"",null,null,null,null,null,""]
[null,null,null,null,null,"","","",null,"",null,null,"",null,null,null,null,null,null,null,null,"",null,null,null,null,null,""]
[null,null,null,null,null,"","","",null,"",null,null,"",null,null,null,null,null,null,null,null,"",null,null,null,null,null,""]
[null,null,null,null,null,"","","",null,"",null,null,"",null,null,null,null,null,null,null,null,"",null,null,null,null,null,""]
[null,null,null,null,null,"","","",null,"",null,null,"",null,null,null,null,null,null,null,null,"",null,null,null,null,null,""]
[null,null,null,null,null,"","","",null,"",null,null,"",null,null,null,null,null,null,null,null,"",null,null,null,null,null,""]
[null,null,null,null,null,"","","",null,"",null,null,"",null,null,null,null,null,null,null,null,"",null,null,null,null,null,""]
[null,null,null,null,null,"","","",null,"",null,null,"",null,null,null,null,null,null,null,null,"",null,null,null,null,null,""]
[null,null,null,null,null,"","","",null,"",null,null,"",null,null,null,null,null,null,null,null,"",null,null,null,null,null,""]
[null,null,null,null,null,"","","",null,"",null,null,"",null,null,null,null,null,null,null,null,"",null,null,null,null,null,""]
[null,null,null,null,null,"","","",null,"",null,null,"",null,null,null,null,null,null,null,null,"",null,null,null,null,null,""]
[null,null,null,null,null,"","","",null,"",null,null,"",null,null,null,null,null,null,null,null,"",null,null,null,null,null,""]
[null,null,null,null,null,"","","",null,"",null,null,"",null,null,null,null,null,null,null,null,"",null,null,null,null,null,""]
[null,null,null,null,null,"","","",null,"",null,null,"",null,null,null,null,null,null,null,null,"",null,null,null,null,null,""]
[null,null,null,null,null,"","","",null,"",null,null,"",null,null,null,null,null,null,null,null,"",null,null,null,null,null,""]
[null,null,null,null,null,"","","",null,"",null,null,"",null,null,null,null,null,null,null,null,"",null,null,null,null,null,""]
[null,null,null,null,null,"","","",null,"",null,null,"",null,null,null,null,null,null,null,null,"",null,null,null,null,null,""]
[null,null,null,null,null,"","","",null,"",null,null,"",null,null,null,null,null,null,null,null,"",null,null,null,null,null,""]
[null,null,null,null,null,"","","",null,"",null,null,"",null,null,null,null,null,null,null,null,"",null,null,null,null,null,""]
[null,null,null,null,null,"","","",null,"",null,null,"",null,null,null,null,null,null,null,null,"",null,null,null,null,null,""]
[null,null,null,null,null,"","","",null,"",null,null,"",null,null,null,null,null,null,null,null,"",null,null,null,null,null,""]
[null,null,null,null,null,"","","",null,"",null,null,"",null,null,null,null,null,null,null,null,"",null,null,null,null,null,""]
[null,null,null,null,null,{"$f":"IF(AND(LEN(A1294)>0,LEN(B1294)>0),0.95^14,\"\")","v":""},{"$f":"IF(AND(LEN(A1294)>0,LEN(B1294)>0),0,\"\")","v":""},{"$f":"IF(AND(LEN(A1294)>0,LEN(B1294)>0),(C1294+D1294+E1294)*F1294+G1294,\"\")","v":""},null,{"$f":"IF(AND(LEN(A1294)>0,LEN(B1294)>0),I1294,\"\")","v":""},null,null,{"$f":"IF(AND(LEN(A1294)>0,LEN(B1294)>0),SUM(J1294:L1294),\"\")","v":""},null,null,null,null,null,null,null,null,{"$f":"IF(AND((A1294)>0,(B1294)>0),IF(H1294-M1294<0,N1294+O1294+P1294+Q1294++S1294+T1294-U1294,H1294-M1294+N1294+O1294+P1294+Q1294+R1294+S1294-T1294-U1294),\"\")","v":""},null,null,null,null,null,{"$f":"IF(AND(LEN(A1294)>0,LEN(B1294)>0),IF((V1294-(X1294+Y1294+Z1294)-AA1294)<0,0,V1294-(X1294+Y1294+Z1294)-AA1294),\"\")","v":""}]
[null,null,null,null,null,"","","",null,"",null,null,"",null,null,null,null,null,null,null,null,"",null,null,null,null,null,""]
[null,null,null,null,null,"","","",null,"",null,null,"",null,null,null,null,null,null,null,null,"",null,null,null,null,null,""]
[null,null,null,null,null,"","","",null,"",null,null,"",null,null,null,null,null,null,null,null,"",null,null,null,null,null,""]
[null,null,null,null,null,"","","",null,"",null,null,"",null,null,null,null,null,null,null,null,"",null,null,null,null,null,""]
[null,null,null,null,null,"","","",null,"",null,null,"",null,null,null,null,null,null,null,null,"",null,null,null,null,null,""]
[null,null,null,null,null,"","","",null,"",null,null,"",null,null,null,null,null,null,null,null,"",null,null,null,null,null,""]
[null,null,null,null,null,"","","",null,"",null,null,"",null,null,null,null,null,null,null,null,"",null,null,null,null,null,""]
[null,null,null,null,null,"","","",null,"",null,null,"",null,null,null,null,null,null,null,null,"",null,null,null,null,null,""]
[null,null,null,null,null,"","","",null,"",null,null,"",null,null,null,null,null,null,null,null,"",null,null,null,null,null,""]
[null,null,null,null,null,"","","",null,"",null,null,"",null,null,null,null,null,null,null,null,"",null,null,null,null,null,""]
[null,null,null,null,null,"","","",null,"",null,null,"",null,null,null,null,null,null,null,null,"",null,null,null,null,null,""]
[null,null,null,null,null,"","","",null,"",null,null,"",null,null,null,null,null,null,null,null,"",null,null,null,null,null,""]
[null,null,null,null,null,"","","",null,"",null,null,"",null,null,null,null,null,null,null,null,"",null,null,null,null,null,""]
[null,null,null,null,null,"","","",null,"",null,null,"",null,null,null,null,null,null,null,null,"",null,null,null,null,null,""]
[null,null,null,null,null,"","","",null,"",null,null,"",null,null,null,null,null,null,null,null,"",null,null,null,null,null,""]
[null,null,null,null,null,"","","",null,"",null,null,"",null,null,null,null,null,null,null,null,"",null,null,null,null,null,""]
[null,null,null,null,null,"","","",null,"",null,null,"",null,null,null,null,null,null,null,null,"",null,null,null,null,null,""]
[null,null,null,null,null,"","","",null,"",null,null,"",null,null,null,null,null,null,null,null,"",null,null,null,null,null,""]
[null,null,null,null,null,"","","",null,"",null,null,"",null,null,null,null,null,null,null,null,"",null,null,null,null,null,""]
[null,null,null,null,null,"","","",null,"",null,null,"",null,null,null,null,null,null,null,null,"",null,null,null,null,null,""]
[null,null,null,null,null,"","","",null,"",null,null,"",null,null,null,null,null,null,null,null,"",null,null,null,null,null,""]
[null,null,null,null,null,"","","",null,"",null,null,"",null,null,null,null,null,null,null,null,"",null,null,null,null,null,""]
[null,null,null,null,null,"","","",null,"",null,null,"",null,null,null,null,null,null,null,null,"",null,null,null,null,null,""]
[null,null,null,null,null,"","","",null,"",null,null,"",null,null,null,null,null,null,null,null,"",null,null,null,null,null,""]
[null,null,null,null,null,"","","",null,"",null,null,"",null,null,null,null,null,null,null,null,"",null,null,null,null,null,""]
[null,null,null,null,null,"","","",null,"",null,null,"",null,null,null,null,null,null,null,null,"",null,null,null,null,null,""]
[null,null,null,null,null,"","","",null,"",null,null,"",null,null,null,null,null,null,null,null,"",null,null,null,null,null,""]
[null,null,null,null,null,"","","",null,"",null,null,"",null,null,null,null,null,null,null,null,"",null,null,null,null,null,""]
[null,null,null,null,null,"","","",null,"",null,null,"",null,null,null,null,null,null,null,null,"",null,null,null,null,null,""]
[null,null,null,null,null,"","","",null,"",null,null,"",null,null,null,null,null,null,null,null,"",null,null,null,null,null,""]
[null,null,null,null,null,"","","",null,"",null,null,"",null,null,null,null,null,null,null,null,"",null,null,null,null,null,""]
[null,null,null,null,null,"","","",null,"",null,null,"",null,null,null,null,null,null,null,null,"",null,null,null,null,null,""]
[null,null,null,null,null,"","","",null,"",null,null,"",null,null,null,null,null,null,null,null,"",null,null,null,null,null,""]
[null,null,null,null,null,"","","",null,"",null,null,"",null,null,null,null,null,null,null,null,"",null,null,null,null,null,""]
[null,null,null,null,null,"","","",null,"",null,null,"",null,null,null,null,null,null,null,null,"",null,null,null,null,null,""]
[null,null,null,null,null,"","","",null,"",null,null,"",null,null,null,null,null,null,null,null,"",null,null,null,null,null,""]
[null,null,null,null,null,"","","",null,"",null,null,"",null,null,null,null,null,null,null,null,"",null,null,null,null,null,""]
[null,null,null,null,null,"","","",null,"",null,null,"",null,null,null,null,null,null,null,null,"",null,null,null,null,null,""]
[null,null,null,null,null,"","","",null,"",null,null,"",null,null,null,null,null,null,null,null,"",null,null,null,null,null,""]
[null,null,null,null,null,"","","",null,"",null,null,"",null,null,null,null,null,null,null,null,"",null,null,null,null,null,""]
[null,null,null,null,null,"","","",null,"",null,null,"",null,null,null,null,null,null,null,null,"",null,null,null,null,null,""]
[null,null,null,null,null,"","","",null,"",null,null,"",null,null,null,null,null,null,null,null,"",null,null,null,null,null,""]
[null,null,null,null,null,"","","",null,"",null,null,"",null,null,null,null,null,null,null,null,"",null,null,null,null,null,""]
[null,null,null,null,null,"","","",null,"",null,null,"",null,null,null,null,null,null,null,null,"",null,null,null,null,null,""]
[null,null,null,null,null,"","","",null,"",null,null,"",null,null,null,null,null,null,null,null,"",null,null,null,null,null,""]
[null,null,null,null,null,"","","",null,"",null,null,"",null,null,null,null,null,null,null,null,"",null,null,null,null,null,""]
[null,null,null,null,null,"","","",null,"",null,null,"",null,null,null,null,null,null,null,null,"",null,null,null,null,null,""]
[null,null,null,null,null,"","","",null,"",null,null,"",null,null,null,null,null,null,null,null,"",null,null,null,null,null,""]
[null,null,null,null,null,"","","",null,"",null,null,"",null,null,null,null,null,null,null,null,"",null,null,null,null,null,""]
[null,null,null,null,null,"","","",null,"",null,null,"",null,null,null,null,null,null,null,null,"",null,null,null,null,null,""]
[null,null,null,null,null,"","","",null,"",null,null,"",null,null,null,null,null,null,null,null,"",null,null,null,null,null,""]
[null,null,null,null,null,"","","",null,"",null,null,"",null,null,null,null,null,null,null,null,"",null,null,null,null,null,""]
[null,null,null,null,null,"","","",null,"",null,null,"",null,null,null,null,null,null,null,null,"",null,null,null,null,null,""]
[null,null,null,null,null,"","","",null,"",null,null,"",null,null,null,null,null,null,null,null,"",null,null,null,null,null,""]
[null,null,null,null,null,"","","",null,"",null,null,"",null,null,null,null,null,null,null,null,"",null,null,null,null,null,""]
[null,null,null,null,null,"","","",null,"",null,null,"",null,null,null,null,null,null,null,null,"",null,null,null,null,null,""]
[null,null,null,null,null,"","","",null,"",null,null,"",null,null,null,null,null,null,null,null,"",null,null,null,null,null,""]
[null,null,null,null,null,"","","",null,"",null,null,"",null,null,null,null,null,null,null,null,"",null,null,null,null,null,""]
[null,null,null,null,null,"","","",null,"",null,null,"",null,null,null,null,null,null,null,null,"",null,null,null,null,null,""]
[null,null,null,null,null,"","","",null,"",null,null,"",null,null,null,null,null,null,null,null,"",null,null,null,null,null,""]
[null,null,null,null,null,"","","",null,"",null,null,"",null,null,null,null,null,null,null,null,"",null,null,null,null,null,""]
[null,null,null,null,null,"","","",null,"",null,null,"",null,null,null,null,null,null,null,null,"",null,null,null,null,null,""]
[null,null,null,null,null,"","","",null,"",null,null,"",null,null,null,null,null,null,null,null,"",null,null,null,null,null,""]
[null,null,null,null,null,{"$f":"IF(AND(LEN(A1358)>0,LEN(B1358)>0),0.95^14,\"\")","v":""},{"$f":"IF(AND(LEN(A1358)>0,LEN(B1358)>0),0,\"\")","v":""},{"$f":"IF(AND(LEN(A1358)>0,LEN(B1358)>0),(C1358+D1358+E1358)*F1358+G1358,\"\")","v":""},null,{"$f":"IF(AND(LEN(A1358)>0,LEN(B1358)>0),I1358,\"\")","v":""},null,null,{"$f":"IF(AND(LEN(A1358)>0,LEN(B1358)>0),SUM(J1358:L1358),\"\")","v":""},null,null,null,null,null,null,null,null,{"$f":"IF(AND((A1358)>0,(B1358)>0),IF(H1358-M1358<0,N1358+O1358+P1358+Q1358++S1358+T1358-U1358,H1358-M1358+N1358+O1358+P1358+Q1358+R1358+S1358-T1358-U1358),\"\")","v":""},null,null,null,null,null,{"$f":"IF(AND(LEN(A1358)>0,LEN(B1358)>0),IF((V1358-(X1358+Y1358+Z1358)-AA1358)<0,0,V1358-(X1358+Y1358+Z1358)-AA1358),\"\")","v":""}]
[null,null,null,null,null,"","","",null,"",null,null,"",null,null,null,null,null,null,null,null,"",null,null,null,null,null,""]
[null,null,null,null,null,"","","",null,"",null,null,"",null,null,null,null,null,null,null,null,"",null,null,null,null,null,""]
[null,null,null,null,null,"","","",null,"",null,null,"",null,null,null,null,null,null,null,null,"",null,null,null,null,null,""]
[null,null,null,null,null,"","","",null,"",null,null,"",null,null,null,null,null,null,null,null,"",null,null,null,null,null,""]
[null,null,null,null,null,"","","",null,"",null,null,"",null,null,null,null,null,null,null,null,"",null,null,null,null,null,""]
[null,null,null,null,null,"","","",null,"",null,null,"",null,null,null,null,null,null,null,null,"",null,null,null,null,null,""]
[null,null,null,null,null,"","","",null,"",null,null,"",null,null,null,null,null,null,null,null,"",null,null,null,null,null,""]
[null,null,null,null,null,"","","",null,"",null,null,"",null,null,null,null,null,null,null,null,"",null,null,null,null,null,""]
[null,null,null,null,null,"","","",null,"",null,null,"",null,null,null,null,null,null,null,null,"",null,null,null,null,null,""]
[null,null,null,null,null,"","","",null,"",null,null,"",null,null,null,null,null,null,null,null,"",null,null,null,null,null,""]
[null,null,null,null,null,"","","",null,"",null,null,"",null,null,null,null,null,null,null,null,"",null,null,null,null,null,""]
[null,null,null,null,null,"","","",null,"",null,null,"",null,null,null,null,null,null,null,null,"",null,null,null,null,null,""]
[null,null,null,null,null,"","","",null,"",null,null,"",null,null,null,null,null,null,null,null,"",null,null,null,null,null,""]
[null,null,null,null,null,"","","",null,"",null,null,"",null,null,null,null,null,null,null,null,"",null,null,null,null,null,""]
[null,null,null,null,null,"","","",null,"",null,null,"",null,null,null,null,null,null,null,null,"",null,null,null,null,null,""]
[null,null,null,null,null,"","","",null,"",null,null,"",null,null,null,null,null,null,null,null,"",null,null,null,null,null,""]
[null,null,null,null,null,"","","",null,"",null,null,"",null,null,null,null,null,null,null,null,"",null,null,null,null,null,""]
[null,null,null,null,null,"","","",null,"",null,null,"",null,null,null,null,null,null,null,null,"",null,null,null,null,null,""]
[null,null,null,null,null,"","","",null,"",null,null,"",null,null,null,null,null,null,null,null,"",null,null,null,null,null,""]
[null,null,null,null,null,"","","",null,"",null,null,"",null,null,null,null,null,null,null,null,"",null,null,null,null,null,""]
[null,null,null,null,null,"","","",null,"",null,null,"",null,null,null,null,null,null,null,null,"",null,null,null,null,null,""]
[null,null,null,null,null,"","","",null,"",null,null,"",null,null,null,null,null,null,null,null,"",null,null,null,null,null,""]
[null,null,null,null,null,"","","",null,"",null,null,"",null,null,null,null,null,null,null,null,"",null,null,null,null,null,""]
[null,null,null,null,null,"","","",null,"",null,null,"",null,null,null,null,null,null,null,null,"",null,null,null,null,null,""]
[null,null,null,null,null,"","","",null,"",null,null,"",null,null,null,null,null,null,null,null,"",null,null,null,null,null,""]
[null,null,null,null,null,"","","",null,"",null,null,"",null,null,null,null,null,null,null,null,"",null,null,null,null,null,""]
[null,null,null,null,null,"","","",null,"",null,null,"",null,null,null,null,null,null,null,null,"",null,null,null,null,null,""]
[null,null,null,null,null,"","","",null,"",null,null,"",null,null,null,null,null,null,null,null,"",null,null,null,null,null,""]
[null,null,null,null,null,"","","",null,"",null,null,"",null,null,null,null,null,null,null,null,"",null,null,null,null,null,""]
[null,null,null,null,null,"","","",null,"",null,null,"",null,null,null,null,null,null,null,null,"",null,null,null,null,null,""]
[null,null,null,null,null,"","","",null,"",null,null,"",null,null,null,null,null,null,null,null,"",null,null,null,null,null,""]
[null,null,null,null,null,"","","",null,"",null,null,"",null,null,null,null,null,null,null,null,"",null,null,null,null,null,""]
[null,null,null,null,null,"","","",null,"",null,null,"",null,null,null,null,null,null,null,null,"",null,null,null,null,null,""]
[null,null,null,null,null,"","","",null,"",null,null,"",null,null,null,null,null,null,null,null,"",null,null,null,null,null,""]
[null,null,null,null,null,"","","",null,"",null,null,"",null,null,null,null,null,null,null,null,"",null,null,null,null,null,""]
[null,null,null,null,null,"","","",null,"",null,null,"",null,null,null,null,null,null,null,null,"",null,null,null,null,null,""]
[null,null,null,null,null,"","","",null,"",null,null,"",null,null,null,null,null,null,null,null,"",null,null,null,null,null,""]
[null,null,null,null,null,"","","",null,"",null,null,"",null,null,null,null,null,null,null,null,"",null,null,null,null,null,""]
[null,null,null,null,null,"","","",null,"",null,null,"",null,null,null,null,null,null,null,null,"",null,null,null,null,null,""]
[null,null,null,null,null,"","","",null,"",null,null,"",null,null,null,null,null,null,null,null,"",null,null,null,null,null,""]
[null,null,null,null,null,"","","",null,"",null,null,"",null,null,null,null,null,null,null,null,"",null,null,null,null,null,""]
[null,null,null,null,null,"","","",null,"",null,null,"",null,null,null,null,null,null,null,null,"",null,null,null,null,null,""]
[null,null,null,null,null,"","","",null,"",null,null,"",null,null,null,null,null,null,null,null,"",null,null,null,null,null,""]
[null,null,null,null,null,"","","",null,"",null,null,"",null,null,null,null,null,null,null,null,"",null,null,null,null,null,""]
[null,null,null,null,null,"","","",null,"",null,null,"",null,null,null,null,null,null,null,null,"",null,null,null,null,null,""]
[null,null,null,null,null,"","","",null,"",null,null,"",null,null,null,null,null,null,null,null,"",null,null,null,null,null,""]
[null,null,null,null,null,"","","",null,"",null,null,"",null,null,null,null,null,null,null,null,"",null,null,null,null,null,""]
[null,null,null,null,null,"","","",null,"",null,null,"",null,null,null,null,null,null,null,null,"",null,null,null,null,null,""]
[null,null,null,null,null,"","","",null,"",null,null,"",null,null,null,null,null,null,null,null,"",null,null,null,null,null,""]
[null,null,null,null,null,"","","",null,"",null,null,"",null,null,null,null,null,null,null,null,"",null,null,null,null,null,""]
[null,null,null,null,null,"","","",null,"",null,null,"",null,null,null,null,null,null,null,null,"",null,null,null,null,null,""]
[null,null,null,null,null,"","","",null,"",null,null,"",null,null,null,null,null,null,null,null,"",null,null,null,null,null,""]
[null,null,null,null,null,"","","",null,"",null,null,"",null,null,null,null,null,null,null,null,"",null,null,null,null,null,""]
[null,null,null,null,null,"","","",null,"",null,null,"",null,null,null,null,null,null,null,null,"",null,null,null,null,null,""]
[null,null,null,null,null,"","","",null,"",null,null,"",null,null,null,null,null,null,null,null,"",null,null,null,null,null,""]
[null,null,null,null,null,"","","",null,"",null,null,"",null,null,null,null,null,null,null,null,"",null,null,null,null,null,""]
[null,null,null,null,null,"","","",null,"",null,null,"",null,null,null,null,null,null,null,null,"",null,null,null,null,null,""]
[null,null,null,null,null,"","","",null,"",null,null,"",null,null,null,null,null,null,null,null,"",null,null,null,null,null,""]
[null,null,null,null,null,"","","",null,"",null,null,"",null,null,null,null,null,null,null,null,"",null,null,null,null,null,""]
[null,null,null,null,null,"","","",null,"",null,null,"",null,null,null,null,null,null,null,null,"",null,null,null,null,null,""]
[null,null,null,null,null,"","","",null,"",null,null,"",null,null,null,null,null,null,null,null,"",null,null,null,null,null,""]
[null,null,null,null,null,"","","",null,"",null,null,"",null,null,null,null,null,null,null,null,"",null,null,null,null,null,""]
[null,null,null,null,null,"","","",null,"",null,null,"",null,null,null,null,null,null,null,null,"",null,null,null,null,null,""]
[null,null,null,null,null,{"$f":"IF(AND(LEN(A1422)>0,LEN(B1422)>0),0.95^14,\"\")","v":""},{"$f":"IF(AND(LEN(A1422)>0,LEN(B1422)>0),0,\"\")","v":""},{"$f":"IF(AND(LEN(A1422)>0,LEN(B1422)>0),(C1422+D1422+E1422)*F1422+G1422,\"\")","v":""},null,{"$f":"IF(AND(LEN(A1422)>0,LEN(B1422)>0),I1422,\"\")","v":""},null,null,{"$f":"IF(AND(LEN(A1422)>0,LEN(B1422)>0),SUM(J1422:L1422),\"\")","v":""},null,null,null,null,null,null,null,null,{"$f":"IF(AND((A1422)>0,(B1422)>0),IF(H1422-M1422<0,N1422+O1422+P1422+Q1422++S1422+T1422-U1422,H1422-M1422+N1422+O1422+P1422+Q1422+R1422+S1422-T1422-U1422),\"\")","v":""},null,null,null,null,null,{"$f":"IF(AND(LEN(A1422)>0,LEN(B1422)>0),IF((V1422-(X1422+Y1422+Z1422)-AA1422)<0,0,V1422-(X1422+Y1422+Z1422)-AA1422),\"\")","v":""}]
[null,null,null,null,null,"","","",null,"",null,null,"",null,null,null,null,null,null,null,null,"",null,null,null,null,null,""]
[null,null,null,null,null,"","","",null,"",null,null,"",null,null,null,null,null,null,null,null,"",null,null,null,null,null,""]
[null,null,null,null,null,"","","",null,"",null,null,"",null,null,null,null,null,null,null,null,"",null,null,null,null,null,""]
[null,null,null,null,null,"","","",null,"",null,null,"",null,null,null,null,null,null,null,null,"",null,null,null,null,null,""]
[null,null,null,null,null,"","","",null,"",null,null,"",null,null,null,null,null,null,null,null,"",null,null,null,null,null,""]
[null,null,null,null,null,"","","",null,"",null,null,"",null,null,null,null,null,null,null,null,"",null,null,null,null,null,""]
[null,null,null,null,null,"","","",null,"",null,null,"",null,null,null,null,null,null,null,null,"",null,null,null,null,null,""]
[null,null,null,null,null,"","","",null,"",null,null,"",null,null,null,null,null,null,null,null,"",null,null,null,null,null,""]
[null,null,null,null,null,"","","",null,"",null,null,"",null,null,null,null,null,null,null,null,"",null,null,null,null,null,""]
[null,null,null,null,null,"","","",null,"",null,null,"",null,null,null,null,null,null,null,null,"",null,null,null,null,null,""]
[null,null,null,null,null,"","","",null,"",null,null,"",null,null,null,null,null,null,null,null,"",null,null,null,null,null,""]
[null,null,null,null,null,"","","",null,"",null,null,"",null,null,null,null,null,null,null,null,"",null,null,null,null,null,""]
[null,null,null,null,null,"","","",null,"",null,null,"",null,null,null,null,null,null,null,null,"",null,null,null,null,null,""]
[null,null,null,null,null,"","","",null,"",null,null,"",null,null,null,null,null,null,null,null,"",null,null,null,null,null,""]
[null,null,null,null,null,"","","",null,"",null,null,"",null,null,null,null,null,null,null,null,"",null,null,null,null,null,""]
[null,null,null,null,null,"","","",null,"",null,null,"",null,null,null,null,null,null,null,null,"",null,null,null,null,null,""]
[null,null,null,null,null,"","","",null,"",null,null,"",null,null,null,null,null,null,null,null,"",null,null,null,null,null,""]
[null,null,null,null,null,"","","",null,"",null,null,"",null,null,null,null,null,null,null,null,"",null,null,null,null,null,""]
[null,null,null,null,null,"","","",null,"",null,null,"",null,null,null,null,null,null,null,null,"",null,null,null,null,null,""]
[null,null,null,null,null,"","","",null,"",null,null,"",null,null,null,null,null,null,null,null,"",null,null,null,null,null,""]
[null,null,null,null,null,"","","",null,"",null,null,"",null,null,null,null,null,null,null,null,"",null,null,null,null,null,""]
[null,null,null,null,null,"","","",null,"",null,null,"",null,null,null,null,null,null,null,null,"",null,null,null,null,null,""]
[null,null,null,null,null,"","","",null,"",null,null,"",null,null,null,null,null,null,null,null,"",null,null,null,null,null,""]
[null,null,null,null,null,"","","",null,"",null,null,"",null,null,null,null,null,null,null,null,"",null,null,null,null,null,""]
[null,null,null,null,null,"","","",null,"",null,null,"",null,null,null,null,null,null,null,null,"",null,null,null,null,null,""]
[null,null,null,null,null,"","","",null,"",null,null,"",null,null,null,null,null,null,null,null,"",null,null,null,null,null,""]
[null,null,null,null,null,"","","",null,"",null,null,"",null,null,null,null,null,null,null,null,"",null,null,null,null,null,""]
[null,null,null,null,null,"","","",null,"",null,null,"",null,null,null,null,null,null,null,null,"",null,null,null,null,null,""]
[null,null,null,null,null,"","","",null,"",null,null,"",null,null,null,null,null,null,null,null,"",null,null,null,null,null,""]
[null,null,null,null,null,"","","",null,"",null,null,"",null,null,null,null,null,null,null,null,"",null,null,null,null,null,""]
[null,null,null,null,null,"","","",null,"",null,null,"",null,null,null,null,null,null,null,null,"",null,null,null,null,null,""]
[null,null,null,null,null,"","","",null,"",null,null,"",null,null,null,null,null,null,null,null,"",null,null,null,null,null,""]
[null,null,null,null,null,"","","",null,"",null,null,"",null,null,null,null,null,null,null,null,"",null,null,null,null,null,""]
[null,null,null,null,null,"","","",null,"",null,null,"",null,null,null,null,null,null,null,null,"",null,null,null,null,null,""]
[null,null,null,null,null,"","","",null,"",null,null,"",null,null,null,null,null,null,null,null,"",null,null,null,null,null,""]
[null,null,null,null,null,"","","",null,"",null,null,"",null,null,null,null,null,null,null,null,"",null,null,null,null,null,""]
[null,null,null,null,null,"","","",null,"",null,null,"",null,null,null,null,null,null,null,null,"",null,null,null,null,null,""]
[null,null,null,null,null,"","","",null,"",null,null,"",null,null,null,null,null,null,null,null,"",null,null,null,null,null,""]
[null,null,null,null,null,"","","",null,"",null,null,"",null,null,null,null,null,null,null,null,"",null,null,null,null,null,""]
[null,null,null,null,null,"","","",null,"",null,null,"",null,null,null,null,null,null,null,null,"",null,null,null,null,null,""]
[null,null,null,null,null,"","","",null,"",null,null,"",null,null,null,null,null,null,null,null,"",null,null,null,null,null,""]
[null,null,null,null,null,"","","",null,"",null,null,"",null,null,null,null,null,null,null,null,"",null,null,null,null,null,""]
[null,null,null,null,null,"","","",null,"",null,null,"",null,null,null,null,null,null,null,null,"",null,null,null,null,null,""]
[null,null,null,null,null,"","","",null,"",null,null,"",null,null,null,null,null,null,null,null,"",null,null,null,null,null,""]
[null,null,null,null,null,"","","",null,"",null,null,"",null,null,null,null,null,null,null,null,"",null,null,null,null,null,""]
[null,null,null,null,null,"","","",null,"",null,null,"",null,null,null,null,null,null,null,null,"",null,null,null,null,null,""]
[null,null,null,null,null,"","","",null,"",null,null,"",null,null,null,null,null,null,null,null,"",null,null,null,null,null,""]
[null,null,null,null,null,"","","",null,"",null,null,"",null,null,null,null,null,null,null,null,"",null,null,null,null,null,""]
[null,null,null,null,null,"","","",null,"",null,null,"",null,null,null,null,null,null,null,null,"",null,null,null,null,null,""]
[null,null,null,null,null,"","","",null,"",null,null,"",null,null,null,null,null,null,null,null,"",null,null,null,null,null,""]
[null,null,null,null,null,"","","",null,"",null,null,"",null,null,null,null,null,null,null,null,"",null,null,null,null,null,""]
[null,null,null,null,null,"","","",null,"",null,null,"",null,null,null,null,null,null,null,null,"",null,null,null,null,null,""]
[null,null,null,null,null,"","","",null,"",null,null,"",null,null,null,null,null,null,null,null,"",null,null,null,null,null,""]
[null,null,null,null,null,"","","",null,"",null,null,"",null,null,null,null,null,null,null,null,"",null,null,null,null,null,""]
[null,null,null,null,null,"","","",null,"",null,null,"",null,null,null,null,null,null,null,null,"",null,null,null,null,null,""]
[null,null,null,null,null,"","","",null,"",null,null,"",null,null,null,null,null,null,null,null,"",null,null,null,null,null,""]
[null,null,null,null,null,"","","",null,"",null,null,"",null,null,null,null,null,null,null,null,"",null,null,null,null,null,""]
[null,null,null,null,null,"","","",null,"",null,null,"",null,null,null,null,null,null,null,null,"",null,null,null,null,null,""]
[null,null,null,null,null,"","","",null,"",null,null,"",null,null,null,null,null,null,null,null,"",null,null,null,null,null,""]
[null,null,null,null,null,"","","",null,"",null,null,"",null,null,null,null,null,null,null,null,"",null,null,null,null,null,""]
[null,null,null,null,null,"","","",null,"",null,null,"",null,null,null,null,null,null,null,null,"",null,null,null,null,null,""]
[null,null,null,null,null,"","","",null,"",null,null,"",null,null,null,null,null,null,null,null,"",null,null,null,null,null,""]
[null,null,null,null,null,"","","",null,"",null,null,"",null,null,null,null,null,null,null,null,"",null,null,null,null,null,""]
[null,null,null,null,null,{"$f":"IF(AND(LEN(A1486)>0,LEN(B1486)>0),0.95^14,\"\")","v":""},{"$f":"IF(AND(LEN(A1486)>0,LEN(B1486)>0),0,\"\")","v":""},{"$f":"IF(AND(LEN(A1486)>0,LEN(B1486)>0),(C1486+D1486+E1486)*F1486+G1486,\"\")","v":""},null,{"$f":"IF(AND(LEN(A1486)>0,LEN(B1486)>0),I1486,\"\")","v":""},null,null,{"$f":"IF(AND(LEN(A1486)>0,LEN(B1486)>0),SUM(J1486:L1486),\"\")","v":""},null,null,null,null,null,null,null,null,{"$f":"IF(AND((A1486)>0,(B1486)>0),IF(H1486-M1486<0,N1486+O1486+P1486+Q1486++S1486+T1486-U1486,H1486-M1486+N1486+O1486+P1486+Q1486+R1486+S1486-T1486-U1486),\"\")","v":""},null,null,null,null,null,{"$f":"IF(AND(LEN(A1486)>0,LEN(B1486)>0),IF((V1486-(X1486+Y1486+Z1486)-AA1486)<0,0,V1486-(X1486+Y1486+Z1486)-AA1486),\"\")","v":""}]
[null,null,null,null,null,"","","",null,"",null,null,"",null,null,null,null,null,null,null,null,"",null,null,null,null,null,""]
[null,null,null,null,null,"","","",null,"",null,null,"",null,null,null,null,null,null,null,null,"",null,null,null,null,null,""]
[null,null,null,null,null,"","","",null,"",null,null,"",null,null,null,null,null,null,null,null,"",null,null,null,null,null,""]
[null,null,null,null,null,"","","",null,"",null,null,"",null,null,null,null,null,null,null,null,"",null,null,null,null,null,""]
[null,null,null,null,null,"","","",null,"",null,null,"",null,null,null,null,null,null,null,null,"",null,null,null,null,null,""]
[null,null,null,null,null,"","","",null,"",null,null,"",null,null,null,null,null,null,null,null,"",null,null,null,null,null,""]
[null,null,null,null,null,"","","",null,"",null,null,"",null,null,null,null,null,null,null,null,"",null,null,null,null,null,""]
[null,null,null,null,null,"","","",null,"",null,null,"",null,null,null,null,null,null,null,null,"",null,null,null,null,null,""]
[null,null,null,null,null,"","","",null,"",null,null,"",null,null,null,null,null,null,null,null,"",null,null,null,null,null,""]
[null,null,null,null,null,"","","",null,"",null,null,"",null,null,null,null,null,null,null,null,"",null,null,null,null,null,""]
[null,null,null,null,null,"","","",null,"",null,null,"",null,null,null,null,null,null,null,null,"",null,null,null,null,null,""]
[null,null,null,null,null,"","","",null,"",null,null,"",null,null,null,null,null,null,null,null,"",null,null,null,null,null,""]
[null,null,null,null,null,"","","",null,"",null,null,"",null,null,null,null,null,null,null,null,"",null,null,null,null,null,""]
[null,null,null,null,null,"","","",null,"",null,null,"",null,null,null,null,null,null,null,null,"",null,null,null,null,null,""]
[null,null,null,null,null,"","","",null,"",null,null,"",null,null,null,null,null,null,null,null,"",null,null,null,null,null,""]
[null,null,null,null,null,"","","",null,"",null,null,"",null,null,null,null,null,null,null,null,"",null,null,null,null,null,""]
[null,null,null,null,null,"","","",null,"",null,null,"",null,null,null,null,null,null,null,null,"",null,null,null,null,null,""]
[null,null,null,null,null,"","","",null,"",null,null,"",null,null,null,null,null,null,null,null,"",null,null,null,null,null,""]
[null,null,null,null,null,"","","",null,"",null,null,"",null,null,null,null,null,null,null,null,"",null,null,null,null,null,""]
[null,null,null,null,null,"","","",null,"",null,null,"",null,null,null,null,null,null,null,null,"",null,null,null,null,null,""]
[null,null,null,null,null,"","","",null,"",null,null,"",null,null,null,null,null,null,null,null,"",null,null,null,null,null,""]
[null,null,null,null,null,"","","",null,"",null,null,"",null,null,null,null,null,null,null,null,"",null,null,null,null,null,""]
[null,null,null,null,null,"","","",null,"",null,null,"",null,null,null,null,null,null,null,null,"",null,null,null,null,null,""]
[null,null,null,null,null,"","","",null,"",null,null,"",null,null,null,null,null,null,null,null,"",null,null,null,null,null,""]
[null,null,null,null,null,"","","",null,"",null,null,"",null,null,null,null,null,null,null,null,"",null,null,null,null,null,""]
[null,null,null,null,null,"","","",null,"",null,null,"",null,null,null,null,null,null,null,null,"",null,null,null,null,null,""]